Workbook

Sheet Table of Contents
B3: State of Washington 2024 State Salary Survey Data Tables
C5: Workbook Table of Contents
C6: Tab Title | D6: Tab Number
C7: Benchmark Summaries | D7: =_xlfn.SHEET(INDIRECT("'"&C7&"*'!A1")) -> 2
C8: Pay Rates by Benchmark | D8: =_xlfn.SHEET(INDIRECT("'"&C8&"*'!A1")) -> 3
C9: Comparison with 2022 | D9: 4
C10: Pay Plan Types | D10: 5
C11: Pay Scale Adjustments | D11: 6
C12: Shift Diff & Call-Back Pay | D12: 7
C13: Performance & Incentive Pay | D13: 8
C14: Paid Leave | D14: 9
C15: Ret and Health Benefits | D15: =_xlfn.SHEET(INDIRECT("'"&C15&"*'!A1")) -> 10
C16: Modern Work Environment | D16: =_xlfn.SHEET(INDIRECT("'"&C16&"*'!A1")) -> 11
C17: Employee Engagement | D17: =_xlfn.SHEET(INDIRECT("'"&C17&"*'!A1")) -> 12
C18: Survey Participants | D18: 13

Sheet Benchmark Summaries
B2: 2024 Washington State Classified Compensation Report Summary of Data
B3: Base Pay | F3: Total Compensation
B4: Administrative and Other Support Services | F4: Administrative and Other Support Services
B5: Benchmark Job Title | C5: # of Data Points | D5: Base Pay Median Midpoint | F5: Benchmark Job Title | G5: Market Average | H5: State of Washington
B6: 100 Secretary Senior | F6: 100 Secretary Senior
B7: In-State Public Sector | C7: 23 | D7: 61661.6 | F7: Base Pay Midpoint | G7: 60843.3 | H7: 41880
B8: State Governments | C8: 0 | D8: - | F8: Health Benefit Cost | G8: 14332.5 | H8: 12740
B9: In-State Private Sector | C9: 5 | D9: 60025 | F9: Retirement Benefit Cost | G9: 8070.089148 | H9: 5304.569381
B10: Market Average | C10: 28 | D10: 60843.3 | F10: Total Compensation | G10: 83245.88915 | H10: 59924.56938
B11: 101 PBX & Telephone Operator | F11: 101 PBX & Telephone Operator
B12: In-State Public Sector | C12: 1 | D12: - | F12: Base Pay Midpoint | G12: 47939 | H12: 40938
B13: State Governments | C13: 0 | D13: - | F13: Health Benefit Cost | G13: - | H13: 12740
B14: In-State Private Sector | C14: 4 | D14: - | F14: Retirement Benefit Cost | G14: 6411.275973 | H14: 5185.254568
B15: Market Average | C15: 5 | D15: 47939 | F15: Total Compensation | G15: 54350.27597 | H15: 58863.25457
B16: 102 Customer Service Specialist 2 | F16: 102 Customer Service Specialist 2
B17: In-State Public Sector | C17: 15 | D17: 59904 | F17: Base Pay Midpoint | G17: 54370.25 | H17: 43914
B18: State Governments | C18: 0 | D18: - | F18: Health Benefit Cost | G18: 14332.5 | H18: 12740
B19: In-State Private Sector | C19: 4 | D19: - | F19: Retirement Benefit Cost | G19: 7648.942736 | H19: 5562.19818
B20: Market Average | C20: 19 | D20: 54370.25 | F20: Total Compensation | G20: 76351.69274 | H20: 62216.19818
B21: 103 Administrative Assistant 3 | F21: 103 Administrative Assistant 3
B22: In-State Public Sector | C22: 24 | D22: 68747.33 | F22: Base Pay Midpoint | G22: 67772.165 | H22: 47238
B23: State Governments | C23: 0 | D23: - | F23: Health Benefit Cost | G23: 14332.5 | H23: 12740
B24: In-State Private Sector | C24: 6 | D24: 66797 | F24: Retirement Benefit Cost | G24: 8707.616565 | H24: 5983.219876
B25: Market Average | C25: 30 | D25: 67772.165 | F25: Total Compensation | G25: 90812.28156 | H25: 65961.21988
B26: 104 Program Specialist 2 | F26: 104 Program Specialist 2
B27: In-State Public Sector | C27: 19 | D27: 74940.50195 | F27: Base Pay Midpoint | G27: 71120.25098 | H27: 49560
B28: State Governments | C28: 0 | D28: - | F28: Health Benefit Cost | G28: 14332.5 | H28: 12740
B29: In-State Private Sector | C29: 3 | D29: - | F29: Retirement Benefit Cost | G29: 9463.851454 | H29: 6277.32709
B30: Market Average | C30: 22 | D30: 71120.25098 | F30: Total Compensation | G30: 94916.60243 | H30: 68577.32709
B31: 105 Management Analyst 3 | F31: 105 Management Analyst 3
B32: In-State Public Sector | C32: 13 | D32: 94283.5 | F32: Base Pay Midpoint | G32: 91841.75 | H32: 66432
B33: State Governments | C33: 0 | D33: - | F33: Health Benefit Cost | G33: 14332.5 | H33: 12740
B34: In-State Private Sector | C34: 3 | D34: - | F34: Retirement Benefit Cost | G34: 11874.41409 | H34: 8414.354181
B35: Market Average | C35: 16 | D35: 91841.75 | F35: Total Compensation | G35: 118048.6641 | H35: 87586.35418
B36: 106 Events Coordinator 3 | F36: 106 Events Coordinator 3
B37: In-State Public Sector | C37: 8 | D37: 77116 | F37: Base Pay Midpoint | G37: 75942.75 | H37: 46074
B38: State Governments | C38: 0 | D38: - | F38: Health Benefit Cost | G38: 11147.5 | H38: 12740
B39: In-State Private Sector | C39: 6 | D39: 74769.5 | F39: Retirement Benefit Cost | G39: 10503.81477 | H39: 5835.786286
B40: Market Average | C40: 14 | D40: 75942.75 | F40: Total Compensation | G40: 97594.06477 | H40: 64649.78629
B41: 107 Forms & Records Analyst 2 | F41: 107 Forms & Records Analyst 2
B42: In-State Public Sector | C42: 11 | D42: 72709.5 | F42: Base Pay Midpoint | G42: 61804.75 | H42: 49560
B43: State Governments | C43: 0 | D43: - | F43: Health Benefit Cost | G43: 14332.5 | H43: 12740
B44: In-State Private Sector | C44: 3 | D44: - | F44: Retirement Benefit Cost | G44: 9115.803685 | H44: 6277.32709
B45: Market Average | C45: 14 | D45: 61804.75 | F45: Total Compensation | G45: 85253.05369 | H45: 68577.32709
B46: 108 Mail Carrier-Driver | F46: 108 Mail Carrier-Driver
B47: In-State Public Sector | C47: 7 | D47: 46122 | F47: Base Pay Midpoint | G47: 46196.5 | H47: 37392
B48: State Governments | C48: 0 | D48: - | F48: Health Benefit Cost | G48: 14332.5 | H48: 12740
B49: In-State Private Sector | C49: 5 | D49: 46271 | F49: Retirement Benefit Cost | G49: 5944.303097 | H49: 4736.114095
B50: Market Average | C50: 12 | D50: 46196.5 | F50: Total Compensation | G50: 66473.3031 | H50: 54868.11409
B51: 109 Procurement & Supply Specialist 3 | F51: 109 Procurement & Supply Specialist 3
B52: In-State Public Sector | C52: 14 | D52: 79830.25 | F52: Base Pay Midpoint | G52: 74930.625 | H52: 61710
B53: State Governments | C53: 0 | D53: - | F53: Health Benefit Cost | G53: 14332.5 | H53: 12740
B54: In-State Private Sector | C54: 5 | D54: 70031 | F54: Retirement Benefit Cost | G54: 10111.39207 | H54: 7816.260184
B55: Market Average | C55: 19 | D55: 74930.625 | F55: Total Compensation | G55: 99374.51707 | H55: 82266.26018
B56: 110 Human Resource Consultant 2 | F56: 110 Human Resource Consultant 2
B57: In-State Public Sector | C57: 24 | D57: 84750.2925 | F57: Base Pay Midpoint | G57: 80800.14625 | H57: 64800
B58: State Governments | C58: 0 | D58: - | F58: Health Benefit Cost | G58: 14332.5 | H58: 12740
B59: In-State Private Sector | C59: 6 | D59: 76850 | F59: Retirement Benefit Cost | G59: 10734.57036 | H59: 8207.643168
B60: Market Average | C60: 30 | D60: 80800.14625 | F60: Total Compensation | G60: 105867.2166 | H60: 85747.64317
B61: 111 Industrial Relations Agent 2 | F61: 111 Industrial Relations Agent 2
B62: In-State Public Sector | C62: 3 | D62: - | F62: Base Pay Midpoint | G62: 90348.53869 | H62: 61710
B63: State Governments | C63: 10 | D63: 73186.67737 | F63: Health Benefit Cost | G63: 12740 | H63: 12740
B64: In-State Private Sector | C64: 0 | D64: - | F64: Retirement Benefit Cost | G64: 9940.644646 | H64: 7816.260184
B65: Market Average | C65: 13 | D65: 90348.53869 | F65: Total Compensation | G65: 113029.1833 | H65: 82266.26018
B66: 112 Custodian 2 | F66: 112 Custodian 2
B67: In-State Public Sector | C67: 22 | D67: 53149.356 | F67: Base Pay Midpoint | G67: 47639.428 | H67: 40938
B68: State Governments | C68: 0 | D68: - | F68: Health Benefit Cost | G68: 13536.25 | H68: 12740
B69: In-State Private Sector | C69: 6 | D69: 42129.5 | F69: Retirement Benefit Cost | G69: 6972.522342 | H69: 5185.254568
B70: Market Average | C70: 28 | D70: 47639.428 | F70: Total Compensation | G70: 68148.20034 | H70: 58863.25457
B71: 113 Grant & Contract Coordinator | F71: 113 Grant & Contract Coordinator
B72: In-State Public Sector | C72: 17 | D72: 77291.0675 | F72: Base Pay Midpoint | G72: 73087.03375 | H72: 55890
B73: State Governments | C73: 0 | D73: - | F73: Health Benefit Cost | G73: 14332.5 | H73: 12740
B74: In-State Private Sector | C74: 3 | D74: - | F74: Retirement Benefit Cost | G74: 9924.329887 | H74: 7079.092232
B75: Market Average | C75: 20 | D75: 73087.03375 | F75: Total Compensation | G75: 97343.86364 | H75: 75709.09223
B76: 114 Technical Training Consultant | F76: 114 Technical Training Consultant
B77: In-State Public Sector | C77: 4 | D77: - | F77: Base Pay Midpoint | G77: 85862.36292 | H77: 73380
B78: State Governments | C78: 0 | D78: - | F78: Health Benefit Cost | G78: 11943.75 | H78: 12740
B79: In-State Private Sector | C79: 4 | D79: - | F79: Retirement Benefit Cost | G79: 10085.28524 | H79: 9294.395921
B80: Market Average | C80: 8 | D80: 85862.36292 | F80: Total Compensation | G80: 107891.3982 | H80: 95414.39592
B81: Agriculture or Forest Services/Products | F81: Agriculture or Forest Services/Products
B82: Benchmark Job Title | C82: # of Data Points | D82: Base Pay Median Midpoint | F82: Benchmark Job Title | G82: Market Average | H82: State of Washington
B83: 200 Forest Cruiser & Craft Technician | F83: 200 Forest Cruiser & Craft Technician
B84: In-State Public Sector | C84: 0 | D84: - | F84: Base Pay Midpoint | G84: 70899.75488 | H84: 51636
B85: State Governments | C85: 6 | D85: 59955.50976 | F85: Health Benefit Cost | G85: 14332.5 | H85: 12740
B86: In-State Private Sector | C86: 1 | D86: - | F86: Retirement Benefit Cost | G86: 8160.176254 | H86: 6540.275658
B87: Market Average | C87: 7 | D87: 70899.75488 | F87: Total Compensation | G87: 93392.43114 | H87: 70916.27566
B88: 201 Forest Crew Supervisor 1 | F88: 201 Forest Crew Supervisor 1
B89: In-State Public Sector | C89: 0 | D89: - | F89: Base Pay Midpoint | G89: 65027.42195 | H89: 40938
B90: State Governments | C90: 8 | D90: 79628.84391 | F90: Health Benefit Cost | G90: 14332.5 | H90: 12740
B91: In-State Private Sector | C91: 1 | D91: - | F91: Retirement Benefit Cost | G91: 11072.23585 | H91: 5185.254568
B92: Market Average | C92: 9 | D92: 65027.42195 | F92: Total Compensation | G92: 90432.15781 | H92: 58863.25457
B93: 202 Forest Nursery Laborer | F93: 202 Forest Nursery Laborer
B94: In-State Public Sector | C94: 1 | D94: - | F94: Base Pay Midpoint | G94: 48093.90816 | H94: 37392
B95: State Governments | C95: 5 | D95: 46585.47451 | F95: Health Benefit Cost | G95: 14332.5 | H95: 12740
B96: In-State Private Sector | C96: 4 | D96: - | F96: Retirement Benefit Cost | G96: 6243.102334 | H96: 4736.114095
B97: Market Average | C97: 10 | D97: 48093.90816 | F97: Total Compensation | G97: 68669.51049 | H97: 54868.11409
B98: 203 Horticulturist | F98: 203 Horticulturist
B99: In-State Public Sector | C99: 2 | D99: - | F99: Base Pay Midpoint | G99: 80503.02977 | H99: 82992
B100: State Governments | C100: 3 | D100: - | F100: Health Benefit Cost | G100: 12740 | H100: 12740
B101: In-State Private Sector | C101: 3 | D101: - | F101: Retirement Benefit Cost | G101: 10559.74091 | H101: 10511.86299
B102: Market Average | C102: 8 | D102: 80503.02977 | F102: Total Compensation | G102: 103802.7707 | H102: 106243.863
B103: 204 Agricultural Commodity Inspector 3 | F103: 204 Agricultural Commodity Inspector 3
B104: In-State Public Sector | C104: 0 | D104: - | F104: Base Pay Midpoint | G104: 62374.06785 | H104: 49560
B105: State Governments | C105: 12 | D105: 62374.06785 | F105: Health Benefit Cost | G105: 12740 | H105: 12740
B106: In-State Private Sector | C106: 0 | D106: - | F106: Retirement Benefit Cost | G106: 8234.615347 | H106: 6277.32709
B107: Market Average | C107: 12 | D107: 62374.06785 | F107: Total Compensation | G107: 83348.6832 | H107: 68577.32709
B108: 205 Grounds & Nursery Services Specialist 2 | F108: 205 Grounds & Nursery Services Specialist 2
B109: In-State Public Sector | C109: 16 | D109: 58537.08 | F109: Base Pay Midpoint | G109: 49449.54 | H109: 40938
B110: State Governments | C110: 0 | D110: - | F110: Health Benefit Cost | G110: 14332.5 | H110: 12740
B111: In-State Private Sector | C111: 3 | D111: - | F111: Retirement Benefit Cost | G111: 7605.118232 | H111: 5185.254568
B112: Market Average | C112: 19 | D112: 49449.54 | F112: Total Compensation | G112: 71387.15823 | H112: 58863.25457
B113: 206 Grain Inspector 1 | F113: 206 Grain Inspector 1
B114: In-State Public Sector | C114: 0 | D114: - | F114: Base Pay Midpoint | G114: 48750.58297 | H114: 49560
B115: State Governments | C115: 5 | D115: 48750.58297 | F115: Health Benefit Cost | G115: 14332.5 | H115: 12740
B116: In-State Private Sector | C116: 0 | D116: - | F116: Retirement Benefit Cost | G116: 5806.123778 | H116: 6277.32709
B117: Market Average | C117: 5 | D117: 48750.58297 | F117: Total Compensation | G117: 68889.20675 | H117: 68577.32709
B118: 207 Wildland Fire Operations Technician 2 | F118: 207 Wildland Fire Operations Technician 2
B119: In-State Public Sector | C119: 0 | D119: - | F119: Base Pay Midpoint | G119: 70667.79608 | H119: 52008
B120: State Governments | C120: 7 | D120: 70667.79608 | F120: Health Benefit Cost | G120: 12740 | H120: 12740
B121: In-State Private Sector | C121: 0 | D121: - | F121: Retirement Benefit Cost | G121: 9181.136886 | H121: 6587.393609
B122: Market Average | C122: 7 | D122: 70667.79608 | F122: Total Compensation | G122: 92588.93296 | H122: 71335.39361
B123: 208 Farmer 2 | F123: 208 Farmer 2
B124: In-State Public Sector | C124: 0 | D124: - | F124: Base Pay Midpoint | G124: - | H124: 40026
B125: State Governments | C125: 0 | D125: - | F125: Health Benefit Cost | G125: - | H125: 12740
B126: In-State Private Sector | C126: 1 | D126: - | F126: Retirement Benefit Cost | G126: - | H126: 5069.73959
B127: Market Average | C127: 1 | D127: - | F127: Total Compensation | G127: 0 | H127: 57835.73959
B128: Arts, Entertainment, or Recreation | F128: Arts, Entertainment, or Recreation
B129: Benchmark Job Title | C129: # of Data Points | D129: Base Pay Median Midpoint | F129: Benchmark Job Title | G129: Market Average | H129: State of Washington
B130: 300 Graphic Designer | F130: 300 Graphic Designer
B131: In-State Public Sector | C131: 14 | D131: 73715.2 | F131: Base Pay Midpoint | G131: 71801.1 | H131: 49560
B132: State Governments | C132: 0 | D132: - | F132: Health Benefit Cost | G132: 14332.5 | H132: 12740
B133: In-State Private Sector | C133: 5 | D133: 69887 | F133: Retirement Benefit Cost | G133: 9351.416618 | H133: 6277.32709
B134: Market Average | C134: 19 | D134: 71801.1 | F134: Total Compensation | G134: 95485.01662 | H134: 68577.32709
B135: 301 Recreation & Athletics Specialist 2 | F135: 301 Recreation & Athletics Specialist 2
B136: In-State Public Sector | C136: 10 | D136: 75055.0095 | F136: Base Pay Midpoint | G136: 68427.50475 | H136: 53304
B137: State Governments | C137: 0 | D137: - | F137: Health Benefit Cost | G137: 12740 | H137: 12740
B138: In-State Private Sector | C138: 3 | D138: - | F138: Retirement Benefit Cost | G138: 9505.397895 | H138: 6751.546473
B139: Market Average | C139: 13 | D139: 68427.50475 | F139: Total Compensation | G139: 90672.90265 | H139: 72795.54647
B140: 302 Sports Equipment Technician | F140: 302 Sports Equipment Technician
B141: In-State Public Sector | C141: 1 | D141: - | F141: Base Pay Midpoint | G141: - | H141: 37392
B142: State Governments | C142: 0 | D142: - | F142: Health Benefit Cost | G142: - | H142: 12740
B143: In-State Private Sector | C143: 1 | D143: - | F143: Retirement Benefit Cost | G143: - | H143: 4736.114095
B144: Market Average | C144: 2 | D144: - | F144: Total Compensation | G144: 0 | H144: 54868.11409
B145: 303 Preservation & Museum Specialist 3 | F145: 303 Preservation & Museum Specialist 3
B146: In-State Public Sector | C146: 1 | D146: - | F146: Base Pay Midpoint | G146: 81785.05078 | H146: 49560
B147: State Governments | C147: 10 | D147: 72321.65235 | F147: Health Benefit Cost | G147: 12740 | H147: 12740
B148: In-State Private Sector | C148: 4 | D148: - | F148: Retirement Benefit Cost | G148: 10877.07878 | H148: 6277.32709
B149: Market Average | C149: 15 | D149: 81785.05078 | F149: Total Compensation | G149: 105402.1296 | H149: 68577.32709
B150: 304 Sewing & Alterations Specialist 2 | F150: 304 Sewing & Alterations Specialist 2
B151: In-State Public Sector | C151: 0 | D151: - | F151: Base Pay Midpoint | G151: - | H151: 41880
B152: State Governments | C152: 0 | D152: - | F152: Health Benefit Cost | G152: - | H152: 12740
B153: In-State Private Sector | C153: 4 | D153: - | F153: Retirement Benefit Cost | G153: - | H153: 5304.569381
B154: Market Average | C154: 4 | D154: - | F154: Total Compensation | G154: 0 | H154: 59924.56938
B155: Construction | F155: Construction
B156: Benchmark Job Title | C156: # of Data Points | D156: Base Pay Median Midpoint | F156: Benchmark Job Title | G156: Market Average | H156: State of Washington
B157: 400 Highway Maintenance Worker 2 | F157: 400 Highway Maintenance Worker 2
B158: In-State Public Sector | C158: 11 | D158: 64594.4 | F158: Base Pay Midpoint | G158: 67581.7 | H158: 56976
B159: State Governments | C159: 0 | D159: - | F159: Health Benefit Cost | G159: 14332.5 | H159: 12740
B160: In-State Private Sector | C160: 3 | D160: - | F160: Retirement Benefit Cost | G160: 8181.601634 | H160: 7216.646252
B161: Market Average | C161: 14 | D161: 67581.7 | F161: Total Compensation | G161: 90095.80163 | H161: 76932.64625
B162: 401 Construction Project Coordinator 2 | F162: 401 Construction Project Coordinator 2
B163: In-State Public Sector | C163: 19 | D163: 106974 | F163: Base Pay Midpoint | G163: 109841 | H163: 75150
B164: State Governments | C164: 0 | D164: - | F164: Health Benefit Cost | G164: 14332.5 | H164: 12740
B165: In-State Private Sector | C165: 4 | D165: - | F165: Retirement Benefit Cost | G165: 13629.48622 | H165: 9518.586174
B166: Market Average | C166: 23 | D166: 109841 | F166: Total Compensation | G166: 137802.9862 | H166: 97408.58617
B167: 402 Construction & Maintenance Superintendent 2 | F167: 402 Construction & Maintenance Superintendent 2
B168: In-State Public Sector | C168: 12 | D168: 103869.5275 | F168: Base Pay Midpoint | G168: 95444.01375 | H168: 63258
B169: State Governments | C169: 0 | D169: - | F169: Health Benefit Cost | G169: 13536.25 | H169: 12740
B170: In-State Private Sector | C170: 4 | D170: - | F170: Retirement Benefit Cost | G170: 13081.90596 | H170: 8012.331659
B171: Market Average | C171: 16 | D171: 95444.01375 | F171: Total Compensation | G171: 122062.1697 | H171: 84010.33166
B172: 403 Carpenter | F172: 403 Carpenter
B173: In-State Public Sector | C173: 10 | D173: 80848.16 | F173: Base Pay Midpoint | G173: 73465.39414 | H173: 52770
B174: State Governments | C174: 0 | D174: - | F174: Health Benefit Cost | G174: 14332.5 | H174: 12740
B175: In-State Private Sector | C175: 4 | D175: - | F175: Retirement Benefit Cost | G175: 10473.26496 | H175: 6683.909413
B176: Market Average | C176: 14 | D176: 73465.39414 | F176: Total Compensation | G176: 98271.1591 | H176: 72193.90941
B177: 404 Painter | F177: 404 Painter
B178: In-State Public Sector | C178: 10 | D178: 78651.992 | F178: Base Pay Midpoint | G178: 68829.996 | H178: 52770
B179: State Governments | C179: 0 | D179: - | F179: Health Benefit Cost | G179: 13536.25 | H179: 12740
B180: In-State Private Sector | C180: 4 | D180: - | F180: Retirement Benefit Cost | G180: 10115.40716 | H180: 6683.909413
B181: Market Average | C181: 14 | D181: 68829.996 | F181: Total Compensation | G181: 92481.65316 | H181: 72193.90941
B182: 406 Electrician | F182: 406 Electrician
B183: In-State Public Sector | C183: 17 | D183: 85363.2 | F183: Base Pay Midpoint | G183: 81732.6 | H183: 64344
B184: State Governments | C184: 0 | D184: - | F184: Health Benefit Cost | G184: 14332.5 | H184: 12740
B185: In-State Private Sector | C185: 5 | D185: 78102 | F185: Retirement Benefit Cost | G185: 11996.59461 | H185: 8149.885679
B186: Market Average | C186: 22 | D186: 81732.6 | F186: Total Compensation | G186: 108061.6946 | H186: 85233.88568
B187: 407 Plumber/Pipefitter/Steamfitter | F187: 407 Plumber/Pipefitter/Steamfitter
B188: In-State Public Sector | C188: 11 | D188: 80680.32 | F188: Base Pay Midpoint | G188: 77007.66 | H188: 64344
B189: State Governments | C189: 0 | D189: - | F189: Health Benefit Cost | G189: 14332.5 | H189: 12740
B190: In-State Private Sector | C190: 4 | D190: - | F190: Retirement Benefit Cost | G190: 11974.1448 | H190: 8149.885679
B191: Market Average | C191: 15 | D191: 77007.66 | F191: Total Compensation | G191: 103314.3048 | H191: 85233.88568
B192: 408 Refrigeration Mechanic | F192: 408 Refrigeration Mechanic
B193: In-State Public Sector | C193: 9 | D193: 83480.5 | F193: Base Pay Midpoint | G193: 75700 | H193: 58266
B194: State Governments | C194: 0 | D194: - | F194: Health Benefit Cost | G194: 13536.25 | H194: 12740
B195: In-State Private Sector | C195: 4 | D195: - | F195: Retirement Benefit Cost | G195: 10812.20193 | H195: 7380.039149
B196: Market Average | C196: 13 | D196: 75700 | F196: Total Compensation | G196: 100048.4519 | H196: 78386.03915
B197: 409 Maintenance Mechanic 2 | F197: 409 Maintenance Mechanic 2
B198: In-State Public Sector | C198: 20 | D198: 76876.8 | F198: Base Pay Midpoint | G198: 69098.4 | H198: 59658
B199: State Governments | C199: 0 | D199: - | F199: Health Benefit Cost | G199: 14332.5 | H199: 12740
B200: In-State Private Sector | C200: 4 | D200: - | F200: Retirement Benefit Cost | G200: 9737.304665 | H200: 7556.351483
B201: Market Average | C201: 24 | D201: 69098.4 | F201: Total Compensation | G201: 93168.20467 | H201: 79954.35148
... 824 more rows

Sheet Pay Rates by Benchmark
C2: Base Salary | H2: Total Compensation
B3: Market Segment | C3: # of benchmark jobs | D3: The market average base salary | E3: The state’s average salary midpoint | F3: How much the state lags or leads in base salary $ | G3: How much the state lags or leads in base salary % | H3: The market average total compensation | I3: The state’s average total compensation | J3: How much the state lags or leads in total compensation $ | K3: How much the state lags or leads in total compensation % | N3: Comparison to Market by Headcount | W3: Medical Cost Benchmarks
A4: Administrative and Other Support Services | B4: Administrative and Other Support Services | C4: 15 | D4: 68699.92337 | E4: 52094.4 | F4: -16605.52337 | G4: -0.2417109446 | H4: 90580.01378 | I4: 71432.73713 | J4: -19147.27664 | K4: -0.2113852255
A5: Agriculture or Forest Services/Products | B5: Agriculture or Forest Services/Products | C5: 8 | D5: 61970.76271 | E5: 50628 | F5: -11342.76271 | G5: -0.1830340989 | H5: 84063.85641 | I5: 69780.60121 | J5: -14283.2552 | K5: -0.1699095879
A6: Arts, Entertainment, or Recreation | B6: Arts, Entertainment, or Recreation | C6: 3 | D6: 74004.55184 | E6: 50808 | F6: -23196.55184 | G6: -0.3134476362 | H6: 97186.68294 | I6: 69983.40022 | J6: -27203.28272 | K6: -0.2799075131
A7: Construction | B7: Construction | C7: 12 | D7: 79264.76551 | E7: 62806 | F7: -16458.76551 | G7: -0.2076428966 | H7: 104232.6718 | I7: 83501.08081 | J7: -20731.59098 | K7: -0.1988972423
A8: Educational or Library Services | B8: Educational or Library Services | C8: 5 | D8: 64731.37466 | E8: 57182.4 | F8: -7548.974659 | G8: -0.116620027 | H8: 86249.49576 | I8: 77165.18912 | J8: -9084.306644 | K8: -0.1053259102
A9: Finance or Insurance | B9: Finance or Insurance | C9: 14 | D9: 80426.3842 | E9: 66680.57143 | F9: -13745.81277 | G9: -0.1709117338 | H9: 104916.8442 | I9: 87866.40996 | J9: -17050.43429 | K9: -0.1625137928
A10: Health Care or Social Services | B10: Health Care or Social Services | C10: 35 | D10: 94140.9196 | E10: 80013.42857 | F10: -14127.49103 | G10: -0.1500674849 | H10: 118111.3359 | I10: 102888.0222 | J10: -15223.31369 | K10: -0.1288895225
A11: Hospitality, Accommodation, Food Services, Personal Services | B11: Hospitality, Accommodation, Food/Personal Services | C11: 3 | D11: 52372.63798 | E11: 47116 | F11: -5256.637979 | G11: -0.1003699295 | H11: 66276.75938 | I11: 65823.76721 | J11: -452.9921656 | K11: -0.006834856891
A12: Information Technology | B12: Information Technology | C12: 13 | D12: 96559.33639 | E12: 88171.84615 | F12: -8387.490236 | G12: -0.08686358616 | H12: 123246.2739 | I12: 112079.7945 | J12: -11166.47945 | K12: -0.09060297802
A13: Media or Communications | B13: Media or Communications | C13: 8 | D13: 74090.02037 | E13: 60421.5 | F13: -13668.52037 | G13: -0.1844853099 | H13: 97289.42345 | I13: 80814.55728 | J13: -16474.86617 | K13: -0.1693387172
A14: Professional, Scientific or Technical Services | B14: Professional, Scientific or Technical Services | C14: 32 | D14: 82480.77016 | E14: 64966.5 | F14: -17514.27016 | G14: -0.2123436787 | H14: 106737.2388 | I14: 85935.23225 | J14: -20802.0066 | K14: -0.1948898699
A15: Public Administration | B15: Public Administration | C15: 15 | D15: 79680.99928 | E15: 64020 | F15: -15660.99928 | G15: -0.1965462208 | H15: 103937.3206 | I15: 84868.84746 | J15: -19068.47309 | K15: -0.1834612725
A16: Real Estate | B16: Real Estate | C16: 1 | D16: 93352.395 | E16: 66432 | F16: -26920.395 | G16: -0.2883739084 | H16: 119706.3817 | I16: 87586.35418 | J16: -32120.02751 | K16: -0.2683234349
A17: Retail Trade | B17: Retail Trade | C17: 2 | D17: 57529.9393 | E17: 49122 | F17: -8407.939297 | G17: -0.1461489339 | H17: 79273.58663 | I17: 68083.8495 | J17: -11189.73713 | K17: -0.1411534107
A18: Transportation or Warehousing | B18: Transportation or Warehousing | C18: 9 | D18: 86611.0486 | E18: 66866.66667 | F18: -19744.38194 | G18: -0.2279660881 | H18: 109433.8759 | I18: 88076.07623 | J18: -21357.79963 | K18: -0.1951662541
A19: Utilities | B19: Utilities | C19: 6 | D19: 87412.3758 | E19: 69110 | F19: -18302.3758 | G19: -0.209379686 | H19: 112451.9566 | I19: 90603.55277 | J19: -21848.40381 | K19: -0.1942910064
B20: Overall Average | C20: 181 | D20: 77083.0128 | E20: 62277.45705 | F20: -14805.55575 | G20: -0.1920728732 | H20: 100230.8574 | I20: 82905.592 | J20: -17325.26536 | K20: -0.1728536083 | V20: Chart Data | AA20: Employer Cost | AB20: Employee Contributions | AC20: Employee OOP Costs
V21: Total of survey responses | AA21: 0.67 | AB21: 0.18 | AC21: 0.15
V22: In-state public employers and government | AA22: 0.71 | AB22: 0.18 | AC22: 0.11
B23: Administrative and Other Support Services | C23: Base Salary | H23: Total Compensation | V23: In-state private sector | AA23: 0.73 | AB23: 0.13 | AC23: 0.14
B24: Benchmark | C24: # of Matches | D24: The market average base salary | E24: The state’s average salary midpoint | F24: How much the state lags or leads in base salary $ | G24: How much the state lags or leads in base salary % | H24: The market average total compensation | I24: The state’s average total compensation | J24: How much the state lags or leads in total compensation $ | K24: How much the state lags or leads in total compensation % | N24: By Headcount | O24: Total Compensation vs. Market | P24: Midpoint vs. Market | Q24: For Formula | V24: State employee health care plan | AA24: 0.78 | AB24: 0.14 | AC24: 0.08
A25: 100 | B25: Secretary Senior | C25: 28 | D25: 60843.3 | E25: 41880 | F25: -18963.3 | G25: -0.3116744161 | H25: 83245.88915 | I25: 59924.56938 | J25: -23321.31977 | K25: -0.2801498069 | N25: Significantly behind the market by 25-50% | O25: 12627 | P25: 13850 | Q25: -0.5 | S25: 0.2660163903 | T25: 0.2914133019
A26: 101 | B26: PBX & Telephone Operator | C26: 5 | D26: 47939 | E26: 40938 | F26: -7001 | G26: -0.1460397589 | H26: 54350.27597 | I26: 58863.25457 | J26: 4512.978595 | K26: 0.08303506311 | N26: Slightly behind the market by 0-25% | O26: 32275 | P26: 29402 | Q26: -0.25 | S26: 0.6799460678 | T26: 0.6186378269
A27: 102 | B27: Customer Service Specialist 2 | C27: 19 | D27: 54370.25 | E27: 43914 | F27: -10456.25 | G27: -0.1923156506 | H27: 76351.69274 | I27: 62216.19818 | J27: -14135.49456 | K27: -0.185136623 | N27: Slightly ahead of the market by 0-25% | O27: 2560 | P27: 4275 | Q27: 0 | S27: 0.05393220553 | T27: 0.08994887117
A28: 103 | B28: Administrative Assistant 3 | C28: 30 | D28: 67772.165 | E28: 47238 | F28: -20534.165 | G28: -0.3029881811 | H28: 90812.28156 | I28: 65961.21988 | J28: -24851.06169 | K28: -0.2736530925 | N28: Significantly ahead of the market by 25-50% | O28: 5 | P28: 0 | Q28: 0.25
A29: 104 | B29: Program Specialist 2 | C29: 22 | D29: 71120.25098 | E29: 49560 | F29: -21560.25098 | G29: -0.3031520654 | H29: 94916.60243 | I29: 68577.32709 | J29: -26339.27534 | K29: -0.2774991378 | N29: For Formula | O29: 47467 | P29: 47527 | Q29: 0.5
A30: 105 | B30: Management Analyst 3 | C30: 16 | D30: 91841.75 | E30: 66432 | F30: -25409.75 | G30: -0.2766688353 | H30: 118048.6641 | I30: 87586.35418 | J30: -30462.30991 | K30: -0.2580487474
A31: 106 | B31: Events Coordinator 3 | C31: 14 | D31: 75942.75 | E31: 46074 | F31: -29868.75 | G31: -0.3933061418 | H31: 97594.06477 | I31: 64649.78629 | J31: -32944.27848 | K31: -0.3375643648
A32: 107 | B32: Forms & Records Analyst 2 | C32: 14 | D32: 61804.75 | E32: 49560 | F32: -12244.75 | G32: -0.1981198856 | H32: 85253.05369 | I32: 68577.32709 | J32: -16675.7266 | K32: -0.1956026896 | N32: Comparison to Market by Benchmark Job | V32: Medical Cost Benchmarks
A33: 108 | B33: Mail Carrier-Driver | C33: 12 | D33: 46196.5 | E33: 37392 | F33: -8804.5 | G33: -0.1905880316 | H33: 66473.3031 | I33: 54868.11409 | J33: -11605.189 | K33: -0.1745842084
A34: 109 | B34: Procurement & Supply Specialist 3 | C34: 19 | D34: 74930.625 | E34: 61710 | F34: -13220.625 | G34: -0.1764382053 | H34: 99374.51707 | I34: 82266.26018 | J34: -17108.25688 | K34: -0.1721593965
A35: 110 | B35: Human Resource Consultant 2 | C35: 30 | D35: 80800.14625 | E35: 64800 | F35: -16000.14625 | G35: -0.1980212536 | H35: 105867.2166 | I35: 85747.64317 | J35: -20119.57344 | K35: -0.1900453614
A36: 111 | B36: Industrial Relations Agent 2 | C36: 13 | D36: 90348.53869 | E36: 61710 | F36: -28638.53869 | G36: -0.3169784382 | H36: 113029.1833 | I36: 82266.26018 | J36: -30762.92315 | K36: -0.272167968
A37: 112 | B37: Custodian 2 | C37: 28 | D37: 47639.428 | E37: 40938 | F37: -6701.428 | G37: -0.140669783 | H37: 68148.20034 | I37: 58863.25457 | J37: -9284.945774 | K37: -0.1362463825
A38: 113 | B38: Grant & Contract Coordinator | C38: 20 | D38: 73087.03375 | E38: 55890 | F38: -17197.03375 | G38: -0.2352952756 | H38: 97343.86364 | I38: 75709.09223 | J38: -21634.7714 | K38: -0.2222510038
A39: 114 | B39: Technical Training Consultant | C39: 8 | D39: 85862.36292 | E39: 73380 | F39: -12482.36292 | G39: -0.1453764198 | H39: 107891.3982 | I39: 95414.39592 | J39: -12477.00224 | K39: -0.115644087
B40: Average | D40: 68699.92337 | E40: 52094.4 | F40: -16605.52337 | G40: -0.2417109446 | H40: 90580.01378 | I40: 71432.73713 | J40: -19147.27664 | K40: -0.2113852255
B42: Agriculture or Forest Services/Products | C42: Base Salary | H42: Total Compensation
B43: Benchmark | C43: # of Matches | D43: The market average base salary | E43: The state’s average salary midpoint | F43: How much the state lags or leads in base salary $ | G43: How much the state lags or leads in base salary % | H43: The market average total compensation | I43: The state’s average total compensation | J43: How much the state lags or leads in total compensation $ | K43: How much the state lags or leads in total compensation %
A44: 200 | B44: Forest Cruiser & Craft Technician | C44: 7 | D44: 70899.75488 | E44: 51636 | F44: -19263.75488 | G44: -0.2717041112 | H44: 93392.43114 | I44: 70916.27566 | J44: -22476.15548 | K44: -0.2406635656
A45: 201 | B45: Forest Crew Supervisor 1 | C45: 9 | D45: 65027.42195 | E45: 40938 | F45: -24089.42195 | G45: -0.3704502075 | H45: 90432.15781 | I45: 58863.25457 | J45: -31568.90324 | K45: -0.3490893506
A46: 202 | B46: Forest Nursery Laborer | C46: 10 | D46: 48093.90816 | E46: 37392 | F46: -10701.90816 | G46: -0.2225210753 | H46: 68669.51049 | I46: 54868.11409 | J46: -13801.3964 | K46: -0.200982886
A47: 203 | B47: Horticulturist | C47: 8 | D47: 80503.02977 | E47: 82992 | F47: 2488.970233 | G47: 0.03091772123 | H47: 103802.7707 | I47: 106243.863 | J47: 2441.092314 | K47: 0.02351663928
A48: 204 | B48: Agricultural Commodity Inspector 3 | C48: 12 | D48: 62374.06785 | E48: 49560 | F48: -12814.06785 | G48: -0.2054390276 | H48: 83348.6832 | I48: 68577.32709 | J48: -14771.35611 | K48: -0.177223629
A49: 205 | B49: Grounds & Nursery Services Specialist 2 | C49: 19 | D49: 49449.54 | E49: 40938 | F49: -8511.54 | G49: -0.172125767 | H49: 71387.15823 | I49: 58863.25457 | J49: -12523.90366 | K49: -0.1754363666
A50: 206 | B50: Grain Inspector 1 | C50: 5 | D50: 48750.58297 | E50: 49560 | F50: 809.4170306 | G50: 0.01660322772 | H50: 68889.20675 | I50: 68577.32709 | J50: -311.8796574 | K50: -0.004527264461
A51: 207 | B51: Wildland Fire Operations Technician 2 | C51: 7 | D51: 70667.79608 | E51: 52008 | F51: -18659.79608 | G51: -0.264049498 | H51: 92588.93296 | I51: 71335.39361 | J51: -21253.53936 | K51: -0.2295472977
A52: 208 | B52: Farmer 2 | C52: 1 | D52: - | E52: - | F52: -- | G52: -- | H52: - | I52: - | J52: -- | K52: -- | AC52: All the groups combined | AD52: Government / public sector / education | AE52: Private sector | AF52: State employee health care coverage
B53: Average | D53: 61970.76271 | E53: 50628 | F53: -11342.76271 | G53: -0.1830340989 | H53: 84063.85641 | I53: 69780.60121 | J53: -14283.2552 | K53: -0.1699095879 | W53: Single employee | AC53: 0.19 | AD53: 0.15 | AE53: 0.12 | AF53: 0.15
W54: Employee sharing family plan with a spouse/children (dependent) | AC54: 0.28 | AD54: 0.29 | AE54: 0.35 | AF54: 0.15
B55: Arts, Entertainment, or Recreation | C55: Base Salary | H55: Total Compensation | N55: By Job | O55: Total Compensation vs. Market | P55: Midpoint vs. Market | Q55: For Formula | W55: Overall comparison against market | AC55: 0.22 | AD55: 0.19 | AE55: 0.18 | AF55: 0.15
B56: Benchmark | C56: # of Matches | D56: The market average base salary | E56: The state’s average salary midpoint | F56: How much the state lags or leads in base salary $ | G56: How much the state lags or leads in base salary % | H56: The market average total compensation | I56: The state’s average total compensation | J56: How much the state lags or leads in total compensation $ | K56: How much the state lags or leads in total compensation % | N56: Significantly behind the market by 25-50% | O56: 41 | P56: 52 | Q56: -0.5
A57: 300 | B57: Graphic Designer | C57: 19 | D57: 71801.1 | E57: 49560 | F57: -22241.1 | G57: -0.3097598783 | H57: 95485.01662 | I57: 68577.32709 | J57: -26907.68953 | K57: -0.2818001241 | N57: Slightly behind the market by 0-25% | O57: 125 | P57: 115 | Q57: -0.25
A58: 301 | B58: Recreation & Athletics Specialist 2 | C58: 13 | D58: 68427.50475 | E58: 53304 | F58: -15123.50475 | G58: -0.2210149969 | H58: 90672.90265 | I58: 72795.54647 | J58: -17877.35617 | K58: -0.1971631618 | N58: Slightly ahead of the market by 0-25% | O58: 13 | P58: 14 | Q58: 0
A59: 302 | B59: Sports Equipment Technician | C59: 2 | D59: - | E59: - | F59: -- | G59: -- | H59: - | I59: - | J59: -- | K59: -- | N59: Significantly ahead of the market by 25-50% | O59: 1 | P59: 0 | Q59: 0.25
A60: 303 | B60: Preservation & Museum Specialist 3 | C60: 15 | D60: 81785.05078 | E60: 49560 | F60: -32225.05078 | G60: -0.3940212848 | H60: 105402.1296 | I60: 68577.32709 | J60: -36824.80247 | K60: -0.3493743687 | N60: For Formula | Q60: 0.5
A61: 304 | B61: Sewing & Alterations Specialist 2 | C61: 4 | D61: - | E61: - | F61: -- | G61: -- | H61: - | I61: - | J61: -- | K61: --
B62: Average | D62: 74004.55184 | E62: 50808 | F62: -23196.55184 | G62: -0.3134476362 | H62: 97186.68294 | I62: 69983.40022 | J62: -27203.28272 | K62: -0.2799075131
B64: Construction | C64: Base Salary | H64: Total Compensation
B65: Benchmark | C65: # of Matches | D65: The market average base salary | E65: The state’s average salary midpoint | F65: How much the state lags or leads in base salary $ | G65: How much the state lags or leads in base salary % | H65: The market average total compensation | I65: The state’s average total compensation | J65: How much the state lags or leads in total compensation $ | K65: How much the state lags or leads in total compensation %
A66: 400 | B66: Highway Maintenance Worker 2 | C66: 14 | D66: 67581.7 | E66: 56976 | F66: -10605.7 | G66: -0.1569315362 | H66: 90095.80163 | I66: 76932.64625 | J66: -13163.15538 | K66: -0.1461017622
A67: 401 | B67: Construction Project Coordinator 2 | C67: 23 | D67: 109841 | E67: 75150 | F67: -34691 | G67: -0.3158292441 | H67: 137802.9862 | I67: 97408.58617 | J67: -40394.40004 | K67: -0.2931315289
A68: 402 | B68: Construction & Maintenance Superintendent 2 | C68: 16 | D68: 95444.01375 | E68: 63258 | F68: -32186.01375 | G68: -0.3372240174 | H68: 122062.1697 | I68: 84010.33166 | J68: -38051.83805 | K68: -0.3117414522
A69: 403 | B69: Carpenter | C69: 14 | D69: 73465.39414 | E69: 52770 | F69: -20695.39414 | G69: -0.2817026218 | H69: 98271.1591 | I69: 72193.90941 | J69: -26077.24969 | K69: -0.2653601517
A70: 404 | B70: Painter | C70: 14 | D70: 68829.996 | E70: 52770 | F70: -16059.996 | G70: -0.2333284459 | H70: 92481.65316 | I70: 72193.90941 | J70: -20287.74374 | K70: -0.2193704702
A71: 406 | B71: Electrician | C71: 22 | D71: 81732.6 | E71: 64344 | F71: -17388.6 | G71: -0.2127498697 | H71: 108061.6946 | I71: 85233.88568 | J71: -22827.80893 | K71: -0.2112479266
A72: 407 | B72: Plumber/Pipefitter/Steamfitter | C72: 15 | D72: 77007.66 | E72: 64344 | F72: -12663.66 | G72: -0.1644467576 | H72: 103314.3048 | I72: 85233.88568 | J72: -18080.41912 | K72: -0.1750040245
A73: 408 | B73: Refrigeration Mechanic | C73: 13 | D73: 75700 | E73: 58266 | F73: -17434 | G73: -0.2303038309 | H73: 100048.4519 | I73: 78386.03915 | J73: -21662.41278 | K73: -0.2165192201
A74: 409 | B74: Maintenance Mechanic 2 | C74: 24 | D74: 69098.4 | E74: 59658 | F74: -9440.4 | G74: -0.1366225557 | H74: 93168.20467 | I74: 79954.35148 | J74: -13213.85318 | K74: -0.1418279254
A75: 410 | B75: Welder - Fabricator | C75: 11 | D75: 70336.74723 | E75: 58266 | F75: -12070.74723 | G75: -0.1716136686 | H75: 95843.37838 | I75: 78386.03915 | J75: -17457.33923 | K75: -0.1821444478
A76: 411 | B76: Equipment Operator 2 | C76: 20 | D76: 74424 | E76: 56838 | F76: -17586 | G76: -0.2362947436 | H76: 96898.65847 | I76: 76777.16701 | J76: -20121.49146 | K76: -0.2076550055
A77: 412 | B77: Electrical Construction Inspector | C77: 15 | D77: 87715.67497 | E77: 91032 | F77: 3316.325034 | G77: 0.03780766705 | H77: 112743.5989 | I77: 115302.2187 | J77: 2558.619864 | K77: 0.02269414752
B78: Average | D78: 79264.76551 | E78: 62806 | F78: -16458.76551 | G78: -0.2076428966 | H78: 104232.6718 | I78: 83501.08081 | J78: -20731.59098 | K78: -0.1988972423
B80: Education or Library Services | C80: Base Salary | H80: Total Compensation
B81: Benchmark | C81: # of Matches | D81: The market average base salary | E81: The state’s average salary midpoint | F81: How much the state lags or leads in base salary $ | G81: How much the state lags or leads in base salary % | H81: The market average total compensation | I81: The state’s average total compensation | J81: How much the state lags or leads in total compensation $ | K81: How much the state lags or leads in total compensation %
A82: 500 | B82: Vocational Education Program Specialist | C82: 7 | D82: 71237.8068 | E82: 77082 | F82: 5844.193201 | G82: 0.08203780357 | H82: 92470.635 | I82: 99585.29554 | J82: 7114.660539 | K82: 0.0769396743
A83: 501 | B83: Instruction & Classroom Support Technician 1 | C83: 9 | D83: 48355.66485 | E83: 46074 | F83: -2281.664848 | G83: -0.04718505794 | H83: 67566.75031 | I83: 64649.78629 | J83: -2916.964025 | K83: -0.04317158975
A84: 502 | B84: Early Childhood Program Specialist 3 | C84: 8 | D84: 57702.21012 | E84: 49560 | F84: -8142.210121 | G84: -0.1411074221 | H84: 80244.56223 | I84: 68577.32709 | J84: -11667.23514 | K84: -0.1453959597
A85: 503 | B85: Deaf Interpreter 3 | C85: 10 | D85: 66075.99153 | E85: 55890 | F85: -10185.99153 | G85: -0.1541557121 | H85: 86026.27128 | I85: 75709.09223 | J85: -10317.17905 | K85: -0.1199305618
A86: 505 | B86: Library & Archival Professional 2 | C86: 13 | D86: 80285.2 | E86: 57306 | F86: -22979.2 | G86: -0.286219627 | H86: 104939.26 | I86: 77304.44443 | J86: -27634.81555 | K86: -0.2633410561
B87: Average | D87: 64731.37466 | E87: 57182.4 | F87: -7548.974659 | G87: -0.116620027 | H87: 86249.49576 | I87: 77165.18912 | J87: -9084.306644 | K87: -0.1053259102
B89: Finance or Insurance | C89: Base Salary | H89: Total Compensation
B90: Benchmark | C90: # of Matches | D90: The market average base salary | E90: The state’s average salary midpoint | F90: How much the state lags or leads in base salary $ | G90: How much the state lags or leads in base salary % | H90: The market average total compensation | I90: The state’s average total compensation | J90: How much the state lags or leads in total compensation $ | K90: How much the state lags or leads in total compensation %
A91: 600 | B91: Actuary 2 | C91: 15 | D91: 107261.5136 | E91: 123198 | F91: 15936.4864 | G91: 0.1485759978 | H91: 137991.5065 | I91: 151542.4016 | J91: 13550.89504 | K91: 0.09820093554
A92: 601 | B92: Financial Legal Examiner 2 | C92: 5 | D92: 89154.20971 | E92: 80970 | F92: -8184.209709 | G92: -0.09179835406 | H92: 115091.359 | I92: 103965.7541 | J92: -11125.60486 | K92: -0.09666759484
A93: 602 | B93: Industrial Insurance Appeals Judge 3 | C93: 6 | D93: 121554.3557 | E93: 98676 | F93: -22878.35566 | G93: -0.1882150215 | H93: 150086.6577 | I93: 123914.4166 | J93: -26172.24105 | K93: -0.1743808641
A94: 603 | B94: Contracts Specialist 2 | C94: 25 | D94: 86190.5 | E94: 64800 | F94: -21390.5 | G94: -0.2481770033 | H94: 111862.1124 | I94: 85747.64317 | J94: -26114.46919 | K94: -0.2334523159
A95: 604 | B95: Budget Analyst 2 | C95: 30 | D95: 91148.69196 | E95: 60228 | F95: -30920.69196 | G95: -0.3392335237 | H95: 118155.357 | I95: 80596.54834 | J95: -37558.80861 | K95: -0.317876477
A96: 605 | B96: Fiscal Technician 2 | C96: 28 | D96: 56617.5 | E96: 40938 | F96: -15679.5 | G96: -0.2769373427 | H96: 78838.32562 | I96: 58863.25457 | J96: -19975.07105 | K96: -0.2533675201
A97: 606 | B97: Cashier 2 | C97: 14 | D97: 45434 | E97: 39030 | F97: -6404 | G97: -0.1409517102 | H97: 64965.60301 | I97: 56713.58507 | J97: -8252.017932 | K97: -0.1270213398
A98: 607 | B98: Auditor 2 | C98: 30 | D98: 81261.05138 | E98: 49560 | F98: -31701.05138 | G98: -0.3901137241 | H98: 106743.2367 | I98: 68577.32709 | J98: -38165.9096 | K98: -0.3575487383
A99: 608 | B99: Audit Specialist - Dot 2 | C99: 12 | D99: 86279.11305 | E99: 57306 | F99: -28973.11305 | G99: -0.3358068022 | H99: 110461.8336 | I99: 77304.44443 | J99: -33157.38919 | K99: -0.3001705486
A100: 609 | B100: Financial Examiner 3 | C100: 22 | D100: 97492.42982 | E100: 89364 | F100: -8128.429825 | G100: -0.08337498449 | H100: 123917.3772 | I100: 113422.9479 | J100: -10494.42926 | K100: -0.0846889234
A101: 610 | B101: Public Benefits Specialist 3 | C101: 12 | D101: 69132.51073 | E101: 58734 | F101: -10398.51073 | G101: -0.1504141919 | H101: 90957.0526 | I101: 78913.31657 | J101: -12043.73603 | K101: -0.132411239
A102: 611 | B102: Tax Information Specialist 1 | C102: 16 | D102: 58449.35238 | E102: 47238 | F102: -11211.35238 | G102: -0.1918131155 | H102: 78548.5663 | I102: 65961.21988 | J102: -12587.34642 | K102: -0.1602492192
A103: 612 | B103: Revenue Agent 2 | C103: 17 | D103: 62625.34958 | E103: 60228 | F103: -2397.349583 | G103: -0.03828081758 | H103: 85286.37088 | I103: 80596.54834 | J103: -4689.822534 | K103: -0.0549891206
A104: 613 | B104: Support Enforcement Officer 2 | C104: 13 | D104: 73368.80089 | E104: 63258 | F104: -10110.80089 | G104: -0.137807907 | H104: 95930.46105 | I104: 84010.33166 | J104: -11920.12939 | K104: -0.1242580226
B105: Average | D105: 80426.3842 | E105: 66680.57143 | F105: -13745.81277 | G105: -0.1709117338 | H105: 104916.8442 | I105: 87866.40996 | J105: -17050.43429 | K105: -0.1625137928
B107: Health Care or Social Services | C107: Base Salary | H107: Total Compensation
B108: Benchmark | C108: # of Matches | D108: The market average base salary | E108: The state’s average salary midpoint | F108: How much the state lags or leads in base salary $ | G108: How much the state lags or leads in base salary % | H108: The market average total compensation | I108: The state’s average total compensation | J108: How much the state lags or leads in total compensation $ | K108: How much the state lags or leads in total compensation %
A109: 700 | B109: Clinical/Medical Technologist 2 | C109: 17 | D109: 72179.49835 | E109: 63258 | F109: -8921.498351 | G109: -0.1236015566 | H109: 94100.32572 | I109: 84010.33166 | J109: -10089.99406 | K109: -0.1072259207
A110: 701 | B110: Laboratory Technician 3 | C110: 15 | D110: 61509.68669 | E110: 60228 | F110: -1281.686686 | G110: -0.02083715192 | H110: 82387.36685 | I110: 80596.54834 | J110: -1790.818504 | K110: -0.02173656681
A111: 703 | B111: Mental Health Practitioner | C111: 14 | D111: 78589.01825 | E111: 69864 | F111: -8725.018246 | G111: -0.1110208327 | H111: 102935.7573 | I111: 91453.05528 | J111: -11482.70207 | K111: -0.1115521211
A112: 704 | B112: Psychiatric Child Care Counselor 1 | C112: 10 | D112: 85430.31702 | E112: 58734 | F112: -26696.31702 | G112: -0.312492309 | H112: 110386.8582 | I112: 78913.31657 | J112: -31473.54167 | K112: -0.2851203682
A113: 705 | B113: Social Worker 2 - Academic Medical Centers | C113: 12 | D113: 81976.01171 | E113: 68112 | F113: -13864.01171 | G113: -0.1691227887 | H113: 106750.286 | I113: 89479.14493 | J113: -17271.14102 | K113: -0.1617901148
A114: 706 | B114: Residential Rehabilitation Counselor 2 | C114: 10 | D114: 57736.83545 | E114: 55890 | F114: -1846.835453 | G114: -0.03198712638 | H114: 80329.01783 | I114: 75709.09223 | J114: -4619.925597 | K114: -0.05751253684
A115: 707 | B115: Psychology Associate | C115: 13 | D115: 104381.7294 | E115: 93912 | F115: -10469.72942 | G115: -0.100302318 | H115: 132333.6761 | I115: 118547.0029 | J115: -13786.67327 | K115: -0.1041811402
A116: 708 | B116: Social Service Specialist 2 | C116: 20 | D116: 74224.63159 | E116: 69864 | F116: -4360.631585 | G116: -0.05874911727 | H116: 97638.4961 | I116: 91453.05528 | J116: -6185.440816 | K116: -0.06335043106
A117: 709 | B117: Vocational Rehabilitation Counselor 3 | C117: 14 | D117: 73887.26063 | E117: 64800 | F117: -9087.260634 | G117: -0.1229881925 | H117: 96652.29485 | I117: 85747.64317 | J117: -10904.65169 | K117: -0.1128235155
A118: 710 | B118: Attendant Counselor 2 | C118: 11 | D118: 49834.60631 | E118: 50766 | F118: 931.3936893 | G118: 0.01868969695 | H118: 70258.4453 | I118: 69936.08045 | J118: -322.36485 | K118: -0.004588271895
A119: 711 | B119: Adult Training Specialist 2 | C119: 9 | D119: 72787.9364 | E119: 49560 | F119: -23227.9364 | G119: -0.3191179411 | H119: 95852.50629 | I119: 68577.32709 | J119: -27275.1792 | K119: -0.2845536362
A120: 712 | B120: Medical Transcriptionist 2 | C120: 5 | D120: 48817 | E120: 43914 | F120: -4903 | G120: -0.1004363234 | H120: 48817 | I120: 62216.19818 | J120: 13399.19818 | K120: 0.2744781158
A121: 713 | B121: Health Services Consultant 2 | C121: 17 | D121: 75270.93779 | E121: 61710 | F121: -13560.93779 | G121: -0.1801616692 | H121: 98692.96816 | I121: 82266.26018 | J121: -16426.70798 | K121: -0.1664425367
A122: 714 | B122: Public Health Advisor 2 | C122: 8 | D122: 84123.08708 | E122: 64800 | F122: -19323.08708 | G122: -0.2297001661 | H122: 108862.6313 | I122: 85747.64317 | J122: -23114.98812 | K122: -0.2123317051
A123: 715 | B123: Patient Services Coordinator | C123: 4 | D123: - | E123: - | F123: -- | G123: -- | H123: - | I123: - | J123: -- | K123: --
A124: 716 | B124: Registered Nurse 2 | C124: 10 | D124: 92881.87 | E124: 106386 | F124: 13504.13 | G124: 0.145390376 | H124: 118301.2326 | I124: 132600.9742 | J124: 14299.74159 | K124: 0.1208756771
A125: 717 | B125: Licensed Practical Nurse 2 | C125: 7 | D125: 70206.425 | E125: 68112 | F125: -2094.425 | G125: -0.02983238357 | H125: 89489.15536 | I125: 89479.14493 | J125: -10.01043052 | K125: -0.0001118619399
A126: 718 | B126: Nursing Assistant | C126: 6 | D126: 69081.5 | E126: 49560 | F126: -19521.5 | G126: -0.2825865101 | H126: 95682.9066 | I126: 68577.32709 | J126: -27105.57951 | K126: -0.2832854945
A127: 719 | B127: Dentist | C127: 20 | D127: 185468.0499 | E127: 150126 | F127: -35342.0499 | G127: -0.190556001 | H127: 221201.0973 | I127: 181881.1333 | J127: -39319.96396 | K127: -0.1777566406
A128: 720 | B128: Physician 2 | C128: 18 | D128: 248536.3048 | E128: 172356 | F128: -76180.30477 | G128: -0.3065158019 | H128: 294729.4683 | I128: 206926.8109 | J128: -87802.65737 | K128: -0.2979093264
A129: 721 | B129: Psychiatrist | C129: 17 | D129: 240367.7577 | E129: 226152 | F129: -14215.75767 | G129: -0.0591416994 | H129: 285746.4614 | I129: 267536.6747 | J129: -18209.7867 | K129: -0.06372707684
A130: 722 | B130: Advanced Registered Nurse Practitioner | C130: 6 | D130: 134138.7253 | E130: 143076 | F130: 8937.274658 | G130: 0.06662710292 | H130: 163558.9738 | I130: 173938.1721 | J130: 10379.19832 | K130: 0.06345844607
A131: 723 | B131: Dental Hygienist 2 | C131: 17 | D131: 90221.68745 | E131: 75150 | F131: -15071.68745 | G131: -0.1670517131 | H131: 112857.01 | I131: 97408.58617 | J131: -15448.42381 | K131: -0.1368849291
A132: 724 | B132: Pharmacist 3 | C132: 5 | D132: 148143.432 | E132: 113478 | F132: -34665.432 | G132: -0.2339991151 | H132: 179342.6322 | I132: 140591.2551 | J132: -38751.37713 | K132: -0.2160745421
A133: 725 | B133: Pharmacy Technician 2 | C133: 6 | D133: 54777.1 | E133: 64800 | F133: 10022.9 | G133: 0.1829760977 | H133: 75376.95695 | I133: 85747.64317 | J133: 10370.68621 | K133: 0.1375843047
A134: 728 | B134: Imaging Technologist 2 | C134: 5 | D134: 77209.6 | E134: 57306 | F134: -19903.6 | G134: -0.2577865965 | H134: 77209.6 | I134: 77304.44443 | J134: 94.84443496 | K134: 0.001228402102
A135: 729 | B135: Diagnostic Medical Sonographer | C135: 4 | D135: - | E135: - | F135: -- | G135: -- | H135: - | I135: - | J135: -- | K135: --
A136: 730 | B136: Radiation Therapy Dosimetrist | C136: 3 | D136: - | E136: - | F136: -- | G136: -- | H136: - | I136: - | J136: -- | K136: --
A137: 731 | B137: Toxicologist 2 | C137: 7 | D137: 105854.7118 | E137: 87192 | F137: -18662.71176 | G137: -0.1763049698 | H137: 134307.8214 | I137: 110975.8399 | J137: -23331.98156 | K137: -0.1737201997
A138: 732 | B138: Epidemiologist 1 | C138: 19 | D138: 88699.83709 | E138: 79002 | F138: -9697.837089 | G138: -0.1093332007 | H138: 113000.1576 | I138: 101748.485 | J138: -11251.67268 | K138: -0.0995721857
A139: 734 | B139: Occupational Therapist 3 | C139: 16 | D139: 92201.22677 | E139: 69864 | F139: -22337.22677 | G139: -0.2422660474 | H139: 118082.9665 | I139: 91453.05528 | J139: -26629.9112 | K139: -0.2255186501
A140: 735 | B140: Physical Therapist 2 | C140: 15 | D140: 96258.06528 | E140: 69864 | F140: -26394.06528 | G140: -0.2742010782 | H140: 122596.3567 | I140: 91453.05528 | J140: -31143.30141 | K140: -0.2540312147
A141: 736 | B141: Physical Therapy Assistant 2 | C141: 5 | D141: 72300 | E141: 58734 | F141: -13566 | G141: -0.1876348548 | H141: 72300 | I141: 78913.31657 | J141: 6613.316571 | K141: 0.091470492
A142: 737 | B142: Speech Pathologist/Audiologist Specialist 1 | C142: 14 | D142: 90662.34982 | E142: 80970 | F142: -9692.349824 | G142: -0.1069060072 | H142: 116527.9219 | I142: 103965.7541 | J142: -12562.16774 | K142: -0.1078039283
A143: 738 | B143: Respiratory Care Specialist | C143: 3 | D143: - | E143: - | F143: -- | G143: -- | H143: - | I143: - | J143: -- | K143: --
A144: 739 | B144: Orthopaedic Technician 1 | C144: 3 | D144: - | E144: - | F144: -- | G144: -- | H144: - | I144: - | J144: -- | K144: --
A145: 740 | B145: Dietitian 1 | C145: 7 | D145: 77610.504 | E145: 63258 | F145: -14352.504 | G145: -0.1849299162 | H145: 101700.2895 | I145: 84010.33166 | J145: -17689.95787 | K145: -0.17394206
A146: 741 | B146: Hospital Central Services Technician 1 | C146: 4 | D146: - | E146: - | F146: -- | G146: -- | H146: - | I146: - | J146: -- | K146: --
A147: 742 | B147: Histotechnologist | C147: 4 | D147: - | E147: - | F147: -- | G147: -- | H147: - | I147: - | J147: -- | K147: --
A148: 743 | B148: Clinical Cytogenetic Technologist | C148: 7 | D148: 75385.59924 | E148: 61710 | F148: -13675.59924 | G148: -0.1814086427 | H148: 98335.65152 | I148: 82266.26018 | J148: -16069.39134 | K148: -0.1634136866
A149: 745 | B149: Optician, Licensed - Dispensing | C149: 5 | D149: 88873.96512 | E149: 54582 | F149: -34291.96512 | G149: -0.3858493888 | H149: 119429.3956 | I149: 74235.41944 | J149: -45193.97614 | K149: -0.3784158491
A150: 746 | B150: Anesthesiology Technician 2 | C150: 3 | D150: - | E150: - | F150: -- | G150: -- | H150: - | I150: - | J150: -- | K150: --
A151: 748 | B151: Electrocardiograph Technician 2 | C151: 3 | D151: - | E151: - | F151: -- | G151: -- | H151: - | I151: - | J151: -- | K151: --
A152: 749 | B152: Research Technologist 2 | C152: 3 | D152: - | E152: - | F152: -- | G152: -- | H152: - | I152: - | J152: -- | K152: --
A153: 753 | B153: Psychiatric Social Worker 2 | C153: 4 | D153: - | E153: - | F153: -- | G153: -- | H153: - | I153: - | J153: -- | K153: --
A154: 754 | B154: Developmental Disability Case/Resource Manager | C154: 11 | D154: 75304.91813 | E154: 73380 | F154: -1924.918132 | G154: -0.02556165227 | H154: 98123.07278 | I154: 95414.39592 | J154: -2708.67686 | K154: -0.02760489234
A155: 755 | B155: Worksource Specialist 4 | C155: 3 | D155: - | E155: - | F155: -- | G155: -- | H155: - | I155: - | J155: -- | K155: --
B156: Average | D156: 94140.9196 | E156: 80013.42857 | F156: -14127.49103 | G156: -0.1500674849 | H156: 118111.3359 | I156: 102888.0222 | J156: -15223.31369 | K156: -0.1288895225
B158: Hospitality, Accommodation, Food Services, or Personal Services | C158: Base Salary | H158: Total Compensation
B159: Benchmark | C159: # of Matches | D159: The market average base salary | E159: The state’s average salary midpoint | F159: How much the state lags or leads in base salary $ | G159: How much the state lags or leads in base salary % | H159: The market average total compensation | I159: The state’s average total compensation | J159: How much the state lags or leads in total compensation $ | K159: How much the state lags or leads in total compensation %
A160: 800 | B160: Cook 2 | C160: 11 | D160: 46030.56 | E160: 45012 | F160: -1018.56 | G160: -0.02212790807 | H160: 65315.62087 | I160: 63453.27213 | J160: -1862.348733 | K160: -0.0285130679
A161: 801 | B161: Food Service Manager 2 | C161: 20 | D161: 74340.34728 | E161: 57306 | F161: -17034.34728 | G161: -0.2291400014 | H161: 96767.65061 | I161: 77304.44443 | J161: -19463.20618 | K161: -0.2011333959
A162: 802 | B162: Laundry Worker 1 | C162: 5 | D162: 36747.00666 | E162: 39030 | F162: 2282.99334 | G162: 0.06212732812 | H162: 36747.00666 | I162: 56713.58507 | J162: 19966.57841 | K162: 0.543352513
B163: Average | D163: 52372.63798 | E163: 47116 | F163: -5256.637979 | G163: -0.1003699295 | H163: 66276.75938 | I163: 65823.76721 | J163: -452.9921656 | K163: -0.006834856891
B165: Information Technology | C165: Base Salary | H165: Total Compensation
B166: Benchmark | C166: # of Matches | D166: The market average base salary | E166: The state’s average salary midpoint | F166: How much the state lags or leads in base salary $ | G166: How much the state lags or leads in base salary % | H166: The market average total compensation | I166: The state’s average total compensation | J166: How much the state lags or leads in total compensation $ | K166: How much the state lags or leads in total compensation %
A167: 1700 | B167: IT App Development - Journey | C167: 23 | D167: 97018.9725 | E167: 92970 | F167: -4048.9725 | G167: -0.0417338217 | H167: 124046.7769 | I167: 117485.688 | J167: -6561.088886 | K167: -0.0528920545
A168: 1701 | B168: IT Architecture - Journey | C168: 17 | D168: 118073.55 | E168: 86478 | F168: -31595.55 | G168: -0.2675921068 | H168: 147312.1686 | I168: 110171.4038 | J168: -37140.76482 | K168: -0.252122857
A169: 1702 | B169: IT Business Analyst - Journey | C169: 23 | D169: 90199.1 | E169: 92970 | F169: 2770.9 | G169: 0.03071981871 | H169: 115714.7092 | I169: 117485.688 | J169: 1770.978855 | K169: 0.01530469952
A170: 1703 | B170: IT Customer Support - Journey | C170: 24 | D170: 77792.25 | E170: 80484 | F170: 2691.75 | G170: 0.03460177588 | H170: 102416.9825 | I170: 103418.1968 | J170: 1001.214262 | K170: 0.00977586175
A171: 1704 | B171: IT Data Management - Journey | C171: 18 | D171: 100132.969 | E171: 97626 | F171: -2506.969031 | G171: -0.02503639965 | H171: 127177.9352 | I171: 122731.4224 | J171: -4446.512764 | K171: -0.03496292622
A172: 1705 | B172: IT Network & Telecoms - Journey | C172: 23 | D172: 93843.0725 | E172: 92970 | F172: -873.0725 | G172: -0.00930353703 | H172: 120632.1909 | I172: 117485.688 | J172: -3146.502896 | K172: -0.02608344316
A173: 1706 | B173: IT Policy & Planning - Journey | C173: 9 | D173: 108266.5 | E173: 80484 | F173: -27782.5 | G173: -0.2566121561 | H173: 137354.5185 | I173: 103418.1968 | J173: -33936.32169 | K173: -0.2470710252
A174: 1707 | B174: IT Project Management - Journey | C174: 17 | D174: 109988.5 | E174: 97626 | F174: -12362.5 | G174: -0.1123981143 | H174: 138219.2758 | I174: 122731.4224 | J174: -15487.85336 | K174: -0.1120527746
A175: 1708 | B175: IT Quality Assurance - Journey | C175: 9 | D175: 94069 | E175: 92970 | F175: -1099 | G175: -0.01168291361 | H175: 118115.4192 | I175: 117485.688 | J175: -629.7311669 | K175: -0.00533148992
A176: 1709 | B176: IT Security - Journey | C176: 16 | D176: 105152 | E176: 92970 | F176: -12182 | G176: -0.115851339 | H176: 133033.9509 | I176: 117485.688 | J176: -15548.26288 | K176: -0.1168743977
A177: 1710 | B177: IT System Administration - Journey | C177: 24 | D177: 98532.96903 | E177: 97626 | F177: -906.969031 | G177: -0.009204726499 | H177: 125497.213 | I177: 122731.4224 | J177: -2765.790615 | K177: -0.02203866164
A178: 1711 | B178: IT Vendor Management - Journey | C178: 6 | D178: 91913.49 | E178: 86478 | F178: -5435.49 | G178: -0.05913702113 | H178: 118514.115 | I178: 110171.4038 | J178: -8342.711237 | K178: -0.07039424152
A179: 1712 | B179: IT Support Technician 2 | C179: 21 | D179: 70289 | E179: 54582 | F179: -15707 | G179: -0.2234631308 | H179: 94166.30503 | I179: 74235.41944 | J179: -19930.8856 | K179: -0.2116562351
B180: Average | D180: 96559.33639 | E180: 88171.84615 | F180: -8387.490236 | G180: -0.08686358616 | H180: 123246.2739 | I180: 112079.7945 | J180: -11166.47945 | K180: -0.09060297802
B182: Media or Communications | C182: Base Salary | H182: Total Compensation
B183: Benchmark | C183: # of Matches | D183: The market average base salary | E183: The state’s average salary midpoint | F183: How much the state lags or leads in base salary $ | G183: How much the state lags or leads in base salary % | H183: The market average total compensation | I183: The state’s average total compensation | J183: How much the state lags or leads in total compensation $ | K183: How much the state lags or leads in total compensation %
A184: 900 | B184: Communications Consultant 3 | C184: 25 | D184: 84443.21079 | E184: 61710 | F184: -22733.21079 | G184: -0.2692130081 | H184: 110033.8613 | I184: 82266.26018 | J184: -27767.60115 | K184: -0.2523550552
A185: 901 | B185: Electronic Media Producer Lead | C185: 9 | D185: 83021.61945 | E185: 61710 | F185: -21311.61945 | G185: -0.2566996355 | H185: 107682.8304 | I185: 82266.26018 | J185: -25416.57022 | K185: -0.2360317808
A186: 903 | B186: Photographer 2 | C186: 17 | D186: 69321.85038 | E186: 57306 | F186: -12015.85038 | G186: -0.1733342418 | H186: 91352.65665 | I186: 77304.44443 | J186: -14048.21222 | K186: -0.1537800074
A187: 904 | B187: Digital Printing Specialist | C187: 5 | D187: 57801.594 | E187: 43554 | F187: -14247.594 | G187: -0.2464913684 | H187: 78093.73659 | I187: 61810.60016 | J187: -16283.13643 | K187: -0.2085075851
A188: 906 | B188: Community Outreach & Environmental Educational Specialist 2 | C188: 9 | D188: 66432.75 | E188: 54582 | F188: -11850.75 | G188: -0.178387166 | H188: 89810.80491 | I188: 74235.41944 | J188: -15575.38548 | K188: -0.1734244058
A189: 910 | B189: Law Enforcement Equipment Technician 2 | C189: 16 | D189: 69590.46169 | E189: 54240 | F189: -15350.46169 | G189: -0.2205828401 | H189: 91999.32557 | I189: 73850.10132 | J189: -18149.22425 | K189: -0.1972756228
A190: 911 | B190: Communications Officer 1 | C190: 7 | D190: 64032.8 | E190: 67278 | F190: 3245.2 | G190: 0.05068027636 | H190: 86475.76873 | I190: 88539.50952 | J190: 2063.740796 | K190: 0.0238649604
A191: 912 | B191: Communications Systems Designer | C191: 7 | D191: 98075.87665 | E191: 82992 | F191: -15083.87665 | G191: -0.1537980303 | H191: 122866.4034 | I191: 106243.863 | J191: -16622.54039 | K191: -0.1352895497
B192: Average | D192: 74090.02037 | E192: 60421.5 | F192: -13668.52037 | G192: -0.1844853099 | H192: 97289.42345 | I192: 80814.55728 | J192: -16474.86617 | K192: -0.1693387172
B194: Professional, Scientific, or Technical Services | C194: Base Salary | H194: Total Compensation
B195: Benchmark | C195: # of Matches | D195: The market average base salary | E195: The state’s average salary midpoint | F195: How much the state lags or leads in base salary $ | G195: How much the state lags or leads in base salary % | H195: The market average total compensation | I195: The state’s average total compensation | J195: How much the state lags or leads in total compensation $ | K195: How much the state lags or leads in total compensation %
A196: 1100 | B196: Natural Resource Scientist 2 | C196: 17 | D196: 89327.04746 | E196: 63258 | F196: -26069.04746 | G196: -0.2918382304 | H196: 113740.3762 | I196: 84010.33166 | J196: -29730.04458 | K196: -0.2613851436
A197: 1101 | B197: Data Consultant 2 | C197: 12 | D197: 88909.045 | E197: 54582 | F197: -34327.045 | G197: -0.3860917075 | H197: 112992.7225 | I197: 74235.41944 | J197: -38757.30304 | K197: -0.3430070733
A198: 1102 | B198: Forensic Scientist 3 | C198: 16 | D198: 89033.20562 | E198: 89364 | F198: 330.7943791 | G198: 0.00371540457 | H198: 115922.5338 | I198: 113422.9479 | J198: -2499.585866 | K198: -0.02156255375
A199: 1103 | B199: Property & Evidence Custodian | C199: 14 | D199: 64547.6 | E199: 50766 | F199: -13781.6 | G199: -0.2135106495 | H199: 87126.24816 | I199: 69936.08045 | J199: -17190.16771 | K199: -0.1973018244
A200: 1104 | B200: Hydrogeologist 3 | C200: 17 | D200: 94793.91412 | E200: 80970 | F200: -13823.91412 | G200: -0.1458312409 | H200: 120605.3615 | I200: 103965.7541 | J200: -16639.60742 | K200: -0.1379673939
A201: 1105 | B201: Microbiologist 2 | C201: 19 | D201: 81070.97205 | E201: 66432 | F201: -14638.97205 | G201: -0.1805698351 | H201: 105680.9598 | I201: 87586.35418 | J201: -18094.6056 | K201: -0.1712191642
A202: 1106 | B202: Chemist 2 | C202: 23 | D202: 79100.27458 | E202: 69864 | F202: -9236.274581 | G202: -0.1167666564 | H202: 102353.3801 | I202: 91453.05528 | J202: -10900.32484 | K202: -0.1064969699
A203: 1107 | B203: Natural Resources Technician 2 | C203: 12 | D203: 64314.55141 | E203: 40938 | F203: -23376.55141 | G203: -0.3634721987 | H203: 86522.91889 | I203: 58863.25457 | J203: -27659.66432 | K203: -0.3196802035
A204: 1108 | B204: Scientific Technician 2 | C204: 18 | D204: 59741.71095 | E204: 47238 | F204: -12503.71095 | G204: -0.2092961642 | H204: 80259.01432 | I204: 65961.21988 | J204: -14297.79444 | K204: -0.1781456521
A205: 1109 | B205: Natural Resource Specialist 2 | C205: 21 | D205: 81072.0545 | E205: 58734 | F205: -22338.0545 | G205: -0.2755333467 | H205: 105650.8643 | I205: 78913.31657 | J205: -26737.54776 | K205: -0.2530745766
A206: 1110 | B206: Fish & Wildlife Biologist 2 | C206: 20 | D206: 82756.75886 | E206: 60228 | F206: -22528.75886 | G206: -0.2722286272 | H206: 106132.6177 | I206: 80596.54834 | J206: -25536.06939 | K206: -0.2406052911
A207: 1111 | B207: Veterinary Specialist 2 | C207: 14 | D207: 56520.2435 | E207: 52008 | F207: -4512.243495 | G207: -0.07983411281 | H207: 78970.17902 | I207: 71335.39361 | J207: -7634.785406 | K207: -0.09667934784
A208: 1112 | B208: Land Surveyor 3 | C208: 13 | D208: 86124.6 | E208: 79002 | F208: -7122.6 | G208: -0.08270110979 | H208: 111844.7152 | I208: 101748.485 | J208: -10096.23019 | K208: -0.09027006932
A209: 1113 | B209: Facilities Engineer 2 | C209: 10 | D209: 96268 | E209: 69864 | F209: -26404 | G209: -0.2742759796 | H209: 122505.0068 | I209: 91453.05528 | J209: -31051.95155 | K209: -0.2534749587
A210: 1114 | B210: Civil Engineer 3 | C210: 26 | D210: 114900 | E210: 82992 | F210: -31908 | G210: -0.2777023499 | H210: 144138.6186 | I210: 106243.863 | J210: -37894.75562 | K210: -0.2629049452
... 67 more rows

Sheet Comparison with 2022
B1: 2024 | N1: 2022 | AI1: $ CHANGE 2022 TO 2024 | AM1: % CHANGE 2022 TO 2024 | AR1: State Market Comparison 2024 (consistently successful benchmarks only) | AW1: State Market Comparison 2022 (consistently successful benchmarks only)
C2: Base Salary | H2: Total Compensation | O2: Base salary | T2: Total compensation | AA2: Consistently Successful Benchmarks | AI2: Base salary | AK2: Total compensation | AM2: Base salary | AO2: Total compensation | AR2: Base | AT2: Total Comp | AW2: Base | AY2: Total Comp
B3: Market Segment | C3: No. of benchmark jobs | D3: Market median | E3: Washington state | F3: How much the state lags or leads | G3: Washington % to reach EMV | H3: Market median | I3: Washington state | J3: How much the state lags or leads | K3: Washington % to reach market total compensation | N3: Market Segment | O3: No. of benchmark jobs | P3: Market median | Q3: Washington state | R3: How much the state lags or leads | S3: Washington % to reach EMV | T3: Market median | U3: Washington state | V3: How much the state lags or leads | W3: Washington % to reach market total compensation | Z3: Market Segment | AA3: 2024 Base Market | AB3: 2024 Base State | AC3: 2024 Total Comp Market | AD3: 2024 Total Comp State | AE3: 2022 Base Market | AF3: 2022 Base State | AG3: 2022 Total Comp Market | AH3: 2022 Total Comp State | AI3: Base Market | AJ3: Base State | AK3: Total Comp Market | AL3: Total Comp State | AM3: Base Market | AN3: Base State | AO3: Total Comp Market | AP3: Total Comp State | AR3: $ Difference | AS3: % Difference | AT3: $ Difference | AU3: % Difference | AW3: $ Difference | AX3: % Difference | AY3: $ Difference | AZ3: % Difference
A4: Administrative and Other Support Services | B4: Administrative and Other Support Services | C4: 15 | D4: 68699.92337 | E4: 52094.4 | F4: -16605.52337 | G4: =IFERROR(F4/E4,"--") -> -0.318758319 | H4: 90580.01378 | I4: 71432.73713 | J4: -19147.27664 | K4: =IFERROR(J4/I4,"--") -> -0.2680462406 | N4: Administrative and Other Support Services | O4: 15 | P4: 63990.76659 | Q4: 48201.2 | R4: -15789.56659 | S4: -0.3275762136 | T4: 82770.76848 | U4: 65602.99088 | V4: -17167.77759 | W4: -0.2616919955 | Z4: Administrative and Other Support Services | AA4: =AA41 -> 68699.92337 | AB4: 52094.4 | AC4: 90580.01378 | AD4: 71432.73713 | AE4: 63990.76659 | AF4: 48201.2 | AG4: 82770.76848 | AH4: 65602.99088 | AI4: =AA4-AE4 -> 4709.156784 | AJ4: =AB4-AF4 -> 3893.2 | AK4: =AC4-AG4 -> 7809.245299 | AL4: =AD4-AH4 -> 5829.746251 | AM4: =IFERROR(AI4/AE4,"-") -> 0.07359119191 | AN4: 0.08076977337 | AO4: 0.09434786511 | AP4: 0.08886403154 | AR4: =AB4-AA4 -> -16605.52337 | AS4: =AR4/AB4 -> -0.318758319 | AT4: =AD4-AC4 -> -19147.27664 | AU4: =AT4/AD4 -> -0.2680462406 | AW4: =AF4-AE4 -> -15789.56659 | AX4: =AW4/AF4 -> -0.3275762136 | AY4: =AH4-AG4 -> -17167.77759 | AZ4: =AY4/AH4 -> -0.2616919955
A5: Agriculture or Forest Services/Products | B5: Agriculture or Forest Services/Products | C5: 8 | D5: 61970.76271 | E5: 50628 | F5: -11342.76271 | G5: -0.2240412955 | H5: 84063.85641 | I5: 69780.60121 | J5: -14283.2552 | K5: =IFERROR(J5/I5,"--") -> -0.2046880501 | N5: Agriculture or Forest Services/Products | O5: 8 | P5: 55769.20109 | Q5: 46925.25 | R5: -8843.951094 | S5: -0.188468918 | T5: 75980.95628 | U5: 64160.11819 | V5: -11820.83809 | W5: -0.1842396557 | Z5: Agriculture or Forest Services/Products | AA5: =AA56 -> 61970.76271 | AB5: 50628 | AC5: 84063.85641 | AD5: 69780.60121 | AE5: 55769.20109 | AF5: 46925.25 | AG5: 75980.95628 | AH5: 64160.11819 | AI5: =AA5-AE5 -> 6201.561614 | AJ5: 3702.75 | AK5: 8082.900124 | AL5: 5620.483014 | AM5: 0.1112004743 | AN5: 0.07890741126 | AO5: 0.1063806053 | AP5: 0.0876008831 | AR5: =AB5-AA5 -> -11342.76271 | AS5: =AR5/AB5 -> -0.2240412955 | AT5: =AD5-AC5 -> -14283.2552 | AU5: =AT5/AD5 -> -0.2046880501 | AW5: =AF5-AE5 -> -8843.951094 | AX5: =AW5/AF5 -> -0.188468918 | AY5: =AH5-AG5 -> -11820.83809 | AZ5: =AY5/AH5 -> -0.1842396557
A6: Arts, Entertainment, or Recreation | B6: Arts, Entertainment, or Recreation | C6: 3 | D6: 74004.55184 | E6: 50808 | F6: -23196.55184 | G6: -0.4565531382 | H6: 97186.68294 | I6: 69983.40022 | J6: -27203.28272 | K6: -0.3887105033 | N6: Arts, Entertainment, or Recreation | O6: 3 | P6: 65060.41786 | Q6: 46152 | R6: -18908.41786 | S6: -0.4096987749 | T6: 84447.59875 | U6: 63285.70987 | V6: -21161.88888 | W6: -0.3343865294 | Z6: Arts, Entertainment, or Recreation | AA6: =AA67 -> 74004.55184 | AB6: 50808 | AC6: 97186.68294 | AD6: 69983.40022 | AE6: 65060.41786 | AF6: 46152 | AG6: 84447.59875 | AH6: 63285.70987 | AI6: 8944.133986 | AJ6: 4656 | AK6: 12739.08419 | AL6: 6697.690351 | AM6: 0.1374742782 | AN6: 0.1008840354 | AO6: 0.1508519411 | AP6: 0.1058325863 | AR6: -23196.55184 | AS6: -0.4565531382 | AT6: -27203.28272 | AU6: -0.3887105033 | AW6: -18908.41786 | AX6: -0.4096987749 | AY6: -21161.88888 | AZ6: -0.3343865294
A7: Construction | B7: Construction | C7: 12 | D7: 79264.76551 | E7: 62806 | F7: -16458.76551 | G7: -0.262057216 | H7: 104232.6718 | I7: 83501.08081 | J7: -20731.59098 | K7: -0.248279313 | N7: Construction | O7: 11 | P7: 72719.79666 | Q7: 55068 | R7: -17651.79666 | S7: -0.3205454468 | T7: 93022.10141 | U7: 73368.12132 | V7: -19653.98009 | W7: -0.2678817413 | Z7: Construction | AA7: =AA85 -> 78496.50101 | AB7: 60240 | AC7: 103458.9512 | AD7: 80610.06828 | AE7: 72719.79666 | AF7: 55068 | AG7: 93022.10141 | AH7: 73368.12132 | AI7: 5776.704349 | AJ7: 5172 | AK7: 10436.84974 | AL7: 7241.946963 | AM7: 0.07943785068 | AN7: 0.09392024406 | AO7: 0.1121975271 | AP7: 0.09870699745 | AR7: -18256.50101 | AS7: -0.3030627658 | AT7: -22848.88287 | AU7: -0.2834494916 | AW7: -17651.79666 | AX7: -0.3205454468 | AY7: -19653.98009 | AZ7: -0.2678817413
A8: Educational or Library Services | B8: Educational or Library Services | C8: 5 | D8: 64731.37466 | E8: 57182.4 | F8: -7548.974659 | G8: -0.1320157017 | H8: 86249.49576 | I8: 77165.18912 | J8: -9084.306644 | K8: -0.1177254504 | N8: Educational or Library Services | O8: 5 | P8: 60335.70884 | Q8: 52767.6 | R8: -7568.108841 | S8: -0.1434234045 | T8: 78170.95958 | U8: 70766.77774 | V8: -7404.181838 | W8: -0.1046279352 | Z8: Educational or Library Services | AA8: =AA95 -> 64731.37466 | AB8: 57182.4 | AC8: 86249.49576 | AD8: 77165.18912 | AE8: 60335.70884 | AF8: 52767.6 | AG8: 78170.95958 | AH8: 70766.77774 | AI8: 4395.665818 | AJ8: 4414.8 | AK8: 8078.536179 | AL8: 6398.411373 | AM8: 0.07285347106 | AN8: 0.08366497624 | AO8: 0.1033444673 | AP8: 0.09041546864 | AR8: -7548.974659 | AS8: -0.1320157017 | AT8: -9084.306644 | AU8: -0.1177254504 | AW8: -7568.108841 | AX8: -0.1434234045 | AY8: -7404.181838 | AZ8: -0.1046279352
A9: Finance or Insurance | B9: Finance or Insurance | C9: 14 | D9: 80426.3842 | E9: 66680.57143 | F9: -13745.81277 | G9: -0.2061441957 | H9: 104916.8442 | I9: 87866.40996 | J9: -17050.43429 | K9: -0.1940495156 | N9: Finance or Insurance | O9: 13 | P9: 71738.69338 | Q9: 59237.53846 | R9: -12501.15492 | S9: -0.2110343415 | T9: 93394.34141 | U9: 78083.1283 | V9: -15311.2131 | W9: -0.1960886229 | Z9: Finance or Insurance | AA9: =AA115 -> 77262.69408 | AB9: 64219.38462 | AC9: 101442.2432 | AD9: 85093.48637 | AE9: 71738.69338 | AF9: 59237.53846 | AG9: 93394.34141 | AH9: 78083.1283 | AI9: 5524.000702 | AJ9: 4981.846154 | AK9: 8047.901807 | AL9: 7010.358061 | AM9: 0.07700169102 | AN9: 0.08409947954 | AO9: 0.08617119287 | AP9: 0.08978070183 | AR9: -13043.30947 | AS9: -0.2031054883 | AT9: -16348.75685 | AU9: -0.192127007 | AW9: -12501.15492 | AX9: -0.2110343415 | AY9: -15311.2131 | AZ9: -0.1960886229
A10: Health Care or Social Services | B10: Health Care or Social Services | C10: 35 | D10: 94140.9196 | E10: 80013.42857 | F10: -14127.49103 | G10: -0.1765640003 | H10: 118111.3359 | I10: 102888.0222 | J10: -15223.31369 | K10: -0.1479600187 | N10: Health Care or Social Services | O10: 35 | P10: 85375.79054 | Q10: 72113.65714 | R10: -13262.1334 | S10: -0.1839059885 | T10: 104938.1827 | U10: 92643.73019 | V10: -12294.45247 | W10: -0.1327067946 | Z10: Health Care or Social Services | AA10: =AA168 -> 94140.9196 | AB10: 80013.42857 | AC10: 118111.3359 | AD10: 102888.0222 | AE10: 85375.79054 | AF10: 72113.65714 | AG10: 104938.1827 | AH10: 92643.73019 | AI10: 8765.129059 | AJ10: 7899.771429 | AK10: 13173.15328 | AL10: 10244.29206 | AM10: 0.1026652755 | AN10: 0.1095461212 | AO10: 0.1255325082 | AP10: 0.110577284 | AR10: -14127.49103 | AS10: -0.1765640003 | AT10: -15223.31369 | AU10: -0.1479600187 | AW10: -13262.1334 | AX10: -0.1839059885 | AY10: -12294.45247 | AZ10: -0.1327067946
A11: Hospitality, Accommodation, Food Services, Personal Services | B11: Hospitality, Accommodation, Food/Personal Services | C11: 3 | D11: 52372.63798 | E11: 47116 | F11: -5256.637979 | G11: -0.1115680019 | H11: 66276.75938 | I11: 65823.76721 | J11: -452.9921656 | K11: -0.00688189365 | N11: Hospitality, Accommodation, Food/Personal Services | O11: 3 | P11: 45951.87347 | Q11: 40460 | R11: -5491.87347 | S11: -0.1357358742 | T11: 60517.88086 | U11: 56849.06945 | V11: -3668.81141 | W11: -0.06453599761 | Z11: Hospitality, Accommodation, Food Services, Personal Services | AA11: =AA177 -> 52372.63798 | AB11: 47116 | AC11: 66276.75938 | AD11: 65823.76721 | AE11: 45951.87347 | AF11: 40460 | AG11: 60517.88086 | AH11: 56849.06945 | AI11: 6420.76451 | AJ11: 6656 | AK11: 5758.878521 | AL11: 8974.697766 | AM11: 0.1397280247 | AN11: 0.1645081562 | AO11: 0.09515995007 | AP11: 0.1578688596 | AR11: -5256.637979 | AS11: -0.1115680019 | AT11: -452.9921656 | AU11: -0.00688189365 | AW11: -5491.87347 | AX11: -0.1357358742 | AY11: -3668.81141 | AZ11: -0.06453599761
A12: Information Technology | B12: Information Technology | C12: 13 | D12: 96559.33639 | E12: 88171.84615 | F12: -8387.490236 | G12: -0.09512662603 | H12: 123246.2739 | I12: 112079.7945 | J12: -11166.47945 | K12: -0.09962972808 | N12: Information Technology | O12: 13 | P12: 92548.81718 | Q12: 82112.30769 | R12: -10436.50949 | S12: -0.1271004285 | T12: 115169.9317 | U12: 103950.427 | V12: -11219.50468 | W12: -0.1079312996 | Z12: Information Technology | AA12: =AA196 -> 96559.33639 | AB12: 88171.84615 | AC12: 123246.2739 | AD12: 112079.7945 | AE12: 92548.81718 | AF12: 82112.30769 | AG12: 115169.9317 | AH12: 103950.427 | AI12: 4010.519208 | AJ12: 6059.538462 | AK12: 8076.342234 | AL12: 8129.367466 | AM12: 0.0433340947 | AN12: 0.07379573942 | AO12: 0.07012544087 | AP12: 0.07820427199 | AR12: -8387.490236 | AS12: -0.09512662603 | AT12: -11166.47945 | AU12: -0.09962972808 | AW12: -10436.50949 | AX12: -0.1271004285 | AY12: -11219.50468 | AZ12: -0.1079312996
A13: Media or Communications | B13: Media or Communications | C13: 8 | D13: 74090.02037 | E13: 60421.5 | F13: -13668.52037 | G13: -0.226219481 | H13: 97289.42345 | I13: 80814.55728 | J13: -16474.86617 | K13: -0.2038601302 | N13: Media or Communications | O13: 8 | P13: 71689.33023 | Q13: 55539.75 | R13: -16149.58023 | S13: -0.2907751697 | T13: 90232.95276 | U13: 73901.58673 | V13: -16331.36604 | W13: -0.2209880296 | Z13: Media or Communications | AA13: =AA210 -> 74090.02037 | AB13: 60421.5 | AC13: 97289.42345 | AD13: 80814.55728 | AE13: 71689.33023 | AF13: 55539.75 | AG13: 90232.95276 | AH13: 73901.58673 | AI13: 2400.69014 | AJ13: 4881.75 | AK13: 7056.470681 | AL13: 6912.970553 | AM13: 0.03348741203 | AN13: 0.08789650656 | AO13: 0.07820281244 | AP13: 0.09354292458 | AR13: -13668.52037 | AS13: -0.226219481 | AT13: -16474.86617 | AU13: -0.2038601302 | AW13: -16149.58023 | AX13: -0.2907751697 | AY13: -16331.36604 | AZ13: -0.2209880296
A14: Professional, Scientific or Technical Services | B14: Professional, Scientific or Technical Services | C14: 32 | D14: 82480.77016 | E14: 64966.5 | F14: -17514.27016 | G14: -0.2695892523 | H14: 106737.2388 | I14: 85935.23225 | J14: -20802.0066 | K14: -0.2420661008 | N14: Professional, Scientific or Technical Services | O14: 32 | P14: 76843.32266 | Q14: 59478.1875 | R14: -17365.13516 | S14: -0.291958042 | T14: 97662.79383 | U14: 78355.2596 | V14: -19307.53423 | W14: -0.2464101878 | Z14: Professional, Scientific, or Technical Services | AA14: =AA250 -> 82318.31251 | AB14: 64575.67742 | AC14: 106591.4822 | AD14: 85494.90763 | AE14: 76563.97261 | AF14: 59298 | AG14: 97375.47631 | AH14: 78151.49956 | AI14: 5754.339907 | AJ14: 5277.677419 | AK14: 9216.005849 | AL14: 7343.40807 | AM14: 0.07515727973 | AN14: 0.08900262099 | AO14: 0.09464401304 | AP14: 0.09396375132 | AR14: -17742.63509 | AS14: -0.274757243 | AT14: -21096.57453 | AU14: -0.2467582586 | AW14: -17265.97261 | AX14: -0.2911729334 | AY14: -19223.97675 | AZ14: -0.2459834662
A15: Public Administration | B15: Public Administration | C15: 15 | D15: 79680.99928 | E15: 64020 | F15: -15660.99928 | G15: -0.2446266679 | H15: 103937.3206 | I15: 84868.84746 | J15: -19068.47309 | K15: -0.2246816548 | N15: Public Administration | O15: 15 | P15: 71350.96726 | Q15: 57943.6 | R15: -13407.36726 | S15: -0.231386508 | T15: 92955.39742 | U15: 76619.91386 | V15: -16335.48356 | W15: -0.2132015391 | Z15: Public Administration | AA15: =AA271 -> 79603.61857 | AB15: 63602.57143 | AC15: 103806.2741 | AD15: 84398.5469 | AE15: 70857.13245 | AF15: 57551.57143 | AG15: 92499.98887 | AH15: 76176.59922 | AI15: 8746.486114 | AJ15: 6051 | AK15: 11306.28524 | AL15: 8221.947684 | AM15: 0.1234383302 | AN15: 0.1051404827 | AO15: 0.1222301254 | AP15: 0.1079327217 | AR15: -16001.04714 | AS15: -0.2515786198 | AT15: -19407.7272 | AU15: -0.2299533335 | AW15: -13305.56102 | AX15: -0.2311937049 | AY15: -16323.38965 | AZ15: -0.2142835177
A16: Real Estate | B16: Real Estate | C16: 1 | D16: 93352.395 | E16: 66432 | F16: -26920.395 | G16: -0.4052323428 | H16: 119706.3817 | I16: 87586.35418 | J16: -32120.02751 | K16: -0.3667241069 | N16: Real Estate | O16: 1 | P16: 88493.50636 | Q16: 61866 | R16: -26627.50636 | S16: -0.4304061416 | T16: 109929.6675 | U16: 81055.45117 | V16: -28874.21631 | W16: -0.3562279389 | Z16: Real Estate | AA16: =AA277 -> 93352.395 | AB16: 66432 | AC16: 119706.3817 | AD16: 87586.35418 | AE16: 88493.50636 | AF16: 61866 | AG16: 109929.6675 | AH16: 81055.45117 | AI16: 4858.888642 | AJ16: 4566 | AK16: 9776.714212 | AL16: 6530.903007 | AM16: 0.05490672527 | AN16: 0.07380467462 | AO16: 0.08893608465 | AP16: 0.08057327314 | AR16: -26920.395 | AS16: -0.4052323428 | AT16: -32120.02751 | AU16: -0.3667241069 | AW16: -26627.50636 | AX16: -0.4304061416 | AY16: -28874.21631 | AZ16: -0.3562279389
A17: Retail Trade | B17: Retail Trade | C17: 2 | D17: 57529.9393 | E17: 49122 | F17: -8407.939297 | G17: -0.1711644334 | H17: 79273.58663 | I17: 68083.8495 | J17: -11189.73713 | K17: -0.1643522982 | N17: Retail Trade | O17: 2 | P17: 47601.23744 | Q17: 45744 | R17: -1857.237436 | S17: -0.04060067848 | T17: 63266.36622 | U17: 62824.33438 | V17: -442.0318475 | W17: -0.007035997307 | Z17: Retail Trade | AA17: =AA285 -> 57529.9393 | AB17: 49122 | AC17: 79273.58663 | AD17: 68083.8495 | AE17: 47601.23744 | AF17: 45744 | AG17: 63266.36622 | AH17: 62824.33438 | AI17: 9928.701861 | AJ17: 3378 | AK17: 16007.22041 | AL17: 5259.515125 | AM17: 0.2085807512 | AN17: 0.07384575026 | AO17: 0.2530131153 | AP17: 0.08371780103 | AR17: -8407.939297 | AS17: -0.1711644334 | AT17: -11189.73713 | AU17: -0.1643522982 | AW17: -1857.237436 | AX17: -0.04060067848 | AY17: -442.0318475 | AZ17: -0.007035997307
A18: Transportation or Warehousing | B18: Transportation or Warehousing | C18: 9 | D18: 86611.0486 | E18: 66866.66667 | F18: -19744.38194 | G18: -0.2952798894 | H18: 109433.8759 | I18: 88076.07623 | J18: -21357.79963 | K18: -0.2424926329 | N18: Transportation or Warehousing | O18: 9 | P18: 78705.36471 | Q18: 59798 | R18: -18907.36471 | S18: -0.3161872423 | T18: 100383.6691 | U18: 78716.9107 | V18: -21666.75845 | W18: -0.2752490952 | Z18: Transportation or Warehousing | AA18: =AA300 -> 86611.0486 | AB18: 66866.66667 | AC18: 109433.8759 | AD18: 88076.07623 | AE18: 78705.36471 | AF18: 59798 | AG18: 100383.6691 | AH18: 78716.9107 | AI18: 7905.683891 | AJ18: 7068.666667 | AK18: 9050.20671 | AL18: 9359.165533 | AM18: 0.1004465696 | AN18: 0.1182090817 | AO18: 0.0901561657 | AP18: 0.1188965046 | AR18: -19744.38194 | AS18: -0.2952798894 | AT18: -21357.79963 | AU18: -0.2424926329 | AW18: -18907.36471 | AX18: -0.3161872423 | AY18: -21666.75845 | AZ18: -0.2752490952
A19: Utilities | B19: Utilities | C19: 6 | D19: 87412.3758 | E19: 69110 | F19: -18302.3758 | G19: -0.264829631 | H19: 112451.9566 | I19: 90603.55277 | J19: -21848.40381 | K19: -0.2411429039 | N19: Utilities | O19: 6 | P19: 80959.18899 | Q19: 63396 | R19: -17563.18899 | S19: -0.2770393872 | T19: 101251.4459 | U19: 82785.60926 | V19: -18465.83661 | W19: -0.2230561177 | Z19: Utilities | AA19: =AA312 -> 87412.3758 | AB19: 69110 | AC19: 112451.9566 | AD19: 90603.55277 | AE19: 80959.18899 | AF19: 63396 | AG19: 101251.4459 | AH19: 82785.60926 | AI19: 6453.186804 | AJ19: 5714 | AK19: 11200.51071 | AL19: 7817.943505 | AM19: 0.0797091335 | AN19: 0.09013186952 | AO19: 0.1106207483 | AP19: 0.09443602064 | AR19: -18302.3758 | AS19: -0.264829631 | AT19: -21848.40381 | AU19: -0.2411429039 | AW19: -17563.18899 | AX19: -0.2770393872 | AY19: -18465.83661 | AZ19: -0.2230561177
B20: Overall Average | C20: 181 | D20: 77083.0128 | E20: 62277.45705 | F20: -14805.55575 | G20: -0.2377353933 | H20: 100230.8574 | I20: 82905.592 | J20: -17325.26536 | K20: -0.2089758355 | N20: Overall Average | O20: 179 | P20: 75112.30988 | Q20: 60771.2514 | R20: -14341.05849 | S20: -0.235984255 | T20: 95370.96959 | U20: 79817.48506 | V20: -15553.48453 | W20: -0.1948631245 | Z20: Overall Average | AA20: =AVERAGE(AA26:AA40,AA47:AA54,AA62:AA63,AA65,AA73:AA83,AA90:AA94,AA101:AA102,AA104:AA114,AA121:AA134,AA136:AA146,AA149:AA154,AA157,AA160:AA161,AA166,AA174:AA176,AA183:AA195,AA202:AA209,AA216:AA246,AA256:AA269,AA277,AA283:AA284,AA291:AA299,AA306:AA311) -> 81460.77946 | AB20: =AVERAGE(AB26:AB40,AB47:AB54,AB62:AB63,AB65,AB73:AB83,AB90:AB94,AB101:AB102,AB104:AB114,AB121:AB134,AB136:AB146,AB149:AB154,AB157,AB160:AB161,AB166,AB174:AB176,AB183:AB195,AB202:AB209,AB216:AB246,AB256:AB269,AB277,AB283:AB284,AB291:AB299,AB306:AB311) -> 66480.84746 | AC20: 105195.2212 | AD20: 87641.38871 | AE20: 75035.79458 | AF20: 60731.9661 | AG20: 95285.32657 | AH20: 79773.06038 | AI20: 6424.984887 | AJ20: 5748.881356 | AK20: 9909.894654 | AL20: 7868.328338 | AM20: =AI20/AE20 -> 0.0856255994 | AN20: 0.09465989206 | AO20: 0.1040023161 | AP20: 0.09863390349 | AR20: -14979.93201 | AS20: -0.2253270314 | AT20: -17553.83251 | AU20: -0.2002915833 | AW20: -14303.82847 | AX20: -0.2355238829 | AY20: -15512.26619 | AZ20: -0.1944549465
AI23: $ CHANGE 2022 TO 2024 | AM23: % CHANGE 2022 TO 2024
B24: Administrative and Other Support Services | C24: Base Salary | H24: Total Compensation | N24: Administrative and Other Support Services | O24: Base salary | T24: Total compensation | Z24: Administrative and Other Support Services | AA24: Consistently Successful Benchmarks | AI24: Base salary | AK24: Total compensation | AM24: Base salary | AO24: Total compensation
B25: Benchmark | C25: No. of benchmark jobs | D25: Market median | E25: Washington state | F25: How much the state lags or leads | G25: Washington % to reach EMV | H25: Market median | I25: Washington state | J25: How much the state lags or leads | K25: Washington % to reach market total compensation | N25: Benchmark | O25: No. of matches | P25: Market median | Q25: Washington state | R25: How much the state lags or leads | S25: Washington % to reach EMV | T25: Market median | U25: Washington state | V25: How much the state lags or leads | W25: Washington % to reach market total compensation | Z25: Benchmark | AA25: 2024 Base Market | AB25: 2024 Base State | AC25: 2024 Total Comp Market | AD25: 2024 Total Comp State | AE25: 2022 Base Market | AF25: 2022 Base State | AG25: 2022 Total Comp Market | AH25: 2022 Total Comp State | AI25: Base Market | AJ25: Base State | AK25: Total Comp Market | AL25: Total Comp State | AM25: Base Market | AN25: Base State | AO25: Total Comp Market | AP25: Total Comp State
A26: 100 | B26: Secretary Senior | C26: 28 | D26: 60843.3 | E26: 41880 | F26: -18963.3 | G26: =IFERROR(F26/E26,"--") -> -0.4528008596 | H26: 83245.88915 | I26: 59924.56938 | J26: -23321.31977 | K26: =IFERROR(J26/I26,"--") -> -0.3891779283 | N26: Secretary Senior | O26: 27 | P26: 52760 | Q26: 39000 | R26: -13760 | S26: -0.3528205128 | T26: 71744.86718 | U26: 55198.06892 | V26: -16546.79826 | W26: -0.299771325 | Z26: Secretary Senior | AA26: =IF($D26="-","-",IF($P26="-","-",D26)) -> 60843.3 | AB26: =IF($D26="-","-",IF($P26="-","-",E26)) -> 41880 | AC26: =IF($D26="-","-",IF($P26="-","-",H26)) -> 83245.88915 | AD26: =IF($D26="-","-",IF($P26="-","-",I26)) -> 59924.56938 | AE26: =IF($D26="-","-",IF($P26="-","-",P26)) -> 52760 | AF26: =IF($D26="-","-",IF($P26="-","-",Q26)) -> 39000 | AG26: =IF($D26="-","-",IF($P26="-","-",T26)) -> 71744.86718 | AH26: =IF($D26="-","-",IF($P26="-","-",U26)) -> 55198.06892 | AI26: =AA26-AE26 -> 8083.3 | AJ26: =AB26-AF26 -> 2880 | AK26: =AC26-AG26 -> 11501.02197 | AL26: =AD26-AH26 -> 4726.500461 | AM26: =IFERROR(AI26/AE26,"-") -> 0.1532088704 | AN26: 0.07384615385 | AO26: 0.1603044569 | AP26: 0.0856280039
A27: 101 | B27: PBX & Telephone Operator | C27: 5 | D27: 47939 | E27: 40938 | F27: -7001 | G27: -0.1710147052 | H27: 54350.27597 | I27: 58863.25457 | J27: 4512.978595 | K27: 0.07666885952 | N27: PBX & Telephone Operator | O27: 6 | P27: 49542.55 | Q27: 38124 | R27: -11418.55 | S27: -0.2995108068 | T27: 62415.49 | U27: 54207.4686 | V27: -8208.021397 | W27: -0.1514186441 | Z27: PBX & Telephone Operator | AA27: =IF($D27="-","-",IF($P27="-","-",D27)) -> 47939 | AB27: 40938 | AC27: =IF($D27="-","-",IF($P27="-","-",H27)) -> 54350.27597 | AD27: 58863.25457 | AE27: =IF($D27="-","-",IF($P27="-","-",P27)) -> 49542.55 | AF27: 38124 | AG27: =IF($D27="-","-",IF($P27="-","-",T27)) -> 62415.49 | AH27: 54207.4686 | AI27: =AA27-AE27 -> -1603.55 | AJ27: 2814 | AK27: -8065.214027 | AL27: 4655.785965 | AM27: -0.03236712684 | AN27: 0.07381177211 | AO27: -0.129218148 | AP27: 0.08588827491
A28: 102 | B28: Customer Service Specialist 2 | C28: 19 | D28: 54370.25 | E28: 43914 | F28: -10456.25 | G28: -0.2381074373 | H28: 76351.69274 | I28: 62216.19818 | J28: -14135.49456 | K28: -0.2271995874 | N28: Customer Service Specialist 2 | O28: 14 | P28: 49266.05 | Q28: 40896 | R28: -8370.05 | S28: -0.2046667156 | T28: 66407.33384 | U28: 57342.10796 | V28: -9065.225882 | W28: -0.1580902099 | Z28: Customer Service Specialist 2 | AA28: 54370.25 | AB28: 43914 | AC28: 76351.69274 | AD28: 62216.19818 | AE28: 49266.05 | AF28: 40896 | AG28: 66407.33384 | AH28: 57342.10796 | AI28: 5104.2 | AJ28: 3018 | AK28: 9944.358891 | AL28: 4874.090217 | AM28: 0.1036048151 | AN28: 0.07379694836 | AO28: 0.1497479016 | AP28: 0.08500019254
A29: 103 | B29: Administrative Assistant 3 | C29: 30 | D29: 67772.165 | E29: 47238 | F29: -20534.165 | G29: -0.4346959016 | H29: 90812.28156 | I29: 65961.21988 | J29: -24851.06169 | K29: -0.3767526091 | N29: Administrative Assistant 3 | O29: 27 | P29: 63313.75 | Q29: 43992 | R29: -19321.75 | S29: -0.4392105383 | T29: 81960.97171 | U29: 60843.13374 | V29: -21117.83796 | W29: -0.3470866253 | Z29: Administrative Assistant 3 | AA29: 67772.165 | AB29: 47238 | AC29: 90812.28156 | AD29: 65961.21988 | AE29: 63313.75 | AF29: 43992 | AG29: 81960.97171 | AH29: 60843.13374 | AI29: 4458.415 | AJ29: 3246 | AK29: 8851.309858 | AL29: 5118.086134 | AM29: 0.07041780024 | AN29: 0.07378614294 | AO29: 0.1079942035 | AP29: 0.08411937091
A30: 104 | B30: Program Specialist 2 | C30: 22 | D30: 71120.25098 | E30: 49560 | F30: -21560.25098 | G30: -0.4350333127 | H30: 94916.60243 | I30: 68577.32709 | J30: -26339.27534 | K30: -0.3840813933 | N30: Program Specialist 2 | O30: 19 | P30: 65613.48375 | Q30: 46152 | R30: -19461.48375 | S30: -0.4216823485 | T30: 86002.1619 | U30: 63285.70987 | V30: -22716.45203 | W30: -0.3589507343 | Z30: Program Specialist 2 | AA30: 71120.25098 | AB30: 49560 | AC30: 94916.60243 | AD30: 68577.32709 | AE30: 65613.48375 | AF30: 46152 | AG30: 86002.1619 | AH30: 63285.70987 | AI30: 5506.767226 | AJ30: 3408 | AK30: 8914.440534 | AL30: 5291.617223 | AM30: 0.0839273715 | AN30: 0.07384295372 | AO30: 0.1036536796 | AP30: 0.08361472494
A31: 105 | B31: Management Analyst 3 | C31: 16 | D31: 91841.75 | E31: 66432 | F31: -25409.75 | G31: -0.382492624 | H31: 118048.6641 | I31: 87586.35418 | J31: -30462.30991 | K31: -0.3477974416 | N31: Management Analyst 3 | O31: 14 | P31: 83731.08872 | Q31: 61866 | R31: -21865.08872 | S31: -0.3534265787 | T31: 106360.6167 | U31: 81055.45117 | V31: -25305.1655 | W31: -0.312195727 | Z31: Management Analyst 3 | AA31: 91841.75 | AB31: 66432 | AC31: 118048.6641 | AD31: 87586.35418 | AE31: 83731.08872 | AF31: 61866 | AG31: 106360.6167 | AH31: 81055.45117 | AI31: 8110.661283 | AJ31: 4566 | AK31: 11688.04741 | AL31: 6530.903007 | AM31: 0.09686558968 | AN31: 0.07380467462 | AO31: 0.109890745 | AP31: 0.08057327314
A32: 106 | B32: Events Coordinator 3 | C32: 14 | D32: 75942.75 | E32: 46074 | F32: -29868.75 | G32: -0.6482777705 | H32: 97594.06477 | I32: 64649.78629 | J32: -32944.27848 | K32: -0.5095806247 | N32: Events Coordinator 3 | O32: 11 | P32: 67228.55 | Q32: 42900 | R32: -24328.55 | S32: -0.5670990676 | T32: 81187.35 | U32: 59608.27581 | V32: -21579.07419 | W32: -0.3620147353 | Z32: Events Coordinator 3 | AA32: 75942.75 | AB32: 46074 | AC32: 97594.06477 | AD32: 64649.78629 | AE32: 67228.55 | AF32: 42900 | AG32: 81187.35 | AH32: 59608.27581 | AI32: 8714.2 | AJ32: 3174 | AK32: 16406.71477 | AL32: 5041.510474 | AM32: 0.1296205258 | AN32: 0.07398601399 | AO32: 0.2020846199 | AP32: 0.08457735784
A33: 107 | B33: Forms & Records Analyst 2 | C33: 14 | D33: 61804.75 | E33: 49560 | F33: -12244.75 | G33: -0.247069209 | H33: 85253.05369 | I33: 68577.32709 | J33: -16675.7266 | K33: -0.2431667623 | N33: Forms & Records Analyst 2 | O33: 16 | P33: 58963.756 | Q33: 46152 | R33: -12811.756 | S33: -0.2775991506 | T33: 79637.83189 | U33: 63285.70987 | V33: -16352.12202 | W33: -0.2583856933 | Z33: Forms & Records Analyst 2 | AA33: 61804.75 | AB33: 49560 | AC33: 85253.05369 | AD33: 68577.32709 | AE33: 58963.756 | AF33: 46152 | AG33: 79637.83189 | AH33: 63285.70987 | AI33: 2840.994 | AJ33: 3408 | AK33: 5615.221797 | AL33: 5291.617223 | AM33: 0.04818203915 | AN33: 0.07384295372 | AO33: 0.07050947601 | AP33: 0.08361472494
A34: 108 | B34: Mail Carrier-Driver | C34: 12 | D34: 46196.5 | E34: 37392 | F34: -8804.5 | G34: -0.2354648053 | H34: 66473.3031 | I34: 54868.11409 | J34: -11605.189 | K34: -0.2115106231 | N34: Mail Carrier-Driver | O34: 14 | P34: 44691.66027 | Q34: 34818 | R34: -9873.660274 | S34: -0.283579191 | T34: 60892.28374 | U34: 50468.97015 | V34: -10423.3136 | W34: -0.2065291518 | Z34: Mail Carrier-Driver | AA34: 46196.5 | AB34: 37392 | AC34: 66473.3031 | AD34: 54868.11409 | AE34: 44691.66027 | AF34: 34818 | AG34: 60892.28374 | AH34: 50468.97015 | AI34: 1504.839726 | AJ34: 2574 | AK34: 5581.019357 | AL34: 4399.14395 | AM34: 0.0336716004 | AN34: 0.07392727899 | AO34: 0.09165396687 | AP34: 0.08716532034
A35: 109 | B35: Procurement & Supply Specialist 3 | C35: 19 | D35: 74930.625 | E35: 61710 | F35: -13220.625 | G35: -0.2142379679 | H35: 99374.51707 | I35: 82266.26018 | J35: -17108.25688 | K35: -0.2079620107 | N35: Procurement & Supply Specialist 3 | O35: 21 | P35: 70894.5 | Q35: 57462 | R35: -13432.5 | S35: -0.2337631826 | T35: 92255.11737 | U35: 76075.30985 | V35: -16179.80752 | W35: -0.2126814541 | Z35: Procurement & Supply Specialist 3 | AA35: 74930.625 | AB35: 61710 | AC35: 99374.51707 | AD35: 82266.26018 | AE35: 70894.5 | AF35: 57462 | AG35: 92255.11737 | AH35: 76075.30985 | AI35: 4036.125 | AJ35: 4248 | AK35: 7119.399694 | AL35: 6190.95033 | AM35: 0.05693142627 | AN35: 0.07392711705 | AO35: 0.07717078355 | AP35: 0.08137923253
A36: 110 | B36: Human Resource Consultant 2 | C36: 30 | D36: 80800.14625 | E36: 64800 | F36: -16000.14625 | G36: -0.2469158372 | H36: 105867.2166 | I36: 85747.64317 | J36: -20119.57344 | K36: -0.234637043 | N36: Human Resource Consultant 2 | O36: 27 | P36: 77344.66 | Q36: 57462 | R36: -19882.66 | S36: -0.3460140615 | T36: 97542.78428 | U36: 76075.30985 | V36: -21467.47443 | W36: -0.2821871441 | Z36: Human Resource Consultant 2 | AA36: 80800.14625 | AB36: 64800 | AC36: 105867.2166 | AD36: 85747.64317 | AE36: 77344.66 | AF36: 57462 | AG36: 97542.78428 | AH36: 76075.30985 | AI36: 3455.48625 | AJ36: 7338 | AK36: 8324.432328 | AL36: 9672.333315 | AM36: 0.04467646829 | AN36: 0.1277017855 | AO36: 0.08534134421 | AP36: 0.1271415566
A37: 111 | B37: Industrial Relations Agent 2 | C37: 13 | D37: 90348.53869 | E37: 61710 | F37: -28638.53869 | G37: -0.4640826233 | H37: 113029.1833 | I37: 82266.26018 | J37: -30762.92315 | K37: -0.373943377 | N37: Industrial Relations Agent 2 | O37: 12 | P37: 75970.90309 | Q37: 57462 | R37: -18508.90309 | S37: -0.3221068374 | T37: 100678.3842 | U37: 76075.30985 | V37: -24603.07437 | W37: -0.3234041954 | Z37: Industrial Relations Agent 2 | AA37: 90348.53869 | AB37: 61710 | AC37: 113029.1833 | AD37: 82266.26018 | AE37: 75970.90309 | AF37: 57462 | AG37: 100678.3842 | AH37: 76075.30985 | AI37: 14377.63559 | AJ37: 4248 | AK37: 12350.79911 | AL37: 6190.95033 | AM37: 0.1892518715 | AN37: 0.07392711705 | AO37: 0.122675778 | AP37: 0.08137923253
A38: 112 | B38: Custodian 2 | C38: 28 | D38: 47639.428 | E38: 40938 | F38: -6701.428 | G38: -0.1636970052 | H38: 68148.20034 | I38: 58863.25457 | J38: -9284.945774 | K38: -0.1577375536 | N38: Custodian 2 | O38: 22 | P38: 43310.24699 | Q38: 36348 | R38: -6962.246986 | S38: -0.1915441561 | T38: 59893.52541 | U38: 52199.12823 | V38: -7694.397174 | W38: -0.1474047064 | Z38: Custodian 2 | AA38: 47639.428 | AB38: 40938 | AC38: 68148.20034 | AD38: 58863.25457 | AE38: 43310.24699 | AF38: 36348 | AG38: 59893.52541 | AH38: 52199.12823 | AI38: 4329.181014 | AJ38: 4590 | AK38: 8254.674935 | AL38: 6664.126335 | AM38: 0.09995743075 | AN38: 0.1262793001 | AO38: 0.1378224921 | AP38: 0.1276673876
A39: 113 | B39: Grant & Contract Coordinator | C39: 20 | D39: 73087.03375 | E39: 55890 | F39: -17197.03375 | G39: -0.3076942879 | H39: 97343.86364 | I39: 75709.09223 | J39: -21634.7714 | K39: -0.2857618651 | N39: Grant & Contract Coordinator | O39: 18 | P39: 73723.75 | Q39: 52050 | R39: -21673.75 | S39: -0.4164024976 | T39: 96160.25893 | U39: 69955.29967 | V39: -26204.95926 | W39: -0.3745957687 | Z39: Grant & Contract Coordinator | AA39: 73087.03375 | AB39: 55890 | AC39: 97343.86364 | AD39: 75709.09223 | AE39: 73723.75 | AF39: 52050 | AG39: 96160.25893 | AH39: 69955.29967 | AI39: -636.71625 | AJ39: 3840 | AK39: 1183.604705 | AL39: 5753.792558 | AM39: -0.008636514692 | AN39: 0.07377521614 | AO39: 0.01230866803 | AP39: 0.08224955915
A40: 114 | B40: Technical Training Consultant | C40: 8 | D40: 85862.36292 | E40: 73380 | F40: -12482.36292 | G40: -0.1701057907 | H40: 107891.3982 | I40: 95414.39592 | J40: -12477.00224 | K40: -0.1307664542 | N40: Technical Training Consultant | O40: 7 | P40: 83506.55 | Q40: 68334 | R40: -15172.55 | S40: -0.2220351509 | T40: 98422.55 | U40: 88369.60968 | V40: -10052.94032 | W40: -0.113760153 | Z40: Technical Training Consultant | AA40: 85862.36292 | AB40: 73380 | AC40: 107891.3982 | AD40: 95414.39592 | AE40: 83506.55 | AF40: 68334 | AG40: 98422.55 | AH40: 88369.60968 | AI40: 2355.812921 | AJ40: 5046 | AK40: 9468.848159 | AL40: 7044.786239 | AM40: 0.02821111542 | AN40: 0.07384318202 | AO40: 0.09620608447 | AP40: 0.07971955817
B41: Average | D41: 68699.92337 | E41: 52094.4 | F41: -16605.52337 | G41: -0.318758319 | H41: 90580.01378 | I41: 71432.73713 | J41: -19147.27664 | K41: -0.2680462406 | N41: Average | P41: 63990.76659 | Q41: 48201.2 | R41: -15789.56659 | S41: -0.3275762136 | T41: 82770.76848 | U41: 65602.99088 | V41: -17167.77759 | W41: -0.2616919955 | Z41: Average | AA41: =AVERAGE(AA26:AA40) -> 68699.92337 | AB41: 52094.4 | AC41: 90580.01378 | AD41: 71432.73713 | AE41: 63990.76659 | AF41: 48201.2 | AG41: 82770.76848 | AH41: 65602.99088 | AI41: 4709.156784 | AJ41: 3893.2 | AK41: 7809.245299 | AL41: 5829.746251 | AM41: =AI41/AE41 -> 0.07359119191 | AN41: 0.08076977337 | AO41: 0.09434786511 | AP41: 0.08886403154
AI44: $ CHANGE 2022 TO 2024 | AM44: % CHANGE 2022 TO 2024
B45: Agriculture or Forest Services/Products | C45: Base Salary | H45: Total Compensation | N45: Agriculture or Forest Services/Products | O45: Base salary | T45: Total compensation | Z45: Agriculture or Forest Services/Products | AA45: Consistently Successful Benchmarks | AI45: Base salary | AK45: Total compensation | AM45: Base salary | AO45: Total compensation
B46: Benchmark | C46: No. of matches | D46: Market median | E46: Washington state | F46: How much the state lags or leads | G46: Washington % to reach EMV | H46: Market median | I46: Washington state | J46: How much the state lags or leads | K46: Washington % to reach market total compensation | N46: Benchmark | O46: No. of matches | P46: Market median | Q46: Washington state | R46: How much the state lags or leads | S46: Washington % to reach EMV | T46: Market median | U46: Washington state | V46: How much the state lags or leads | W46: Washington % to reach market total compensation | Z46: Benchmark | AA46: 2024 Base Market | AB46: 2024 Base State | AC46: 2024 Total Comp Market | AD46: 2024 Total Comp State | AE46: 2022 Base Market | AF46: 2022 Base State | AG46: 2022 Total Comp Market | AH46: 2022 Total Comp State | AI46: Base Market | AJ46: Base State | AK46: Total Comp Market | AL46: Total Comp State | AM46: Base Market | AN46: Base State | AO46: Total Comp Market | AP46: Total Comp State
A47: 200 | B47: Forest Cruiser & Craft Technician | C47: 7 | D47: 70899.75488 | E47: 51636 | F47: -19263.75488 | G47: =IFERROR(F47/E47,"--") -> -0.3730683028 | H47: 93392.43114 | I47: 70916.27566 | J47: -22476.15548 | K47: =IFERROR(J47/I47,"--") -> -0.31693931 | N47: Forest Cruiser & Craft Technician | O47: 6 | P47: 63588.29434 | Q47: 48084 | R47: -15504.29434 | S47: -0.3224418587 | T47: 82478.39502 | U47: 65470.45851 | V47: -17007.93651 | W47: -0.2597803177 | Z47: Forest Cruiser & Craft Technician | AA47: =IF($D47="-","-",IF($P47="-","-",D47)) -> 70899.75488 | AB47: =IF($D47="-","-",IF($P47="-","-",E47)) -> 51636 | AC47: =IF($D47="-","-",IF($P47="-","-",H47)) -> 93392.43114 | AD47: =IF($D47="-","-",IF($P47="-","-",I47)) -> 70916.27566 | AE47: =IF($D47="-","-",IF($P47="-","-",P47)) -> 63588.29434 | AF47: =IF($D47="-","-",IF($P47="-","-",Q47)) -> 48084 | AG47: =IF($D47="-","-",IF($P47="-","-",T47)) -> 82478.39502 | AH47: =IF($D47="-","-",IF($P47="-","-",U47)) -> 65470.45851 | AI47: =IFERROR(AA47-AE47,"-") -> 7311.460545 | AJ47: =IFERROR(AB47-AF47,"-") -> 3552 | AK47: =IFERROR(AC47-AG47,"-") -> 10914.03611 | AL47: =IFERROR(AD47-AH47,"-") -> 5445.817146 | AM47: =IFERROR(AI47/AE47,"-") -> 0.1149812339 | AN47: 0.07387072623 | AO47: 0.1323260001 | AP47: 0.08317976184
A48: 201 | B48: Forest Crew Supervisor 1 | C48: 9 | D48: 65027.42195 | E48: 40938 | F48: -24089.42195 | G48: -0.588436708 | H48: 90432.15781 | I48: 58863.25457 | J48: -31568.90324 | K48: -0.5363091706 | N48: Forest Crew Supervisor 1 | O48: 10 | P48: 64321.55078 | Q48: 38124 | R48: -26197.55078 | S48: -0.687166897 | T48: 89482.20974 | U48: 54207.4686 | V48: -35274.74114 | W48: -0.6507358128 | Z48: Forest Crew Supervisor 1 | AA48: =IF($D48="-","-",IF($P48="-","-",D48)) -> 65027.42195 | AB48: 40938 | AC48: =IF($D48="-","-",IF($P48="-","-",H48)) -> 90432.15781 | AD48: 58863.25457 | AE48: =IF($D48="-","-",IF($P48="-","-",P48)) -> 64321.55078 | AF48: 38124 | AG48: =IF($D48="-","-",IF($P48="-","-",T48)) -> 89482.20974 | AH48: 54207.4686 | AI48: =IFERROR(AA48-AE48,"-") -> 705.8711738 | AJ48: 2814 | AK48: 949.9480619 | AL48: 4655.785965 | AM48: 0.01097410067 | AN48: 0.07381177211 | AO48: 0.01061605502 | AP48: 0.08588827491
A49: 202 | B49: Forest Nursery Laborer | C49: 10 | D49: 48093.90816 | E49: 37392 | F49: -10701.90816 | G49: -0.2862084981 | H49: 68669.51049 | I49: 54868.11409 | J49: -13801.3964 | K49: -0.2515376486 | N49: Forest Nursery Laborer | O49: 11 | P49: 40793.54295 | Q49: 34818 | R49: -5975.542945 | S49: -0.1716222341 | T49: 56285.31739 | U49: 50468.97015 | V49: -5816.347241 | W49: -0.1152460061 | Z49: Forest Nursery Laborer | AA49: 48093.90816 | AB49: 37392 | AC49: 68669.51049 | AD49: 54868.11409 | AE49: 40793.54295 | AF49: 34818 | AG49: 56285.31739 | AH49: 50468.97015 | AI49: 7300.365216 | AJ49: 2574 | AK49: 12384.19311 | AL49: 4399.14395 | AM49: 0.1789588422 | AN49: 0.07392727899 | AO49: 0.220025287 | AP49: 0.08716532034
A50: 203 | B50: Horticulturist | C50: 8 | D50: 80503.02977 | E50: 82992 | F50: 2488.970233 | G50: 0.02999048382 | H50: 103802.7707 | I50: 106243.863 | J50: 2441.092314 | K50: 0.0229763136 | N50: Horticulturist | O50: 9 | P50: 76414.88911 | Q50: 77286 | R50: 871.1108909 | S50: 0.01127126376 | T50: 97001.35651 | U50: 98492.73073 | V50: 1491.374226 | W50: 0.01514197256 | Z50: Horticulturist | AA50: 80503.02977 | AB50: 82992 | AC50: 103802.7707 | AD50: 106243.863 | AE50: 76414.88911 | AF50: 77286 | AG50: 97001.35651 | AH50: 98492.73073 | AI50: 4088.140658 | AJ50: 5706 | AK50: 6801.414171 | AL50: 7751.132259 | AM50: 0.05349926834 | AN50: 0.07382967161 | AO50: 0.07011669131 | AP50: 0.07869750591
A51: 204 | B51: Agricultural Commodity Inspector 3 | C51: 12 | D51: 62374.06785 | E51: 49560 | F51: -12814.06785 | G51: -0.2585566555 | H51: 83348.6832 | I51: 68577.32709 | J51: -14771.35611 | K51: -0.2153970814 | N51: Agricultural Commodity Inspector 3 | O51: 10 | P51: 44011.60377 | Q51: 46152 | R51: 2140.396227 | S51: 0.04637710667 | T51: 65195.22389 | U51: 63285.70987 | V51: -1909.514021 | W51: -0.03017290988 | Z51: Agricultural Commodity Inspector 3 | AA51: 62374.06785 | AB51: 49560 | AC51: 83348.6832 | AD51: 68577.32709 | AE51: 44011.60377 | AF51: 46152 | AG51: 65195.22389 | AH51: 63285.70987 | AI51: 18362.46408 | AJ51: 3408 | AK51: 18153.45931 | AL51: 5291.617223 | AM51: 0.4172186992 | AN51: 0.07384295372 | AO51: 0.2784476872 | AP51: 0.08361472494
A52: 205 | B52: Grounds & Nursery Services Specialist 2 | C52: 19 | D52: 49449.54 | E52: 40938 | F52: -8511.54 | G52: -0.2079129415 | H52: 71387.15823 | I52: 58863.25457 | J52: -12523.90366 | K52: -0.2127626778 | N52: Grounds & Nursery Services Specialist 2 | O52: 16 | P52: 46093.91703 | Q52: 36348 | R52: -9745.917026 | S52: -0.2681280133 | T52: 64582.0128 | U52: 52199.12823 | V52: -12382.88457 | W52: -0.2372239726 | Z52: Grounds & Nursery Services Specialist 2 | AA52: 49449.54 | AB52: 40938 | AC52: 71387.15823 | AD52: 58863.25457 | AE52: 46093.91703 | AF52: 36348 | AG52: 64582.0128 | AH52: 52199.12823 | AI52: 3355.622974 | AJ52: 4590 | AK52: 6805.145432 | AL52: 6664.126335 | AM52: 0.07279969225 | AN52: 0.1262793001 | AO52: 0.1053721483 | AP52: 0.1276673876
A53: 206 | B53: Grain Inspector 1 | C53: 5 | D53: 48750.58297 | E53: 49560 | F53: 809.4170306 | G53: 0.01633206276 | H53: 68889.20675 | I53: 68577.32709 | J53: -311.8796574 | K53: -0.004547853798 | N53: Grain Inspector 1 | O53: 5 | P53: 44186.96907 | Q53: 46152 | R53: 1965.030928 | S53: 0.0425773732 | T53: 63970.12173 | U53: 63285.70987 | V53: -684.4118614 | W53: -0.01081463513 | Z53: Grain Inspector 1 | AA53: 48750.58297 | AB53: 49560 | AC53: 68889.20675 | AD53: 68577.32709 | AE53: 44186.96907 | AF53: 46152 | AG53: 63970.12173 | AH53: 63285.70987 | AI53: 4563.613897 | AJ53: 3408 | AK53: 4919.085019 | AL53: 5291.617223 | AM53: 0.1032796318 | AN53: 0.07384295372 | AO53: 0.07689660245 | AP53: 0.08361472494
A54: 207 | B54: Wildland Fire Operations Technician 2 | C54: 7 | D54: 70667.79608 | E54: 52008 | F54: -18659.79608 | G54: -0.3587870343 | H54: 92588.93296 | I54: 71335.39361 | J54: -21253.53936 | K54: -0.2979382082 | N54: Wildland Fire Operations Technician 2 | O54: 6 | P54: 66742.84171 | Q54: 48438 | R54: -18304.84171 | S54: -0.3779025085 | T54: 88853.01318 | U54: 65870.7696 | V54: -22982.24358 | W54: -0.3488989687 | Z54: Wildland Fire Operations Technician 2 | AA54: 70667.79608 | AB54: 52008 | AC54: 92588.93296 | AD54: 71335.39361 | AE54: 66742.84171 | AF54: 48438 | AG54: 88853.01318 | AH54: 65870.7696 | AI54: 3924.95437 | AJ54: 3570 | AK54: 3735.919783 | AL54: 5464.624011 | AM54: 0.05880712103 | AN54: 0.07370246501 | AO54: 0.04204606742 | AP54: 0.08295977175
A55: 208 | B55: Farmer 2 | C55: 1 | D55: - | E55: - | F55: -- | G55: =IFERROR(F55/E55,"--") -> -- | H55: - | I55: - | J55: -- | K55: -- | N55: Farmer 2 | O55: 1 | P55: - | Q55: - | R55: -- | S55: -- | T55: - | U55: - | V55: -- | W55: -- | Z55: Farmer 2 | AA55: - | AB55: - | AC55: - | AD55: - | AE55: - | AF55: - | AG55: - | AH55: - | AI55: - | AJ55: - | AK55: - | AL55: - | AM55: - | AN55: - | AO55: - | AP55: -
B56: Average | D56: 61970.76271 | E56: 50628 | F56: -11342.76271 | G56: =IFERROR(F56/E56,"--") -> -0.2240412955 | H56: 84063.85641 | I56: 69780.60121 | J56: -14283.2552 | K56: -0.2046880501 | N56: Average | P56: 55769.20109 | Q56: 46925.25 | R56: -8843.951094 | S56: -0.188468918 | T56: 75980.95628 | U56: 64160.11819 | V56: -11820.83809 | W56: -0.1842396557 | Z56: Average | AA56: =AVERAGE(AA47:AA55) -> 61970.76271 | AB56: 50628 | AC56: 84063.85641 | AD56: 69780.60121 | AE56: 55769.20109 | AF56: 46925.25 | AG56: 75980.95628 | AH56: 64160.11819 | AI56: 6201.561614 | AJ56: 3702.75 | AK56: 8082.900124 | AL56: 5620.483014 | AM56: =AI56/AE56 -> 0.1112004743 | AN56: 0.07890741126 | AO56: 0.1063806053 | AP56: 0.0876008831
AI59: $ CHANGE 2022 TO 2024 | AM59: % CHANGE 2022 TO 2024
B60: Arts, Entertainment, or Recreation | C60: Base Salary | H60: Total Compensation | N60: Arts, Entertainment, or Recreation | O60: Base salary | T60: Total compensation | Z60: Arts, Entertainment, or Recreation | AA60: Consistently Successful Benchmarks | AI60: Base salary | AK60: Total compensation | AM60: Base salary | AO60: Total compensation
B61: Benchmark | C61: No. of matches | D61: Market median | E61: Washington state | F61: How much the state lags or leads | G61: Washington % to reach EMV | H61: Market median | I61: Washington state | J61: How much the state lags or leads | K61: Washington % to reach market total compensation | N61: Benchmark | O61: No. of matches | P61: Market median | Q61: Washington state | R61: How much the state lags or leads | S61: Washington % to reach EMV | T61: Market median | U61: Washington state | V61: How much the state lags or leads | W61: Washington % to reach market total compensation | Z61: Benchmark | AA61: 2024 Base Market | AB61: 2024 Base State | AC61: 2024 Total Comp Market | AD61: 2024 Total Comp State | AE61: 2022 Base Market | AF61: 2022 Base State | AG61: 2022 Total Comp Market | AH61: 2022 Total Comp State | AI61: Base Market | AJ61: Base State | AK61: Total Comp Market | AL61: Total Comp State | AM61: Base Market | AN61: Base State | AO61: Total Comp Market | AP61: Total Comp State
A62: 300 | B62: Graphic Designer | C62: 19 | D62: 71801.1 | E62: 49560 | F62: -22241.1 | G62: =IFERROR(F62/E62,"--") -> -0.4487711864 | H62: 95485.01662 | I62: 68577.32709 | J62: -26907.68953 | K62: =IFERROR(J62/I62,"--") -> -0.3923700539 | N62: Graphic Designer | O62: 19 | P62: 65544.25 | Q62: 46152 | R62: -19392.25 | S62: -0.420182224 | T62: 84834.21376 | U62: 63285.70987 | V62: -21548.5039 | W62: -0.3404955707 | Z62: Graphic Designer | AA62: =IF($D62="-","-",IF($P62="-","-",D62)) -> 71801.1 | AB62: =IF($D62="-","-",IF($P62="-","-",E62)) -> 49560 | AC62: =IF($D62="-","-",IF($P62="-","-",H62)) -> 95485.01662 | AD62: =IF($D62="-","-",IF($P62="-","-",I62)) -> 68577.32709 | AE62: =IF($D62="-","-",IF($P62="-","-",P62)) -> 65544.25 | AF62: =IF($D62="-","-",IF($P62="-","-",Q62)) -> 46152 | AG62: =IF($D62="-","-",IF($P62="-","-",T62)) -> 84834.21376 | AH62: =IF($D62="-","-",IF($P62="-","-",U62)) -> 63285.70987 | AI62: =IFERROR(AA62-AE62,"-") -> 6256.85 | AJ62: =IFERROR(AB62-AF62,"-") -> 3408 | AK62: =IFERROR(AC62-AG62,"-") -> 10650.80286 | AL62: =IFERROR(AD62-AH62,"-") -> 5291.617223 | AM62: =IFERROR(AI62/AE62,"-") -> 0.09545993737 | AN62: 0.07384295372 | AO62: 0.125548436 | AP62: 0.08361472494
A63: 301 | B63: Recreation & Athletics Specialist 2 | C63: 13 | D63: 68427.50475 | E63: 53304 | F63: -15123.50475 | G63: -0.283721761 | H63: 90672.90265 | I63: 72795.54647 | J63: -17877.35617 | K63: -0.2455831028 | N63: Recreation & Athletics Specialist 2 | O63: 13 | P63: 60816.00578 | Q63: 46152 | R63: -14664.00578 | S63: -0.3177328346 | T63: 79952.45622 | U63: 63285.70987 | V63: -16666.74635 | W63: -0.2633571843 | Z63: Recreation & Athletics Specialist 2 | AA63: =IF($D63="-","-",IF($P63="-","-",D63)) -> 68427.50475 | AB63: 53304 | AC63: =IF($D63="-","-",IF($P63="-","-",H63)) -> 90672.90265 | AD63: 72795.54647 | AE63: =IF($D63="-","-",IF($P63="-","-",P63)) -> 60816.00578 | AF63: 46152 | AG63: =IF($D63="-","-",IF($P63="-","-",T63)) -> 79952.45622 | AH63: 63285.70987 | AI63: =IFERROR(AA63-AE63,"-") -> 7611.498966 | AJ63: 7152 | AK63: 10720.44642 | AL63: 9509.836606 | AM63: 0.12515618 | AN63: 0.1549661986 | AO63: 0.1340852668 | AP63: 0.150268309
A64: 302 | B64: Sports Equipment Technician | C64: 2 | D64: - | E64: - | F64: -- | G64: -- | H64: - | I64: - | J64: -- | K64: -- | N64: Sports Equipment Technician | O64: 3 | P64: - | Q64: - | R64: -- | S64: -- | T64: - | U64: - | V64: -- | W64: -- | Z64: Sports Equipment Technician | AA64: - | AB64: - | AC64: - | AD64: - | AE64: - | AF64: - | AG64: - | AH64: - | AI64: - | AJ64: - | AK64: - | AL64: - | AM64: - | AN64: - | AO64: - | AP64: -
A65: 303 | B65: Preservation & Museum Specialist 3 | C65: 15 | D65: 81785.05078 | E65: 49560 | F65: -32225.05078 | G65: -0.6502229779 | H65: 105402.1296 | I65: 68577.32709 | J65: -36824.80247 | K65: -0.5369821781 | N65: Preservation & Museum Specialist 3 | O65: 13 | P65: 68820.99779 | Q65: 46152 | R65: -22668.99779 | S65: -0.4911812661 | T65: 88556.12627 | U65: 63285.70987 | V65: -25270.4164 | W65: -0.3993068334 | Z65: Preservation & Museum Specialist 3 | AA65: 81785.05078 | AB65: 49560 | AC65: 105402.1296 | AD65: 68577.32709 | AE65: 68820.99779 | AF65: 46152 | AG65: 88556.12627 | AH65: 63285.70987 | AI65: =IFERROR(AA65-AE65,"-") -> 12964.05299 | AJ65: =IFERROR(AB65-AF65,"-") -> 3408 | AK65: =IFERROR(AC65-AG65,"-") -> 16846.00329 | AL65: =IFERROR(AD65-AH65,"-") -> 5291.617223 | AM65: 0.1883735111 | AN65: 0.07384295372 | AO65: 0.1902296769 | AP65: 0.08361472494
A66: 304 | B66: Sewing & Alterations Specialist 2 | C66: 4 | D66: - | E66: - | F66: -- | G66: -- | H66: - | I66: - | J66: -- | K66: -- | N66: Sewing & Alterations Specialist 2 | O66: 4 | P66: - | Q66: - | R66: -- | S66: -- | T66: - | U66: - | V66: -- | W66: -- | Z66: Sewing & Alterations Specialist 2 | AA66: - | AB66: - | AC66: - | AD66: - | AE66: - | AF66: - | AG66: - | AH66: - | AI66: =IFERROR(AA66-AE66,"-") -> - | AJ66: - | AK66: - | AL66: - | AM66: - | AN66: - | AO66: - | AP66: -
B67: Average | D67: 74004.55184 | E67: 50808 | F67: -23196.55184 | G67: -0.4565531382 | H67: 97186.68294 | I67: 69983.40022 | J67: -27203.28272 | K67: -0.3887105033 | N67: Average | P67: 65060.41786 | Q67: 46152 | R67: -18908.41786 | S67: -0.4096987749 | T67: 84447.59875 | U67: 63285.70987 | V67: -21161.88888 | W67: -0.3343865294 | Z67: Average | AA67: =AVERAGE(AA62:AA66) -> 74004.55184 | AB67: 50808 | AC67: 97186.68294 | AD67: 69983.40022 | AE67: 65060.41786 | AF67: 46152 | AG67: 84447.59875 | AH67: 63285.70987 | AI67: 8944.133986 | AJ67: 4656 | AK67: 12739.08419 | AL67: 6697.690351 | AM67: =AI67/AE67 -> 0.1374742782 | AN67: 0.1008840354 | AO67: 0.1508519411 | AP67: 0.1058325863
AI70: $ CHANGE 2022 TO 2024 | AM70: % CHANGE 2022 TO 2024
B71: Construction | C71: Base Salary | H71: Total Compensation | N71: Construction | O71: Base salary | T71: Total compensation | Z71: Construction | AA71: Consistently Successful Benchmarks | AI71: Base salary | AK71: Total compensation | AM71: Base salary | AO71: Total compensation
B72: Benchmark | C72: No. of matches | D72: Market median | E72: Washington state | F72: How much the state lags or leads | G72: Washington % to reach EMV | H72: Market median | I72: Washington state | J72: How much the state lags or leads | K72: Washington % to reach market total compensation | N72: Benchmark | O72: No. of matches | P72: Market median | Q72: Washington state | R72: How much the state lags or leads | S72: Washington % to reach EMV | T72: Market median | U72: Washington state | V72: How much the state lags or leads | W72: Washington % to reach market total compensation | Z72: Benchmark | AA72: 2024 Base Market | AB72: 2024 Base State | AC72: 2024 Total Comp Market | AD72: 2024 Total Comp State | AE72: 2022 Base Market | AF72: 2022 Base State | AG72: 2022 Total Comp Market | AH72: 2022 Total Comp State | AI72: Base Market | AJ72: Base State | AK72: Total Comp Market | AL72: Total Comp State | AM72: Base Market | AN72: Base State | AO72: Total Comp Market | AP72: Total Comp State
A73: 400 | B73: Highway Maintenance Worker 2 | C73: 14 | D73: 67581.7 | E73: 56976 | F73: -10605.7 | G73: =IFERROR(F73/E73,"--") -> -0.1861432884 | H73: 90095.80163 | I73: 76932.64625 | J73: -13163.15538 | K73: =IFERROR(J73/I73,"--") -> -0.1710997349 | N73: Highway Maintenance Worker 2 | O73: 8 | P73: 63491 | Q73: 53052 | R73: -10439 | S73: -0.1967692076 | T73: 81837.45427 | U73: 71088.3836 | V73: -10749.07067 | W73: -0.151207133 | Z73: Highway Maintenance Worker 2 | AA73: =IF($D73="-","-",IF($P73="-","-",D73)) -> 67581.7 | AB73: =IF($D73="-","-",IF($P73="-","-",E73)) -> 56976 | AC73: =IF($D73="-","-",IF($P73="-","-",H73)) -> 90095.80163 | AD73: =IF($D73="-","-",IF($P73="-","-",I73)) -> 76932.64625 | AE73: =IF($D73="-","-",IF($P73="-","-",P73)) -> 63491 | AF73: =IF($D73="-","-",IF($P73="-","-",Q73)) -> 53052 | AG73: =IF($D73="-","-",IF($P73="-","-",T73)) -> 81837.45427 | AH73: =IF($D73="-","-",IF($P73="-","-",U73)) -> 71088.3836 | AI73: =IFERROR(AA73-AE73,"-") -> 4090.7 | AJ73: =IFERROR(AB73-AF73,"-") -> 3924 | AK73: =IFERROR(AC73-AG73,"-") -> 8258.347361 | AL73: =IFERROR(AD73-AH73,"-") -> 5844.262654 | AM73: =IFERROR(AI73/AE73,"-") -> 0.0644296042 | AN73: 0.07396516625 | AO73: 0.1009115867 | AP73: 0.08221121874
A74: 401 | B74: Construction Project Coordinator 2 | C74: 23 | D74: 109841 | E74: 75150 | F74: -34691 | G74: -0.4616234198 | H74: 137802.9862 | I74: 97408.58617 | J74: -40394.40004 | K74: -0.4146903433 | N74: Construction Project Coordinator 2 | O74: 20 | P74: 101049.9113 | Q74: 69990 | R74: -31059.91125 | S74: -0.4437764145 | T74: 126030.3201 | U74: 90242.25138 | V74: -35788.06877 | W74: -0.3965777474 | Z74: Construction Project Coordinator 2 | AA74: =IF($D74="-","-",IF($P74="-","-",D74)) -> 109841 | AB74: 75150 | AC74: =IF($D74="-","-",IF($P74="-","-",H74)) -> 137802.9862 | AD74: 97408.58617 | AE74: =IF($D74="-","-",IF($P74="-","-",P74)) -> 101049.9113 | AF74: 69990 | AG74: =IF($D74="-","-",IF($P74="-","-",T74)) -> 126030.3201 | AH74: 90242.25138 | AI74: =IFERROR(AA74-AE74,"-") -> 8791.08875 | AJ74: 5160 | AK74: 11772.66607 | AL74: 7166.334797 | AM74: 0.08699749105 | AN74: 0.07372481783 | AO74: 0.09341137956 | AP74: 0.07941218983
A75: 402 | B75: Construction & Maintenance Superintendent 2 | C75: 16 | D75: 95444.01375 | E75: 63258 | F75: -32186.01375 | G75: -0.5088054278 | H75: 122062.1697 | I75: 84010.33166 | J75: -38051.83805 | K75: -0.4529423619 | N75: Construction & Maintenance Superintendent 2 | O75: 13 | P75: 92348.05 | Q75: 58908 | R75: -33440.05 | S75: -0.5676656821 | T75: 116751.8314 | U75: 77710.47887 | V75: -39041.35257 | W75: -0.5023949554 | Z75: Construction & Maintenance Superintendent 2 | AA75: 95444.01375 | AB75: 63258 | AC75: 122062.1697 | AD75: 84010.33166 | AE75: 92348.05 | AF75: 58908 | AG75: 116751.8314 | AH75: 77710.47887 | AI75: 3095.96375 | AJ75: 4350 | AK75: 5310.33827 | AL75: 6299.852789 | AM75: 0.0335249499 | AN75: 0.07384396007 | AO75: 0.0454839826 | AP75: 0.08106825335
A76: 403 | B76: Carpenter | C76: 14 | D76: 73465.39414 | E76: 52770 | F76: -20695.39414 | G76: -0.3921810525 | H76: 98271.1591 | I76: 72193.90941 | J76: -26077.24969 | K76: -0.3612112143 | N76: Carpenter | O76: 16 | P76: 65769.79 | Q76: 49140 | R76: -16629.79 | S76: -0.3384165649 | T76: 84917.41342 | U76: 66664.60684 | V76: -18252.80658 | W76: -0.2738005584 | Z76: Carpenter | AA76: 73465.39414 | AB76: 52770 | AC76: 98271.1591 | AD76: 72193.90941 | AE76: 65769.79 | AF76: 49140 | AG76: 84917.41342 | AH76: 66664.60684 | AI76: 7695.604141 | AJ76: 3630 | AK76: 13353.74568 | AL76: 5529.302574 | AM76: 0.1170081909 | AN76: 0.07387057387 | AO76: 0.1572556811 | AP76: 0.08294210131
A77: 404 | B77: Painter | C77: 14 | D77: 68829.996 | E77: 52770 | F77: -16059.996 | G77: -0.3043395111 | H77: 92481.65316 | I77: 72193.90941 | J77: -20287.74374 | K77: -0.2810173865 | N77: Painter | O77: 16 | P77: 61195.39 | Q77: 49140 | R77: -12055.39 | S77: -0.2453274318 | T77: 80574.99404 | U77: 66664.60684 | V77: -13910.3872 | W77: -0.2086622551 | Z77: Painter | AA77: 68829.996 | AB77: 52770 | AC77: 92481.65316 | AD77: 72193.90941 | AE77: 61195.39 | AF77: 49140 | AG77: 80574.99404 | AH77: 66664.60684 | AI77: 7634.606 | AJ77: 3630 | AK77: 11906.65912 | AL77: 5529.302574 | AM77: 0.1247578617 | AN77: 0.07387057387 | AO77: 0.1477711448 | AP77: 0.08294210131
A78: 406 | B78: Electrician | C78: 22 | D78: 81732.6 | E78: 64344 | F78: -17388.6 | G78: -0.2702443118 | H78: 108061.6946 | I78: 85233.88568 | J78: -22827.80893 | K78: -0.2678255103 | N78: Electrician | O78: 19 | P78: 72232.5 | Q78: 54258 | R78: -17974.5 | S78: -0.3312783368 | T78: 92250.28438 | U78: 72452.15527 | V78: -19798.12911 | W78: -0.2732579733 | Z78: Electrician | AA78: 81732.6 | AB78: 64344 | AC78: 108061.6946 | AD78: 85233.88568 | AE78: 72232.5 | AF78: 54258 | AG78: 92250.28438 | AH78: 72452.15527 | AI78: 9500.1 | AJ78: 10086 | AK78: 15811.41023 | AL78: 12781.73041 | AM78: 0.1315211297 | AN78: 0.1858896384 | AO78: 0.1713968725 | AP78: 0.1764161516
A79: 407 | B79: Plumber/Pipefitter/Steamfitter | C79: 15 | D79: 77007.66 | E79: 64344 | F79: -12663.66 | G79: -0.1968118239 | H79: 103314.3048 | I79: 85233.88568 | J79: -18080.41912 | K79: -0.212127125 | N79: Plumber/Pipefitter/Steamfitter | O79: 14 | P79: 69596.54051 | Q79: 54258 | R79: -15338.54051 | S79: -0.2826963859 | T79: 88314.53097 | U79: 72452.15527 | V79: -15862.3757 | W79: -0.2189358707 | Z79: Plumber/Pipefitter/Steamfitter | AA79: 77007.66 | AB79: 64344 | AC79: 103314.3048 | AD79: 85233.88568 | AE79: 69596.54051 | AF79: 54258 | AG79: 88314.53097 | AH79: 72452.15527 | AI79: 7411.119494 | AJ79: 10086 | AK79: 14999.77384 | AL79: 12781.73041 | AM79: 0.1064868949 | AN79: 0.1858896384 | AO79: 0.1698449131 | AP79: 0.1764161516
A80: 408 | B80: Refrigeration Mechanic | C80: 13 | D80: 75700 | E80: 58266 | F80: -17434 | G80: -0.2992139498 | H80: 100048.4519 | I80: 78386.03915 | J80: -21662.41278 | K80: -0.2763554967 | N80: Refrigeration Mechanic | O80: 15 | P80: 70399 | Q80: 54258 | R80: -16141 | S80: -0.297486085 | T80: 90416.78438 | U80: 72452.15527 | V80: -17964.62911 | W80: -0.2479516178 | Z80: Refrigeration Mechanic | AA80: 75700 | AB80: 58266 | AC80: 100048.4519 | AD80: 78386.03915 | AE80: 70399 | AF80: 54258 | AG80: 90416.78438 | AH80: 72452.15527 | AI80: 5301 | AJ80: 4008 | AK80: 9631.667557 | AL80: 5933.88388 | AM80: 0.07529936505 | AN80: 0.07386929116 | AO80: 0.1065252168 | AP80: 0.08190072274
A81: 409 | B81: Maintenance Mechanic 2 | C81: 24 | D81: 69098.4 | E81: 59658 | F81: -9440.4 | G81: -0.1582419793 | H81: 93168.20467 | I81: 79954.35148 | J81: -13213.85318 | K81: -0.1652674675 | N81: Maintenance Mechanic 2 | O81: 22 | P81: 63424.05051 | Q81: 55560 | R81: -7864.050506 | S81: -0.1415415858 | T81: 84806.14974 | U81: 73924.48588 | V81: -10881.66386 | W81: -0.1471997233 | Z81: Maintenance Mechanic 2 | AA81: 69098.4 | AB81: 59658 | AC81: 93168.20467 | AD81: 79954.35148 | AE81: 63424.05051 | AF81: 55560 | AG81: 84806.14974 | AH81: 73924.48588 | AI81: 5674.349494 | AJ81: 4098 | AK81: 8362.054925 | AL81: 6029.865606 | AM81: 0.08946684182 | AN81: 0.07375809935 | AO81: 0.0986019876 | AP81: 0.08156790724
A82: 410 | B82: Welder - Fabricator | C82: 11 | D82: 70336.74723 | E82: 58266 | F82: -12070.74723 | G82: -0.2071662244 | H82: 95843.37838 | I82: 78386.03915 | J82: -17457.33923 | K82: -0.2227098016 | N82: Welder - Fabricator | O82: 12 | P82: 65684.89102 | Q82: 54258 | R82: -11426.89102 | S82: -0.2106028793 | T82: 84685.92073 | U82: 72452.15527 | V82: -12233.76546 | W82: -0.1688530233 | Z82: Welder - Fabricator | AA82: 70336.74723 | AB82: 58266 | AC82: 95843.37838 | AD82: 78386.03915 | AE82: 65684.89102 | AF82: 54258 | AG82: 84685.92073 | AH82: 72452.15527 | AI82: 4651.856204 | AJ82: 4008 | AK82: 11157.45764 | AL82: 5933.88388 | AM82: 0.07082079504 | AN82: 0.07386929116 | AO82: 0.1317510343 | AP82: 0.08190072274
A83: 411 | B83: Equipment Operator 2 | C83: 20 | D83: 74424 | E83: 56838 | F83: -17586 | G83: -0.3094056793 | H83: 96898.65847 | I83: 76777.16701 | J83: -20121.49146 | K83: -0.2620765033 | N83: Equipment Operator 2 | O83: 15 | P83: 74726.64 | Q83: 52926 | R83: -21800.64 | S83: -0.4119079469 | T83: 92657.43199 | U83: 70945.89999 | V83: -21711.532 | W83: -0.3060294111 | Z83: Equipment Operator 2 | AA83: 74424 | AB83: 56838 | AC83: 96898.65847 | AD83: 76777.16701 | AE83: 74726.64 | AF83: 52926 | AG83: 92657.43199 | AH83: 70945.89999 | AI83: -302.64 | AJ83: 3912 | AK83: 4241.226485 | AL83: 5831.267021 | AM83: -0.004049961299 | AN83: 0.07391452216 | AO83: 0.04577319266 | AP83: 0.0821931503
A84: 412 | B84: Electrical Construction Inspector | C84: 15 | D84: 87715.67497 | E84: 91032 | F84: 3316.325034 | G84: 0.03643032158 | H84: 112743.5989 | I84: 115302.2187 | J84: 2558.619864 | K84: 0.02219055186 | N84: Electrical Construction Inspector | O84: ="-" -> - | P84: - | Q84: - | R84: -- | S84: -- | T84: - | U84: - | V84: -- | W84: -- | Z84: Electrical Construction Inspector | AA84: =IF($D84="-","-",IF($P84="-","-",D84)) -> - | AB84: =IF($D84="-","-",IF($P84="-","-",E84)) -> - | AC84: =IF($D84="-","-",IF($P84="-","-",H84)) -> - | AD84: =IF($D84="-","-",IF($P84="-","-",I84)) -> - | AE84: =IF($D84="-","-",IF($P84="-","-",P84)) -> - | AF84: =IF($D84="-","-",IF($P84="-","-",Q84)) -> - | AG84: =IF($D84="-","-",IF($P84="-","-",T84)) -> - | AH84: =IF($D84="-","-",IF($P84="-","-",U84)) -> - | AI84: =IFERROR(AA84-AE84,"-") -> - | AJ84: =IFERROR(AB84-AF84,"-") -> - | AK84: =IFERROR(AC84-AG84,"-") -> - | AL84: =IFERROR(AD84-AH84,"-") -> - | AM84: =IFERROR(AI84/AE84,"-") -> - | AN84: =IFERROR(AJ84/AF84,"-") -> - | AO84: =IFERROR(AK84/AG84,"-") -> - | AP84: =IFERROR(AL84/AH84,"-") -> -
B85: Average | D85: 79264.76551 | E85: 62806 | F85: -16458.76551 | G85: =IFERROR(F85/E85,"--") -> -0.262057216 | H85: 104232.6718 | I85: 83501.08081 | J85: -20731.59098 | K85: -0.248279313 | N85: Average | P85: 72719.79666 | Q85: 55068 | R85: -17651.79666 | S85: -0.3205454468 | T85: 93022.10141 | U85: 73368.12132 | V85: -19653.98009 | W85: -0.2678817413 | Z85: Average | AA85: =AVERAGE(AA73:AA84) -> 78496.50101 | AB85: =AVERAGE(AB73:AB84) -> 60240 | AC85: 103458.9512 | AD85: 80610.06828 | AE85: 72719.79666 | AF85: 55068 | AG85: 93022.10141 | AH85: 73368.12132 | AI85: 5776.704349 | AJ85: 5172 | AK85: 10436.84974 | AL85: 7241.946963 | AM85: =AI85/AE85 -> 0.07943785068 | AN85: 0.09392024406 | AO85: 0.1121975271 | AP85: 0.09870699745
AI87: $ CHANGE 2022 TO 2024 | AM87: % CHANGE 2022 TO 2024
B88: Education or Library Services | C88: Base Salary | H88: Total Compensation | N88: Education or Library Services | O88: Base salary | T88: Total compensation | Z88: Education or Library Services | AA88: Consistently Successful Benchmarks | AI88: Base salary | AK88: Total compensation | AM88: Base salary | AO88: Total compensation
B89: Benchmark | C89: No. of matches | D89: Market median | E89: Washington state | F89: How much the state lags or leads | G89: Washington % to reach EMV | H89: Market median | I89: Washington state | J89: How much the state lags or leads | K89: Washington % to reach market total compensation | N89: Benchmark | O89: No. of matches | P89: Market median | Q89: Washington state | R89: How much the state lags or leads | S89: Washington % to reach EMV | T89: Market median | U89: Washington state | V89: How much the state lags or leads | W89: Washington % to reach market total compensation | Z89: Benchmark | AA89: 2024 Base Market | AB89: 2024 Base State | AC89: 2024 Total Comp Market | AD89: 2024 Total Comp State | AE89: 2022 Base Market | AF89: 2022 Base State | AG89: 2022 Total Comp Market | AH89: 2022 Total Comp State | AI89: Base Market | AJ89: Base State | AK89: Total Comp Market | AL89: Total Comp State | AM89: Base Market | AN89: Base State | AO89: Total Comp Market | AP89: Total Comp State
A90: 500 | B90: Vocational Education Program Specialist | C90: 7 | D90: 71237.8068 | E90: 77082 | F90: 5844.193201 | G90: =IFERROR(F90/E90,"--") -> 0.07581787189 | H90: 92470.635 | I90: 99585.29554 | J90: 7114.660539 | K90: =IFERROR(J90/I90,"--") -> 0.07144288221 | N90: Vocational Education Program Specialist | O90: 6 | P90: 66657.21333 | Q90: 71784 | R90: 5126.786667 | S90: 0.07141962926 | T90: 86716.66739 | U90: 92270.94655 | V90: 5554.279155 | W90: 0.06019532001 | Z90: Vocational Education Program Specialist | AA90: =IF($D90="-","-",IF($P90="-","-",D90)) -> 71237.8068 | AB90: 77082 | AC90: =IF($D90="-","-",IF($P90="-","-",H90)) -> 92470.635 | AD90: 99585.29554 | AE90: =IF($D90="-","-",IF($P90="-","-",P90)) -> 66657.21333 | AF90: 71784 | AG90: =IF($D90="-","-",IF($P90="-","-",T90)) -> 86716.66739 | AH90: 92270.94655 | AI90: =IFERROR(AA90-AE90,"-") -> 4580.593465 | AJ90: =IFERROR(AB90-AF90,"-") -> 5298 | AK90: =IFERROR(AC90-AG90,"-") -> 5753.967605 | AL90: =IFERROR(AD90-AH90,"-") -> 7314.348988 | AM90: =IFERROR(AI90/AE90,"-") -> 0.06871864629 | AN90: 0.07380474758 | AO90: 0.06635365239 | AP90: 0.07927033656
A91: 501 | B91: Instruction & Classroom Support Technician 1 | C91: 9 | D91: 48355.66485 | E91: 46074 | F91: -2281.664848 | G91: -0.04952174432 | H91: 67566.75031 | I91: 64649.78629 | J91: -2916.964025 | K91: -0.04511946895 | N91: Instruction & Classroom Support Technician 1 | O91: 10 | P91: 42502.76153 | Q91: 42900 | R91: 397.2384691 | S91: 0.009259637974 | T91: 59727.16733 | U91: 59608.27581 | V91: -118.8915222 | W91: -0.001994547244 | Z91: Instruction & Classroom Support Technician 1 | AA91: 48355.66485 | AB91: 46074 | AC91: 67566.75031 | AD91: 64649.78629 | AE91: 42502.76153 | AF91: 42900 | AG91: 59727.16733 | AH91: 59608.27581 | AI91: =IFERROR(AA91-AE91,"-") -> 5852.903317 | AJ91: 3174 | AK91: 7839.582977 | AL91: 5041.510474 | AM91: 0.1377064244 | AN91: 0.07398601399 | AO91: 0.1312565676 | AP91: 0.08457735784
A92: 502 | B92: Early Childhood Program Specialist 3 | C92: 8 | D92: 57702.21012 | E92: 49560 | F92: -8142.210121 | G92: -0.164289954 | H92: 80244.56223 | I92: 68577.32709 | J92: -11667.23514 | K92: -0.1701325443 | N92: Early Childhood Program Specialist 3 | O92: 7 | P92: 46327.6 | Q92: 46152 | R92: -175.6 | S92: -0.003804818859 | T92: 59132.76 | U92: 63285.70987 | V92: 4152.949867 | W92: 0.06562223724 | Z92: Early Childhood Program Specialist 3 | AA92: 57702.21012 | AB92: 49560 | AC92: 80244.56223 | AD92: 68577.32709 | AE92: 46327.6 | AF92: 46152 | AG92: 59132.76 | AH92: 63285.70987 | AI92: 11374.61012 | AJ92: 3408 | AK92: 21111.80223 | AL92: 5291.617223 | AM92: 0.2455255641 | AN92: 0.07384295372 | AO92: 0.3570237924 | AP92: 0.08361472494
A93: 503 | B93: Deaf Interpreter 3 | C93: 10 | D93: 66075.99153 | E93: 55890 | F93: -10185.99153 | G93: -0.1822506983 | H93: 86026.27128 | I93: 75709.09223 | J93: -10317.17905 | K93: -0.1362739764 | N93: Deaf Interpreter 3 | O93: 11 | P93: 72523.56934 | Q93: 49638 | R93: -22885.56934 | S93: -0.4610493844 | T93: 93113.02897 | U93: 67227.75633 | V93: -25885.27263 | W93: -0.3850384729 | Z93: Deaf Interpreter 3 | AA93: 66075.99153 | AB93: 55890 | AC93: 86026.27128 | AD93: 75709.09223 | AE93: 72523.56934 | AF93: 49638 | AG93: 93113.02897 | AH93: 67227.75633 | AI93: -6447.577815 | AJ93: 6252 | AK93: -7086.75769 | AL93: 8481.335898 | AM93: -0.08890320586 | AN93: 0.1259518917 | AO93: -0.07610919512 | AP93: 0.1261582471
A94: 505 | B94: Library & Archival Professional 2 | C94: 13 | D94: 80285.2 | E94: 57306 | F94: -22979.2 | G94: -0.4009911702 | H94: 104939.26 | I94: 77304.44443 | J94: -27634.81555 | K94: -0.3574802943 | N94: Library & Archival Professional 2 | O94: 13 | P94: 73667.4 | Q94: 53364 | R94: -20303.4 | S94: -0.3804699798 | T94: 92165.1742 | U94: 71441.20015 | V94: -20723.97405 | W94: -0.2900843492 | Z94: Library & Archival Professional 2 | AA94: 80285.2 | AB94: 57306 | AC94: 104939.26 | AD94: 77304.44443 | AE94: 73667.4 | AF94: 53364 | AG94: 92165.1742 | AH94: 71441.20015 | AI94: 6617.8 | AJ94: 3942 | AK94: 12774.08578 | AL94: 5863.244285 | AM94: 0.08983349487 | AN94: 0.07387002474 | AO94: 0.1385999201 | AP94: 0.08207090968
B95: Average | D95: 64731.37466 | E95: 57182.4 | F95: -7548.974659 | G95: -0.1320157017 | H95: 86249.49576 | I95: 77165.18912 | J95: -9084.306644 | K95: -0.1177254504 | N95: Average | P95: 60335.70884 | Q95: 52767.6 | R95: -7568.108841 | S95: -0.1434234045 | T95: 78170.95958 | U95: 70766.77774 | V95: -7404.181838 | W95: -0.1046279352 | Z95: Average | AA95: =AVERAGE(AA90:AA94) -> 64731.37466 | AB95: 57182.4 | AC95: 86249.49576 | AD95: 77165.18912 | AE95: 60335.70884 | AF95: 52767.6 | AG95: 78170.95958 | AH95: 70766.77774 | AI95: 4395.665818 | AJ95: 4414.8 | AK95: 8078.536179 | AL95: 6398.411373 | AM95: =AI95/AE95 -> 0.07285347106 | AN95: 0.08366497624 | AO95: 0.1033444673 | AP95: 0.09041546864
AI98: $ CHANGE 2022 TO 2024 | AM98: % CHANGE 2022 TO 2024
B99: Finance or Insurance | C99: Base Salary | H99: Total Compensation | N99: Finance or Insurance | O99: Base salary | T99: Total compensation | Z99: Finance or Insurance | AA99: Consistently Successful Benchmarks | AI99: Base salary | AK99: Total compensation | AM99: Base salary | AO99: Total compensation
B100: Benchmark | C100: No. of matches | D100: Market median | E100: Washington state | F100: How much the state lags or leads | G100: Washington % to reach EMV | H100: Market median | I100: Washington state | J100: How much the state lags or leads | K100: Washington % to reach market total compensation | N100: Benchmark | O100: No. of matches | P100: Market median | Q100: Washington state | R100: How much the state lags or leads | S100: Washington % to reach EMV | T100: Market median | U100: Washington state | V100: How much the state lags or leads | W100: Washington % to reach market total compensation | Z100: Benchmark | AA100: 2024 Base Market | AB100: 2024 Base State | AC100: 2024 Total Comp Market | AD100: 2024 Total Comp State | AE100: 2022 Base Market | AF100: 2022 Base State | AG100: 2022 Total Comp Market | AH100: 2022 Total Comp State | AI100: Base Market | AJ100: Base State | AK100: Total Comp Market | AL100: Total Comp State | AM100: Base Market | AN100: Base State | AO100: Total Comp Market | AP100: Total Comp State
A101: 600 | B101: Actuary 2 | C101: 15 | D101: 107261.5136 | E101: 123198 | F101: 15936.4864 | G101: =IFERROR(F101/E101,"--") -> 0.1293566974 | H101: 137991.5065 | I101: 151542.4016 | J101: 13550.89504 | K101: =IFERROR(J101/I101,"--") -> 0.08941982506 | N101: Actuary 2 | O101: 14 | P101: 110523.4995 | Q101: 114732 | R101: 4208.500491 | S101: 0.03668113944 | T101: 136509.5532 | U101: 140837.5018 | V101: 4327.948587 | W101: 0.03073008631 | Z101: Actuary 2 | AA101: =IF($D101="-","-",IF($P101="-","-",D101)) -> 107261.5136 | AB101: =IF($D101="-","-",IF($P101="-","-",E101)) -> 123198 | AC101: =IF($D101="-","-",IF($P101="-","-",H101)) -> 137991.5065 | AD101: =IF($D101="-","-",IF($P101="-","-",I101)) -> 151542.4016 | AE101: =IF($D101="-","-",IF($P101="-","-",P101)) -> 110523.4995 | AF101: =IF($D101="-","-",IF($P101="-","-",Q101)) -> 114732 | AG101: =IF($D101="-","-",IF($P101="-","-",T101)) -> 136509.5532 | AH101: =IF($D101="-","-",IF($P101="-","-",U101)) -> 140837.5018 | AI101: =IFERROR(AA101-AE101,"-") -> -3261.985913 | AJ101: =IFERROR(AB101-AF101,"-") -> 8466 | AK101: =IFERROR(AC101-AG101,"-") -> 1481.953308 | AL101: =IFERROR(AD101-AH101,"-") -> 10704.89976 | AM101: =IFERROR(AI101/AE101,"-") -> -0.02951395791 | AN101: 0.07378935258 | AO101: 0.01085604101 | AP101: 0.07600887279
A102: 601 | B102: Financial Legal Examiner 2 | C102: 5 | D102: 89154.20971 | E102: 80970 | F102: -8184.209709 | G102: -0.101077062 | H102: 115091.359 | I102: 103965.7541 | J102: -11125.60486 | K102: -0.1070122076 | N102: Financial Legal Examiner 2 | O102: 5 | P102: 87810.42554 | Q102: 73572 | R102: -14238.42554 | S102: -0.1935304945 | T102: 111659.4966 | U102: 94292.85678 | V102: -17366.63983 | W102: -0.1841776824 | Z102: Financial Legal Examiner 2 | AA102: 89154.20971 | AB102: 80970 | AC102: 115091.359 | AD102: 103965.7541 | AE102: 87810.42554 | AF102: 73572 | AG102: 111659.4966 | AH102: 94292.85678 | AI102: =IFERROR(AA102-AE102,"-") -> 1343.784165 | AJ102: 7398 | AK102: 3431.862373 | AL102: 9672.897341 | AM102: 0.01530324169 | AN102: 0.1005545588 | AO102: 0.03073506936 | AP102: 0.1025835643
A103: 602 | B103: Industrial Insurance Appeals Judge 3 | C103: 6 | D103: 121554.3557 | E103: 98676 | F103: -22878.35566 | G103: -0.2318532942 | H103: 150086.6577 | I103: 123914.4166 | J103: -26172.24105 | K103: -0.2112122364 | N103: Industrial Insurance Appeals Judge 3 | O103: 4 | P103: - | Q103: - | R103: -- | S103: -- | T103: - | U103: - | V103: -- | W103: -- | Z103: Industrial Insurance Appeals Judge 3 | AA103: - | AB103: - | AC103: - | AD103: - | AE103: - | AF103: - | AG103: - | AH103: - | AI103: - | AJ103: - | AK103: - | AL103: - | AM103: - | AN103: - | AO103: - | AP103: -
A104: 603 | B104: Contracts Specialist 2 | C104: 25 | D104: 86190.5 | E104: 64800 | F104: -21390.5 | G104: -0.3301003086 | H104: 111862.1124 | I104: 85747.64317 | J104: -26114.46919 | K104: -0.3045502853 | N104: Contracts Specialist 2 | O104: 19 | P104: 80088 | Q104: 60348 | R104: -19740 | S104: -0.3271028037 | T104: 100832.2591 | U104: 79338.86295 | V104: -21493.39613 | W104: -0.2709062789 | Z104: Contracts Specialist 2 | AA104: 86190.5 | AB104: 64800 | AC104: 111862.1124 | AD104: 85747.64317 | AE104: 80088 | AF104: 60348 | AG104: 100832.2591 | AH104: 79338.86295 | AI104: 6102.5 | AJ104: 4452 | AK104: 11029.85327 | AL104: 6408.780215 | AM104: 0.07619743282 | AN104: 0.07377212169 | AO104: 0.10938814 | AP104: 0.08077731361
A105: 604 | B105: Budget Analyst 2 | C105: 30 | D105: 91148.69196 | E105: 60228 | F105: -30920.69196 | G105: -0.5133939689 | H105: 118155.357 | I105: 80596.54834 | J105: -37558.80861 | K105: -0.466010138 | N105: Budget Analyst 2 | O105: 22 | P105: 81994.17699 | Q105: 56088 | R105: -25906.17699 | S105: -0.4618844849 | T105: 104137.9912 | U105: 74521.56004 | V105: -29616.43119 | W105: -0.3974209768 | Z105: Budget Analyst 2 | AA105: 91148.69196 | AB105: 60228 | AC105: 118155.357 | AD105: 80596.54834 | AE105: 81994.17699 | AF105: 56088 | AG105: 104137.9912 | AH105: 74521.56004 | AI105: 9154.514971 | AJ105: 4140 | AK105: 14017.36573 | AL105: 6074.988304 | AM105: 0.1116483549 | AN105: 0.07381258023 | AO105: 0.1346037653 | AP105: 0.0815198756
A106: 605 | B106: Fiscal Technician 2 | C106: 28 | D106: 56617.5 | E106: 40938 | F106: -15679.5 | G106: -0.3830060091 | H106: 78838.32562 | I106: 58863.25457 | J106: -19975.07105 | K106: -0.3393470374 | N106: Fiscal Technician 2 | O106: 24 | P106: 54490.45029 | Q106: 38124 | R106: -16366.45029 | S106: -0.4292952021 | T106: 73609.74303 | U106: 54207.4686 | V106: -19402.27442 | W106: -0.3579262217 | Z106: Fiscal Technician 2 | AA106: 56617.5 | AB106: 40938 | AC106: 78838.32562 | AD106: 58863.25457 | AE106: 54490.45029 | AF106: 38124 | AG106: 73609.74303 | AH106: 54207.4686 | AI106: 2127.049713 | AJ106: 2814 | AK106: 5228.582594 | AL106: 4655.785965 | AM106: 0.03903527503 | AN106: 0.07381177211 | AO106: 0.07103112141 | AP106: 0.08588827491
A107: 606 | B107: Cashier 2 | C107: 14 | D107: 45434 | E107: 39030 | F107: -6404 | G107: -0.1640789137 | H107: 64965.60301 | I107: 56713.58507 | J107: -8252.017932 | K107: -0.1455033731 | N107: Cashier 2 | O107: 12 | P107: 40315.22 | Q107: 36348 | R107: -3967.22 | S107: -0.1091454826 | T107: 56996.021 | U107: 52199.12823 | V107: -4796.892767 | W107: -0.09189603217 | Z107: Cashier 2 | AA107: 45434 | AB107: 39030 | AC107: 64965.60301 | AD107: 56713.58507 | AE107: 40315.22 | AF107: 36348 | AG107: 56996.021 | AH107: 52199.12823 | AI107: 5118.78 | AJ107: 2682 | AK107: 7969.582006 | AL107: 4514.456841 | AM107: 0.1269689214 | AN107: 0.07378672829 | AO107: 0.1398269891 | AP107: 0.08648529188
A108: 607 | B108: Auditor 2 | C108: 30 | D108: 81261.05138 | E108: 49560 | F108: -31701.05138 | G108: -0.6396499471 | H108: 106743.2367 | I108: 68577.32709 | J108: -38165.9096 | K108: -0.5565383082 | N108: Auditor 2 | O108: 23 | P108: 70428.10399 | Q108: 46152 | R108: -24276.10399 | S108: -0.5260032933 | T108: 93741.08915 | U108: 63285.70987 | V108: -30455.37929 | W108: -0.4812362751 | Z108: Auditor 2 | AA108: 81261.05138 | AB108: 49560 | AC108: 106743.2367 | AD108: 68577.32709 | AE108: 70428.10399 | AF108: 46152 | AG108: 93741.08915 | AH108: 63285.70987 | AI108: 10832.94739 | AJ108: 3408 | AK108: 13002.14754 | AL108: 5291.617223 | AM108: 0.1538156897 | AN108: 0.07384295372 | AO108: 0.1387027573 | AP108: 0.08361472494
A109: 608 | B109: Audit Specialist - Dot 2 | C109: 12 | D109: 86279.11305 | E109: 57306 | F109: -28973.11305 | G109: -0.5055860303 | H109: 110461.8336 | I109: 77304.44443 | J109: -33157.38919 | K109: -0.4289195717 | N109: Audit Specialist - Dot 2 | O109: 10 | P109: 78261.48851 | Q109: 53364 | R109: -24897.48851 | S109: -0.4665596377 | T109: 99599.59802 | U109: 71441.20015 | V109: -28158.39787 | W109: -0.394147884 | Z109: Audit Specialist - Dot 2 | AA109: 86279.11305 | AB109: 57306 | AC109: 110461.8336 | AD109: 77304.44443 | AE109: 78261.48851 | AF109: 53364 | AG109: 99599.59802 | AH109: 71441.20015 | AI109: 8017.624546 | AJ109: 3942 | AK109: 10862.23561 | AL109: 5863.244285 | AM109: 0.1024466145 | AN109: 0.07387002474 | AO109: 0.1090590306 | AP109: 0.08207090968
A110: 609 | B110: Financial Examiner 3 | C110: 22 | D110: 97492.42982 | E110: 89364 | F110: -8128.429825 | G110: -0.09095866148 | H110: 123917.3772 | I110: 113422.9479 | J110: -10494.42926 | K110: -0.09252474439 | N110: Financial Examiner 3 | O110: 19 | P110: 91842.93845 | Q110: 83220 | R110: -8622.93845 | S110: -0.1036161794 | T110: 116627.8476 | U110: 105203.0301 | V110: -11424.81744 | W110: -0.1085977982 | Z110: Financial Examiner 3 | AA110: 97492.42982 | AB110: 89364 | AC110: 123917.3772 | AD110: 113422.9479 | AE110: 91842.93845 | AF110: 83220 | AG110: 116627.8476 | AH110: 105203.0301 | AI110: 5649.491375 | AJ110: 6144 | AK110: 7289.529583 | AL110: 8219.917761 | AM110: 0.06151252856 | AN110: 0.07382840663 | AO110: 0.0625024789 | AP110: 0.07813384985
A111: 610 | B111: Public Benefits Specialist 3 | C111: 12 | D111: 69132.51073 | E111: 58734 | F111: -10398.51073 | G111: -0.1770441436 | H111: 90957.0526 | I111: 78913.31657 | J111: -12043.73603 | K111: -0.1526198182 | N111: Public Benefits Specialist 3 | O111: 8 | P111: 59930.84541 | Q111: 53364 | R111: -6566.845415 | S111: -0.1230575934 | T111: 80780.59903 | U111: 71441.20015 | V111: -9339.398883 | W111: -0.1307284713 | Z111: Public Benefits Specialist 3 | AA111: 69132.51073 | AB111: 58734 | AC111: 90957.0526 | AD111: 78913.31657 | AE111: 59930.84541 | AF111: 53364 | AG111: 80780.59903 | AH111: 71441.20015 | AI111: 9201.665318 | AJ111: 5370 | AK111: 10176.45357 | AL111: 7472.116422 | AM111: 0.153538053 | AN111: 0.100629638 | AO111: 0.1259764558 | AP111: 0.104591138
A112: 611 | B112: Tax Information Specialist 1 | C112: 16 | D112: 58449.35238 | E112: 47238 | F112: -11211.35238 | G112: -0.2373375752 | H112: 78548.5663 | I112: 65961.21988 | J112: -12587.34642 | K112: -0.1908294972 | N112: Tax Information Specialist 1 | O112: 12 | P112: 57820.17705 | Q112: 43992 | R112: -13828.17705 | S112: -0.3143339026 | T112: 77940.31547 | U112: 60843.13374 | V112: -17097.18173 | W112: -0.2810042922 | Z112: Tax Information Specialist 1 | AA112: 58449.35238 | AB112: 47238 | AC112: 78548.5663 | AD112: 65961.21988 | AE112: 57820.17705 | AF112: 43992 | AG112: 77940.31547 | AH112: 60843.13374 | AI112: 629.1753329 | AJ112: 3246 | AK112: 608.2508218 | AL112: 5118.086134 | AM112: 0.0108815878 | AN112: 0.07378614294 | AO112: 0.007804059018 | AP112: 0.08411937091
A113: 612 | B113: Revenue Agent 2 | C113: 17 | D113: 62625.34958 | E113: 60228 | F113: -2397.349583 | G113: -0.03980456903 | H113: 85286.37088 | I113: 80596.54834 | J113: -4689.822534 | K113: -0.05818887571 | N113: Revenue Agent 2 | O113: 16 | P113: 57780.27465 | Q113: 56088 | R113: -1692.274649 | S113: -0.03017177736 | T113: 77062.83286 | U113: 74521.56004 | V113: -2541.272821 | W113: -0.03410117582 | Z113: Revenue Agent 2 | AA113: 62625.34958 | AB113: 60228 | AC113: 85286.37088 | AD113: 80596.54834 | AE113: 57780.27465 | AF113: 56088 | AG113: 77062.83286 | AH113: 74521.56004 | AI113: 4845.074934 | AJ113: 4140 | AK113: 8223.538017 | AL113: 6074.988304 | AM113: 0.08385344244 | AN113: 0.07381258023 | AO113: 0.1067121167 | AP113: 0.0815198756
A114: 613 | B114: Support Enforcement Officer 2 | C114: 13 | D114: 73368.80089 | E114: 63258 | F114: -10110.80089 | G114: -0.1598343433 | H114: 95930.46105 | I114: 84010.33166 | J114: -11920.12939 | K114: -0.1418888505 | N114: Support Enforcement Officer 2 | O114: 8 | P114: 61317.4136 | Q114: 54696 | R114: -6621.413597 | S114: -0.1210584613 | T114: 84629.09198 | U114: 72947.45543 | V114: -11681.63656 | W114: -0.1601376839 | Z114: Support Enforcement Officer 2 | AA114: 73368.80089 | AB114: 63258 | AC114: 95930.46105 | AD114: 84010.33166 | AE114: 61317.4136 | AF114: 54696 | AG114: 84629.09198 | AH114: 72947.45543 | AI114: 12051.38729 | AJ114: 8562 | AK114: 11301.36907 | AL114: 11062.87623 | AM114: 0.1965410246 | AN114: 0.1565379552 | AO114: 0.1335400015 | AP114: 0.1516554096
B115: Average | D115: 80426.3842 | E115: 66680.57143 | F115: -13745.81277 | G115: -0.2061441957 | H115: 104916.8442 | I115: 87866.40996 | J115: -17050.43429 | K115: -0.1940495156 | N115: Average | P115: 71738.69338 | Q115: 59237.53846 | R115: -12501.15492 | S115: -0.2110343415 | T115: 93394.34141 | U115: 78083.1283 | V115: -15311.2131 | W115: -0.1960886229 | Z115: Average | AA115: =AVERAGE(AA101:AA114) -> 77262.69408 | AB115: 64219.38462 | AC115: 101442.2432 | AD115: 85093.48637 | AE115: 71738.69338 | AF115: 59237.53846 | AG115: 93394.34141 | AH115: 78083.1283 | AI115: 5524.000702 | AJ115: 4981.846154 | AK115: 8047.901807 | AL115: 7010.358061 | AM115: =AI115/AE115 -> 0.07700169102 | AN115: 0.08409947954 | AO115: 0.08617119287 | AP115: 0.08978070183
AI118: $ CHANGE 2022 TO 2024 | AM118: % CHANGE 2022 TO 2024
B119: Health Care or Social Services | C119: Base Salary | H119: Total Compensation | N119: Health Care or Social Services | O119: Base salary | T119: Total compensation | Z119: Health Care or Social Services | AA119: Consistently Successful Benchmarks | AI119: Base salary | AK119: Total compensation | AM119: Base salary | AO119: Total compensation
B120: Benchmark | C120: No. of matches | D120: Market median | E120: Washington state | F120: How much the state lags or leads | G120: Washington % to reach EMV | H120: Market median | I120: Washington state | J120: How much the state lags or leads | K120: Washington % to reach market total compensation | N120: Benchmark | O120: No. of matches | P120: Market median | Q120: Washington state | R120: How much the state lags or leads | S120: Washington % to reach EMV | T120: Market median | U120: Washington state | V120: How much the state lags or leads | W120: Washington % to reach market total compensation | Z120: Benchmark | AA120: 2024 Base Market | AB120: 2024 Base State | AC120: 2024 Total Comp Market | AD120: 2024 Total Comp State | AE120: 2022 Base Market | AF120: 2022 Base State | AG120: 2022 Total Comp Market | AH120: 2022 Total Comp State | AI120: Base Market | AJ120: Base State | AK120: Total Comp Market | AL120: Total Comp State | AM120: Base Market | AN120: Base State | AO120: Total Comp Market | AP120: Total Comp State
A121: 700 | B121: Clinical/Medical Technologist 2 | C121: 17 | D121: 72179.49835 | E121: 63258 | F121: -8921.498351 | G121: =IFERROR(F121/E121,"--") -> -0.1410335191 | H121: 94100.32572 | I121: 84010.33166 | J121: -10089.99406 | K121: =IFERROR(J121/I121,"--") -> -0.1201042046 | N121: Clinical/Medical Technologist 2 | O121: 16 | P121: 67667.99898 | Q121: 58908 | R121: -8759.998977 | S121: -0.1487064402 | T121: 86529.53066 | U121: 77710.47887 | V121: -8819.051792 | W121: -0.113486005 | Z121: Clinical/Medical Technologist 2 | AA121: =IF($D121="-","-",IF($P121="-","-",D121)) -> 72179.49835 | AB121: =IF($D121="-","-",IF($P121="-","-",E121)) -> 63258 | AC121: =IF($D121="-","-",IF($P121="-","-",H121)) -> 94100.32572 | AD121: =IF($D121="-","-",IF($P121="-","-",I121)) -> 84010.33166 | AE121: =IF($D121="-","-",IF($P121="-","-",P121)) -> 67667.99898 | AF121: =IF($D121="-","-",IF($P121="-","-",Q121)) -> 58908 | AG121: =IF($D121="-","-",IF($P121="-","-",T121)) -> 86529.53066 | AH121: =IF($D121="-","-",IF($P121="-","-",U121)) -> 77710.47887 | AI121: =IFERROR(AA121-AE121,"-") -> 4511.499374 | AJ121: =IFERROR(AB121-AF121,"-") -> 4350 | AK121: =IFERROR(AC121-AG121,"-") -> 7570.795061 | AL121: =IFERROR(AD121-AH121,"-") -> 6299.852789 | AM121: =IFERROR(AI121/AE121,"-") -> 0.06667109183 | AN121: 0.07384396007 | AO121: 0.08749377239 | AP121: 0.08106825335
A122: 701 | B122: Laboratory Technician 3 | C122: 15 | D122: 61509.68669 | E122: 60228 | F122: -1281.686686 | G122: -0.02128057857 | H122: 82387.36685 | I122: 80596.54834 | J122: -1790.818504 | K122: -0.0222195434 | N122: Laboratory Technician 3 | O122: 16 | P122: 69511.61369 | Q122: 53364 | R122: -16147.61369 | S122: -0.3025937653 | T122: 90044.78426 | U122: 71441.20015 | V122: -18603.58411 | W122: -0.2604041376 | Z122: Laboratory Technician 3 | AA122: 61509.68669 | AB122: 60228 | AC122: 82387.36685 | AD122: 80596.54834 | AE122: 69511.61369 | AF122: 53364 | AG122: 90044.78426 | AH122: 71441.20015 | AI122: =IFERROR(AA122-AE122,"-") -> -8001.927006 | AJ122: 6864 | AK122: -7657.417415 | AL122: 9155.348195 | AM122: -0.115116404 | AN122: 0.12862604 | AO122: -0.08504009952 | AP122: 0.1281522171
A123: 703 | B123: Mental Health Practitioner | C123: 14 | D123: 78589.01825 | E123: 69864 | F123: -8725.018246 | G123: -0.124885753 | H123: 102935.7573 | I123: 91453.05528 | J123: -11482.70207 | K123: -0.1255584303 | N123: Mental Health Practitioner | O123: 16 | P123: 76109.378 | Q123: 65064 | R123: -11045.378 | S123: -0.1697617423 | T123: 98422.11367 | U123: 84671.82083 | V123: -13750.29284 | W123: -0.1623951476 | Z123: Mental Health Practitioner | AA123: 78589.01825 | AB123: 69864 | AC123: 102935.7573 | AD123: 91453.05528 | AE123: 76109.378 | AF123: 65064 | AG123: 98422.11367 | AH123: 84671.82083 | AI123: 2479.640245 | AJ123: 4800 | AK123: 4513.64368 | AL123: 6781.234456 | AM123: 0.03257995677 | AN123: 0.07377351531 | AO123: 0.04586005636 | AP123: 0.08008844489
A124: 704 | B124: Psychiatric Child Care Counselor 1 | C124: 10 | D124: 85430.31702 | E124: 58734 | F124: -26696.31702 | G124: -0.4545291828 | H124: 110386.8582 | I124: 78913.31657 | J124: -31473.54167 | K124: -0.3988368888 | N124: Psychiatric Child Care Counselor 1 | O124: 10 | P124: 76420.31759 | Q124: 49638 | R124: -26782.31759 | S124: -0.5395527135 | T124: 93757.87396 | U124: 67227.75633 | V124: -26530.11762 | W124: -0.3946304186 | Z124: Psychiatric Child Care Counselor 1 | AA124: 85430.31702 | AB124: 58734 | AC124: 110386.8582 | AD124: 78913.31657 | AE124: 76420.31759 | AF124: 49638 | AG124: 93757.87396 | AH124: 67227.75633 | AI124: 9009.999433 | AJ124: 9096 | AK124: 16628.98428 | AL124: 11685.56024 | AM124: 0.1179005756 | AN124: 0.1832467062 | AO124: 0.177360936 | AP124: 0.1738204705
A125: 705 | B125: Social Worker 2 - Academic Medical Centers | C125: 12 | D125: 81976.01171 | E125: 68112 | F125: -13864.01171 | G125: -0.2035472708 | H125: 106750.286 | I125: 89479.14493 | J125: -17271.14102 | K125: -0.1930186194 | N125: Social Worker 2 - Academic Medical Centers | O125: 11 | P125: 76206.68499 | Q125: 63432 | R125: -12774.68499 | S125: -0.2013918052 | T125: 98171.1414 | U125: 82826.31886 | V125: -15344.82254 | W125: -0.1852650552 | Z125: Social Worker 2 - Academic Medical Centers | AA125: 81976.01171 | AB125: 68112 | AC125: 106750.286 | AD125: 89479.14493 | AE125: 76206.68499 | AF125: 63432 | AG125: 98171.1414 | AH125: 82826.31886 | AI125: 5769.326721 | AJ125: 4680 | AK125: 8579.144547 | AL125: 6652.826065 | AM125: 0.07570630742 | AN125: 0.07377979569 | AO125: 0.08738967913 | AP125: 0.08032260948
A126: 706 | B126: Residential Rehabilitation Counselor 2 | C126: 10 | D126: 57736.83545 | E126: 55890 | F126: -1846.835453 | G126: -0.03304411259 | H126: 80329.01783 | I126: 75709.09223 | J126: -4619.925597 | K126: -0.06102207095 | N126: Residential Rehabilitation Counselor 2 | O126: 8 | P126: 56916.62021 | Q126: 49638 | R126: -7278.620214 | S126: -0.1466340347 | T126: 73959.22428 | U126: 67227.75633 | V126: -6731.467948 | W126: -0.1001292965 | Z126: Residential Rehabilitation Counselor 2 | AA126: 57736.83545 | AB126: 55890 | AC126: 80329.01783 | AD126: 75709.09223 | AE126: 56916.62021 | AF126: 49638 | AG126: 73959.22428 | AH126: 67227.75633 | AI126: 820.2152388 | AJ126: 6252 | AK126: 6369.793547 | AL126: 8481.335898 | AM126: 0.01441082123 | AN126: 0.1259518917 | AO126: 0.08612574846 | AP126: 0.1261582471
A127: 707 | B127: Psychology Associate | C127: 13 | D127: 104381.7294 | E127: 93912 | F127: -10469.72942 | G127: -0.1114844686 | H127: 132333.6761 | I127: 118547.0029 | J127: -13786.67327 | K127: -0.1162971052 | N127: Psychology Associate | O127: 11 | P127: 92795.24377 | Q127: 71784 | R127: -21011.24377 | S127: -0.2927009329 | T127: 112815.8318 | U127: 92270.94655 | V127: -20544.8853 | W127: -0.2226582263 | Z127: Psychology Associate | AA127: 104381.7294 | AB127: 93912 | AC127: 132333.6761 | AD127: 118547.0029 | AE127: 92795.24377 | AF127: 71784 | AG127: 112815.8318 | AH127: 92270.94655 | AI127: 11586.48565 | AJ127: 22128 | AK127: 19517.84428 | AL127: 26276.05631 | AM127: 0.1248607707 | AN127: 0.3082581077 | AO127: 0.1730062524 | AP127: 0.2847706379
A128: 708 | B128: Social Service Specialist 2 | C128: 20 | D128: 74224.63159 | E128: 69864 | F128: -4360.631585 | G128: -0.06241600231 | H128: 97638.4961 | I128: 91453.05528 | J128: -6185.440816 | K128: -0.06763514676 | N128: Social Service Specialist 2 | O128: 13 | P128: 62694.34956 | Q128: 60348 | R128: -2346.349565 | S128: -0.03888032022 | T128: 81115.79653 | U128: 79338.86295 | V128: -1776.933578 | W128: -0.02239676133 | Z128: Social Service Specialist 2 | AA128: 74224.63159 | AB128: 69864 | AC128: 97638.4961 | AD128: 91453.05528 | AE128: 62694.34956 | AF128: 60348 | AG128: 81115.79653 | AH128: 79338.86295 | AI128: 11530.28202 | AJ128: 9516 | AK128: 16522.69957 | AL128: 12114.19233 | AM128: 0.1839126189 | AN128: 0.1576854245 | AO128: 0.2036927488 | AP128: 0.1526892607
A129: 709 | B129: Vocational Rehabilitation Counselor 3 | C129: 14 | D129: 73887.26063 | E129: 64800 | F129: -9087.260634 | G129: -0.1402355036 | H129: 96652.29485 | I129: 85747.64317 | J129: -10904.65169 | K129: -0.127171445 | N129: Vocational Rehabilitation Counselor 3 | O129: 14 | P129: 67773.7574 | Q129: 60348 | R129: -7425.757398 | S129: -0.1230489394 | T129: 88741.48583 | U129: 79338.86295 | V129: -9402.622873 | W129: -0.1185121959 | Z129: Vocational Rehabilitation Counselor 3 | AA129: 73887.26063 | AB129: 64800 | AC129: 96652.29485 | AD129: 85747.64317 | AE129: 67773.7574 | AF129: 60348 | AG129: 88741.48583 | AH129: 79338.86295 | AI129: 6113.503237 | AJ129: 4452 | AK129: 7910.809028 | AL129: 6408.780215 | AM129: 0.09020457875 | AN129: 0.07377212169 | AO129: 0.08914442839 | AP129: 0.08077731361
A130: 710 | B130: Attendant Counselor 2 | C130: 11 | D130: 49834.60631 | E130: 50766 | F130: 931.3936893 | G130: 0.0183468008 | H130: 70258.4453 | I130: 69936.08045 | J130: -322.36485 | K130: -0.004609421173 | N130: Attendant Counselor 2 | O130: 12 | P130: 44271.51931 | Q130: 41916 | R130: -2355.519307 | S130: -0.05619618538 | T130: 63553.52619 | U130: 58495.54669 | V130: -5057.979501 | W130: -0.08646777041 | Z130: Attendant Counselor 2 | AA130: 49834.60631 | AB130: 50766 | AC130: 70258.4453 | AD130: 69936.08045 | AE130: 44271.51931 | AF130: 41916 | AG130: 63553.52619 | AH130: 58495.54669 | AI130: 5563.087004 | AJ130: 8850 | AK130: 6704.919109 | AL130: 11440.53376 | AM130: 0.1256583711 | AN130: 0.2111365588 | AO130: 0.1055003477 | AP130: 0.1955795682
A131: 711 | B131: Adult Training Specialist 2 | C131: 9 | D131: 72787.9364 | E131: 49560 | F131: -23227.9364 | G131: -0.4686831397 | H131: 95852.50629 | I131: 68577.32709 | J131: -27275.1792 | K131: -0.3977288174 | N131: Adult Training Specialist 2 | O131: 8 | P131: 63811.17373 | Q131: 42900 | R131: -20911.17373 | S131: -0.4874399471 | T131: 79418.85146 | U131: 59608.27581 | V131: -19810.57565 | W131: -0.3323460607 | Z131: Adult Training Specialist 2 | AA131: 72787.9364 | AB131: 49560 | AC131: 95852.50629 | AD131: 68577.32709 | AE131: 63811.17373 | AF131: 42900 | AG131: 79418.85146 | AH131: 59608.27581 | AI131: 8976.762674 | AJ131: 6660 | AK131: 16433.65483 | AL131: 8969.051278 | AM131: 0.1406769716 | AN131: 0.1552447552 | AO131: 0.206923854 | AP131: 0.1504665444
A132: 712 | B132: Medical Transcriptionist 2 | C132: 5 | D132: 48817 | E132: 43914 | F132: -4903 | G132: -0.1116500433 | H132: 48817 | I132: 62216.19818 | J132: 13399.19818 | K132: 0.215365107 | N132: Medical Transcriptionist 2 | O132: 6 | P132: 51127.6 | Q132: 40896 | R132: -10231.6 | S132: -0.2501858372 | T132: 64138.08 | U132: 57342.10796 | V132: -6795.972037 | W132: -0.1185162576 | Z132: Medical Transcriptionist 2 | AA132: 48817 | AB132: 43914 | AC132: 48817 | AD132: 62216.19818 | AE132: 51127.6 | AF132: 40896 | AG132: 64138.08 | AH132: 57342.10796 | AI132: -2310.6 | AJ132: 3018 | AK132: -15321.08 | AL132: 4874.090217 | AM132: -0.04519281171 | AN132: 0.07379694836 | AO132: -0.238876499 | AP132: 0.08500019254
A133: 713 | B133: Health Services Consultant 2 | C133: 17 | D133: 75270.93779 | E133: 61710 | F133: -13560.93779 | G133: -0.2197526785 | H133: 98692.96816 | I133: 82266.26018 | J133: -16426.70798 | K133: -0.1996773397 | N133: Health Services Consultant 2 | O133: 15 | P133: 69442.91389 | Q133: 57462 | R133: -11980.91389 | S133: -0.2085015121 | T133: 88872.00227 | U133: 76075.30985 | V133: -12796.69242 | W133: -0.1682108484 | Z133: Health Services Consultant 2 | AA133: 75270.93779 | AB133: 61710 | AC133: 98692.96816 | AD133: 82266.26018 | AE133: 69442.91389 | AF133: 57462 | AG133: 88872.00227 | AH133: 76075.30985 | AI133: 5828.023904 | AJ133: 4248 | AK133: 9820.965892 | AL133: 6190.95033 | AM133: 0.08392539393 | AN133: 0.07392711705 | AO133: 0.1105068598 | AP133: 0.08137923253
A134: 714 | B134: Public Health Advisor 2 | C134: 8 | D134: 84123.08708 | E134: 64800 | F134: -19323.08708 | G134: -0.2981957882 | H134: 108862.6313 | I134: 85747.64317 | J134: -23114.98812 | K134: -0.2695699528 | N134: Public Health Advisor 2 | O134: 9 | P134: 77755.65778 | Q134: 60348 | R134: -17407.65778 | S134: -0.288454593 | T134: 101032.1703 | U134: 79338.86295 | V134: -21693.30737 | W134: -0.2734259928 | Z134: Public Health Advisor 2 | AA134: 84123.08708 | AB134: 64800 | AC134: 108862.6313 | AD134: 85747.64317 | AE134: 77755.65778 | AF134: 60348 | AG134: 101032.1703 | AH134: 79338.86295 | AI134: 6367.429295 | AJ134: 4452 | AK134: 7830.460971 | AL134: 6408.780215 | AM134: 0.08189023766 | AN134: 0.07377212169 | AO134: 0.07750462992 | AP134: 0.08077731361
A135: 715 | B135: Patient Services Coordinator | C135: 4 | D135: - | E135: - | F135: -- | G135: -- | H135: - | I135: - | J135: -- | K135: -- | N135: Patient Services Coordinator | O135: 4 | P135: - | Q135: - | R135: -- | S135: -- | T135: - | U135: - | V135: -- | W135: -- | Z135: Patient Services Coordinator | AA135: - | AB135: - | AC135: - | AD135: - | AE135: - | AF135: - | AG135: - | AH135: - | AI135: - | AJ135: - | AK135: - | AL135: - | AM135: - | AN135: - | AO135: - | AP135: -
A136: 716 | B136: Registered Nurse 2 | C136: 10 | D136: 92881.87 | E136: 106386 | F136: 13504.13 | G136: 0.126935217 | H136: 118301.2326 | I136: 132600.9742 | J136: 14299.74159 | K136: 0.1078403962 | N136: Registered Nurse 2 | O136: 8 | P136: 86134.75318 | Q136: 89760 | R136: 3625.246821 | S136: 0.04038822216 | T136: 104055.2481 | U136: 112598.6079 | V136: 8543.359726 | W136: 0.07587447029 | Z136: Registered Nurse 2 | AA136: 92881.87 | AB136: 106386 | AC136: 118301.2326 | AD136: 132600.9742 | AE136: 86134.75318 | AF136: 89760 | AG136: 104055.2481 | AH136: 112598.6079 | AI136: 6747.116821 | AJ136: 16626 | AK136: 14245.98445 | AL136: 20002.36631 | AM136: 0.07833210838 | AN136: 0.1852272727 | AO136: 0.1369078899 | AP136: 0.177643105
A137: 717 | B137: Licensed Practical Nurse 2 | C137: 7 | D137: 70206.425 | E137: 68112 | F137: -2094.425 | G137: -0.03074972105 | H137: 89489.15536 | I137: 89479.14493 | J137: -10.01043052 | K137: -0.0001118744544 | N137: Licensed Practical Nurse 2 | O137: 7 | P137: 56399.3 | Q137: 60348 | R137: 3948.7 | S137: 0.06543216014 | T137: 69947.204 | U137: 79338.86295 | V137: 9391.658953 | W137: 0.1183740049 | Z137: Licensed Practical Nurse 2 | AA137: 70206.425 | AB137: 68112 | AC137: 89489.15536 | AD137: 89479.14493 | AE137: 56399.3 | AF137: 60348 | AG137: 69947.204 | AH137: 79338.86295 | AI137: 13807.125 | AJ137: 7764 | AK137: 19541.95136 | AL137: 10140.28198 | AM137: 0.2448102193 | AN137: 0.1286538079 | AO137: 0.2793814512 | AP137: 0.1278097719
A138: 718 | B138: Nursing Assistant | C138: 6 | D138: 69081.5 | E138: 49560 | F138: -19521.5 | G138: -0.3938962873 | H138: 95682.9066 | I138: 68577.32709 | J138: -27105.57951 | K138: -0.3952557013 | N138: Nursing Assistant | O138: 5 | P138: 34800 | Q138: 39936 | R138: 5136 | S138: 0.1286057692 | T138: 47288 | U138: 56256.51857 | V138: 8968.518574 | W138: 0.1594218555 | Z138: Nursing Assistant | AA138: 69081.5 | AB138: 49560 | AC138: 95682.9066 | AD138: 68577.32709 | AE138: 34800 | AF138: 39936 | AG138: 47288 | AH138: 56256.51857 | AI138: =IFERROR(AA138-AE138,"-") -> 34281.5 | AJ138: 9624 | AK138: 48394.9066 | AL138: 12320.80852 | AM138: 0.9851005747 | AN138: 0.2409855769 | AO138: 1.023407769 | AP138: 0.2190112155
A139: 719 | B139: Dentist | C139: 20 | D139: 185468.0499 | E139: 150126 | F139: -35342.0499 | G139: -0.2354159167 | H139: 221201.0973 | I139: 181881.1333 | J139: -39319.96396 | K139: -0.2161849514 | N139: Dentist | O139: 17 | P139: 158863.4724 | Q139: 139812 | R139: -19051.47242 | S139: -0.1362649302 | T139: 190045.698 | U139: 169198.5246 | V139: -20847.1734 | W139: -0.123211319 | Z139: Dentist | AA139: 185468.0499 | AB139: 150126 | AC139: 221201.0973 | AD139: 181881.1333 | AE139: 158863.4724 | AF139: 139812 | AG139: 190045.698 | AH139: 169198.5246 | AI139: 26604.57748 | AJ139: 10314 | AK139: 31155.39925 | AL139: 12682.60869 | AM139: 0.1674681856 | AN139: 0.0737704918 | AO139: 0.1639363563 | AP139: 0.07495696977
A140: 720 | B140: Physician 2 | C140: 18 | D140: 248536.3048 | E140: 172356 | F140: -76180.30477 | G140: -0.441993924 | H140: 294729.4683 | I140: 206926.8109 | J140: -87802.65737 | K140: -0.4243174531 | N140: Physician 2 | O140: 15 | P140: 217076.0881 | Q140: 160506 | R140: -56570.08805 | S140: -0.3524484322 | T140: 253681.6107 | U140: 192599.7609 | V140: -61081.84986 | W140: -0.3171439548 | Z140: Physician 2 | AA140: 248536.3048 | AB140: 172356 | AC140: 294729.4683 | AD140: 206926.8109 | AE140: 217076.0881 | AF140: 160506 | AG140: 253681.6107 | AH140: 192599.7609 | AI140: 31460.21672 | AJ140: 11850 | AK140: 41047.85753 | AL140: 14327.05002 | AM140: 0.1449271405 | AN140: 0.07382901574 | AO140: 0.1618085655 | AP140: 0.07438768332
A141: 721 | B141: Psychiatrist | C141: 17 | D141: 240367.7577 | E141: 226152 | F141: -14215.75767 | G141: -0.06285930555 | H141: 285746.4614 | I141: 267536.6747 | J141: -18209.7867 | K141: -0.06806463721 | N141: Psychiatrist | O141: 12 | P141: 228895.5924 | Q141: 210612 | R141: -18283.5924 | S141: -0.08681173154 | T141: 267898.0685 | U141: 249260.742 | V141: -18637.32642 | W141: -0.07477040415 | Z141: Psychiatrist | AA141: 240367.7577 | AB141: 226152 | AC141: 285746.4614 | AD141: 267536.6747 | AE141: 228895.5924 | AF141: 210612 | AG141: 267898.0685 | AH141: 249260.742 | AI141: 11472.16527 | AJ141: 15540 | AK141: 17848.3929 | AL141: 18275.93262 | AM141: 0.05011964252 | AN141: 0.07378496952 | AO141: 0.06662382079 | AP141: 0.07332054166
A142: 722 | B142: Advanced Registered Nurse Practitioner | C142: 6 | D142: 134138.7253 | E142: 143076 | F142: 8937.274658 | G142: 0.06246522588 | H142: 163558.9738 | I142: 173938.1721 | J142: 10379.19832 | K142: 0.05967176837 | N142: Advanced Registered Nurse Practitioner | O142: 5 | P142: 123204.3452 | Q142: 120690 | R142: -2514.345205 | S142: -0.02083308647 | T142: 139553.3284 | U142: 147574.941 | V142: 8021.612535 | W142: 0.0543561968 | Z142: Advanced Registered Nurse Practitioner | AA142: 134138.7253 | AB142: 143076 | AC142: 163558.9738 | AD142: 173938.1721 | AE142: 123204.3452 | AF142: 120690 | AG142: 139553.3284 | AH142: 147574.941 | AI142: 10934.38014 | AJ142: 22386 | AK142: 24005.64537 | AL142: 26363.23115 | AM142: 0.08874995535 | AN142: 0.18548347 | AO142: 0.17201772 | AP142: 0.1786430066
A143: 723 | B143: Dental Hygienist 2 | C143: 17 | D143: 90221.68745 | E143: 75150 | F143: -15071.68745 | G143: -0.2005547232 | H143: 112857.01 | I143: 97408.58617 | J143: -15448.42381 | K143: -0.1585940667 | N143: Dental Hygienist 2 | O143: 15 | P143: 82689.28606 | Q143: 69990 | R143: -12699.28606 | S143: -0.1814442929 | T143: 102287.4628 | U143: 90242.25138 | V143: -12045.2114 | W143: -0.1334764061 | Z143: Dental Hygienist 2 | AA143: 90221.68745 | AB143: 75150 | AC143: 112857.01 | AD143: 97408.58617 | AE143: 82689.28606 | AF143: 69990 | AG143: 102287.4628 | AH143: 90242.25138 | AI143: 7532.401388 | AJ143: 5160 | AK143: 10569.54721 | AL143: 7166.334797 | AM143: 0.09109283375 | AN143: 0.07372481783 | AO143: 0.1033317957 | AP143: 0.07941218983
A144: 724 | B144: Pharmacist 3 | C144: 5 | D144: 148143.432 | E144: 113478 | F144: -34665.432 | G144: -0.3054815206 | H144: 179342.6322 | I144: 140591.2551 | J144: -38751.37713 | K144: -0.27563149 | N144: Pharmacist 3 | O144: 5 | P144: 138308 | Q144: 105678 | R144: -32630 | S144: -0.3087681447 | T144: 155484 | U144: 130599.0369 | V144: -24884.96309 | W144: -0.1905447673 | Z144: Pharmacist 3 | AA144: 148143.432 | AB144: 113478 | AC144: 179342.6322 | AD144: 140591.2551 | AE144: 138308 | AF144: 105678 | AG144: 155484 | AH144: 130599.0369 | AI144: 9835.432 | AJ144: 7800 | AK144: 23858.63225 | AL144: 9992.218209 | AM144: 0.07111253145 | AN144: 0.07380911826 | AO144: 0.1534475075 | AP144: 0.0765106577
A145: 725 | B145: Pharmacy Technician 2 | C145: 6 | D145: 54777.1 | E145: 64800 | F145: 10022.9 | G145: 0.1546743827 | H145: 75376.95695 | I145: 85747.64317 | J145: 10370.68621 | K145: 0.1209442712 | N145: Pharmacy Technician 2 | O145: 6 | P145: 50406.4 | Q145: 60348 | R145: 9941.6 | S145: 0.1647378538 | T145: 63385.97401 | U145: 79338.86295 | V145: 15952.88895 | W145: 0.2010728205 | Z145: Pharmacy Technician 2 | AA145: 54777.1 | AB145: 64800 | AC145: 75376.95695 | AD145: 85747.64317 | AE145: 50406.4 | AF145: 60348 | AG145: 63385.97401 | AH145: 79338.86295 | AI145: 4370.7 | AJ145: 4452 | AK145: 11990.98295 | AL145: 6408.780215 | AM145: 0.0867092274 | AN145: 0.07377212169 | AO145: 0.1891740742 | AP145: 0.08077731361
A146: 728 | B146: Imaging Technologist 2 | C146: 5 | D146: 77209.6 | E146: 57306 | F146: -19903.6 | G146: -0.3473213974 | H146: 77209.6 | I146: 77304.44443 | J146: 94.84443496 | K146: 0.001226894982 | N146: Imaging Technologist 2 | O146: 5 | P146: 67600 | Q146: 53364 | R146: -14236 | S146: -0.2667716063 | T146: 81400 | U146: 71441.20015 | V146: -9958.79985 | W146: -0.1393985519 | Z146: Imaging Technologist 2 | AA146: 77209.6 | AB146: 57306 | AC146: 77209.6 | AD146: 77304.44443 | AE146: 67600 | AF146: 53364 | AG146: 81400 | AH146: 71441.20015 | AI146: 9609.6 | AJ146: 3942 | AK146: -4190.4 | AL146: 5863.244285 | AM146: 0.1421538462 | AN146: 0.07387002474 | AO146: -0.05147911548 | AP146: 0.08207090968
A147: 729 | B147: Diagnostic Medical Sonographer | C147: 4 | D147: - | E147: - | F147: -- | G147: -- | H147: - | I147: - | J147: -- | K147: -- | N147: Diagnostic Medical Sonographer | O147: 4 | P147: - | Q147: - | R147: -- | S147: -- | T147: - | U147: - | V147: -- | W147: -- | Z147: Diagnostic Medical Sonographer | AA147: - | AB147: - | AC147: - | AD147: - | AE147: - | AF147: - | AG147: - | AH147: - | AI147: - | AJ147: - | AK147: - | AL147: - | AM147: - | AN147: - | AO147: - | AP147: -
A148: 730 | B148: Radiation Therapy Dosimetrist | C148: 3 | D148: - | E148: - | F148: -- | G148: -- | H148: - | I148: - | J148: -- | K148: -- | N148: Radiation Therapy Dosimetrist | O148: 3 | P148: - | Q148: - | R148: -- | S148: -- | T148: - | U148: - | V148: -- | W148: -- | Z148: Radiation Therapy Dosimetrist | AA148: - | AB148: - | AC148: - | AD148: - | AE148: - | AF148: - | AG148: - | AH148: - | AI148: - | AJ148: - | AK148: - | AL148: - | AM148: - | AN148: - | AO148: - | AP148: -
A149: 731 | B149: Toxicologist 2 | C149: 7 | D149: 105854.7118 | E149: 87192 | F149: -18662.71176 | G149: -0.2140415607 | H149: 134307.8214 | I149: 110975.8399 | J149: -23331.98156 | K149: -0.2102437935 | N149: Toxicologist 2 | O149: 6 | P149: 103687.0242 | Q149: 81198 | R149: -22489.02416 | S149: -0.2769652474 | T149: 128765.2815 | U149: 102916.5075 | V149: -25848.77405 | W149: -0.2511625654 | Z149: Toxicologist 2 | AA149: 105854.7118 | AB149: 87192 | AC149: 134307.8214 | AD149: 110975.8399 | AE149: 103687.0242 | AF149: 81198 | AG149: 128765.2815 | AH149: 102916.5075 | AI149: 2167.687607 | AJ149: 5994 | AK149: 5542.539881 | AL149: 8059.332371 | AM149: 0.02090606442 | AN149: 0.07381955221 | AO149: 0.04304374451 | AP149: 0.07830942351
A150: 732 | B150: Epidemiologist 1 | C150: 19 | D150: 88699.83709 | E150: 79002 | F150: -9697.837089 | G150: -0.1227543238 | H150: 113000.1576 | I150: 101748.485 | J150: -11251.67268 | K150: -0.1105831963 | N150: Epidemiologist 1 | O150: 18 | P150: 87575.36026 | Q150: 73572 | R150: -14003.36026 | S150: -0.1903354573 | T150: 108177.7364 | U150: 94292.85678 | V150: -13884.87964 | W150: -0.14725272 | Z150: Epidemiologist 1 | AA150: 88699.83709 | AB150: 79002 | AC150: 113000.1576 | AD150: 101748.485 | AE150: 87575.36026 | AF150: 73572 | AG150: 108177.7364 | AH150: 94292.85678 | AI150: 1124.476825 | AJ150: 5430 | AK150: 4822.421217 | AL150: 7455.628178 | AM150: 0.01284010504 | AN150: 0.073805252 | AO150: 0.04457868482 | AP150: 0.07906885455
A151: 734 | B151: Occupational Therapist 3 | C151: 16 | D151: 92201.22677 | E151: 69864 | F151: -22337.22677 | G151: -0.3197244184 | H151: 118082.9665 | I151: 91453.05528 | J151: -26629.9112 | K151: -0.2911866762 | N151: Occupational Therapist 3 | O151: 13 | P151: 82767.09384 | Q151: 61866 | R151: -20901.09384 | S151: -0.337844597 | T151: 103882.1183 | U151: 81055.45117 | V151: -22826.66708 | W151: -0.2816179141 | Z151: Occupational Therapist 3 | AA151: 92201.22677 | AB151: 69864 | AC151: 118082.9665 | AD151: 91453.05528 | AE151: 82767.09384 | AF151: 61866 | AG151: 103882.1183 | AH151: 81055.45117 | AI151: 9434.13293 | AJ151: 7998 | AK151: 14200.84822 | AL151: 10397.60411 | AM151: 0.1139841028 | AN151: 0.1292794103 | AO151: 0.1367015658 | AP151: 0.1282776662
A152: 735 | B152: Physical Therapist 2 | C152: 15 | D152: 96258.06528 | E152: 69864 | F152: -26394.06528 | G152: -0.3777920715 | H152: 122596.3567 | I152: 91453.05528 | J152: -31143.30141 | K152: -0.3405386656 | N152: Physical Therapist 2 | O152: 13 | P152: 85363.77558 | Q152: 65064 | R152: -20299.77558 | S152: -0.3119970426 | T152: 107172.3 | U152: 84671.82083 | V152: -22500.47917 | W152: -0.265737514 | Z152: Physical Therapist 2 | AA152: 96258.06528 | AB152: 69864 | AC152: 122596.3567 | AD152: 91453.05528 | AE152: 85363.77558 | AF152: 65064 | AG152: 107172.3 | AH152: 84671.82083 | AI152: 10894.28971 | AJ152: 4800 | AK152: 15424.0567 | AL152: 6781.234456 | AM152: 0.127621929 | AN152: 0.07377351531 | AO152: 0.1439183138 | AP152: 0.08008844489
A153: 736 | B153: Physical Therapy Assistant 2 | C153: 5 | D153: 72300 | E153: 58734 | F153: -13566 | G153: -0.2309735417 | H153: 72300 | I153: 78913.31657 | J153: 6613.316571 | K153: 0.08380482356 | N153: Physical Therapy Assistant 2 | O153: 5 | P153: 64168 | Q153: 54696 | R153: -9472 | S153: -0.1731753693 | T153: 77830.72 | U153: 72947.45543 | V153: -4883.264573 | W153: -0.0669422195 | Z153: Physical Therapy Assistant 2 | AA153: 72300 | AB153: 58734 | AC153: 72300 | AD153: 78913.31657 | AE153: 64168 | AF153: 54696 | AG153: 77830.72 | AH153: 72947.45543 | AI153: 8132 | AJ153: 4038 | AK153: -5530.72 | AL153: 5965.861145 | AM153: 0.1267298342 | AN153: 0.07382623958 | AO153: -0.07106088701 | AP153: 0.08178299174
A154: 737 | B154: Speech Pathologist/Audiologist Specialist 1 | C154: 14 | D154: 90662.34982 | E154: 80970 | F154: -9692.349824 | G154: -0.1197029742 | H154: 116527.9219 | I154: 103965.7541 | J154: -12562.16774 | K154: -0.1208298621 | N154: Speech Pathologist/Audiologist Specialist 1 | O154: 14 | P154: 80315.50624 | Q154: 75408 | R154: -4907.506245 | S154: -0.06507938474 | T154: 101243.0055 | U154: 96369.04649 | V154: -4873.959049 | W154: -0.05057598084 | Z154: Speech Pathologist/Audiologist Specialist 1 | AA154: 90662.34982 | AB154: 80970 | AC154: 116527.9219 | AD154: 103965.7541 | AE154: 80315.50624 | AF154: 75408 | AG154: 101243.0055 | AH154: 96369.04649 | AI154: 10346.84358 | AJ154: 5562 | AK154: 15284.91632 | AL154: 7596.707635 | AM154: 0.1288274713 | AN154: 0.07375875239 | AO154: 0.1509725659 | AP154: 0.07882933277
A155: 738 | B155: Respiratory Care Specialist | C155: 3 | D155: - | E155: - | F155: -- | G155: -- | H155: - | I155: - | J155: -- | K155: -- | N155: Respiratory Care Specialist | O155: 3 | P155: - | Q155: - | R155: -- | S155: -- | T155: - | U155: - | V155: -- | W155: -- | Z155: Respiratory Care Specialist | AA155: - | AB155: - | AC155: - | AD155: - | AE155: - | AF155: - | AG155: - | AH155: - | AI155: - | AJ155: - | AK155: - | AL155: - | AM155: - | AN155: - | AO155: - | AP155: -
A156: 739 | B156: Orthopedic Technician 1 | C156: 3 | D156: - | E156: - | F156: -- | G156: -- | H156: - | I156: - | J156: -- | K156: -- | N156: Orthopedic Technician 1 | O156: 3 | P156: - | Q156: - | R156: -- | S156: -- | T156: - | U156: - | V156: -- | W156: -- | Z156: Orthopedic Technician 1 | AA156: - | AB156: - | AC156: - | AD156: - | AE156: - | AF156: - | AG156: - | AH156: - | AI156: - | AJ156: - | AK156: - | AL156: - | AM156: - | AN156: - | AO156: - | AP156: -
A157: 740 | B157: Dietitian 1 | C157: 7 | D157: 77610.504 | E157: 63258 | F157: -14352.504 | G157: -0.2268883619 | H157: 101700.2895 | I157: 84010.33166 | J157: -17689.95787 | K157: -0.2105688374 | N157: Dietitian 1 | O157: 7 | P157: 67988.03023 | Q157: 53364 | R157: -14624.03023 | S157: -0.2740429922 | T157: 81897.02223 | U157: 71441.20015 | V157: -10455.82208 | W157: -0.1463556332 | Z157: Dietitian 1 | AA157: 77610.504 | AB157: 63258 | AC157: 101700.2895 | AD157: 84010.33166 | AE157: 67988.03023 | AF157: 53364 | AG157: 81897.02223 | AH157: 71441.20015 | AI157: 9622.473766 | AJ157: 9894 | AK157: 19803.26729 | AL157: 12569.13151 | AM157: 0.1415318804 | AN157: 0.1854058916 | AO157: 0.2418069272 | AP157: 0.1759367351
A158: 741 | B158: Hospital Central Services Technician 1 | C158: 4 | D158: - | E158: - | F158: -- | G158: -- | H158: - | I158: - | J158: -- | K158: -- | N158: Hospital Central Services Technician 1 | O158: 4 | P158: - | Q158: - | R158: -- | S158: -- | T158: - | U158: - | V158: -- | W158: -- | Z158: Hospital Central Services Technician 1 | AA158: - | AB158: - | AC158: - | AD158: - | AE158: - | AF158: - | AG158: - | AH158: - | AI158: - | AJ158: - | AK158: - | AL158: - | AM158: - | AN158: - | AO158: - | AP158: -
A159: 742 | B159: Histotechnologist | C159: 4 | D159: - | E159: - | F159: -- | G159: -- | H159: - | I159: - | J159: -- | K159: -- | N159: Histotechnologist | O159: 3 | P159: - | Q159: - | R159: -- | S159: -- | T159: - | U159: - | V159: -- | W159: -- | Z159: Histotechnologist | AA159: - | AB159: - | AC159: - | AD159: - | AE159: - | AF159: - | AG159: - | AH159: - | AI159: - | AJ159: - | AK159: - | AL159: - | AM159: - | AN159: - | AO159: - | AP159: -
A160: 743 | B160: Clinical Cytogenetic Technologist | C160: 7 | D160: 75385.59924 | E160: 61710 | F160: -13675.59924 | G160: -0.2216107477 | H160: 98335.65152 | I160: 82266.26018 | J160: -16069.39134 | K160: -0.1953339231 | N160: Clinical Cytogenetic Technologist | O160: 5 | P160: 70825.93581 | Q160: 57462 | R160: -13363.93581 | S160: -0.2325699734 | T160: 85097.93581 | U160: 76075.30985 | V160: -9022.625961 | W160: -0.1186012384 | Z160: Clinical Cytogenetic Technologist | AA160: 75385.59924 | AB160: 61710 | AC160: 98335.65152 | AD160: 82266.26018 | AE160: 70825.93581 | AF160: 57462 | AG160: 85097.93581 | AH160: 76075.30985 | AI160: 4559.663425 | AJ160: 4248 | AK160: 13237.71571 | AL160: 6190.95033 | AM160: 0.06437844234 | AN160: 0.07392711705 | AO160: 0.1555585994 | AP160: 0.08137923253
A161: 745 | B161: Optician, Licensed - Dispensing | C161: 5 | D161: 88873.96512 | E161: 54582 | F161: -34291.96512 | G161: -0.6282650895 | H161: 119429.3956 | I161: 74235.41944 | J161: -45193.97614 | K161: -0.6087926287 | N161: Optician, Licensed - Dispensing | O161: 5 | P161: 81738.66409 | Q161: 50826 | R161: -30912.66409 | S161: -0.6082057233 | T161: 94966.66409 | U161: 68571.1732 | V161: -26395.49089 | W161: -0.3849356757 | Z161: Optician, Licensed - Dispensing | AA161: 88873.96512 | AB161: 54582 | AC161: 119429.3956 | AD161: 74235.41944 | AE161: 81738.66409 | AF161: 50826 | AG161: 94966.66409 | AH161: 68571.1732 | AI161: 7135.301023 | AJ161: 3756 | AK161: 24462.73148 | AL161: 5664.246232 | AM161: 0.08729407438 | AN161: 0.07389918546 | AO161: 0.257592827 | AP161: 0.08260389851
A162: 746 | B162: Anesthesiology Technician 2 | C162: 3 | D162: - | E162: - | F162: -- | G162: -- | H162: - | I162: - | J162: -- | K162: -- | N162: Anesthesiology Technician 2 | O162: 3 | P162: - | Q162: - | R162: -- | S162: -- | T162: - | U162: - | V162: -- | W162: -- | Z162: Anesthesiology Technician 2 | AA162: - | AB162: - | AC162: - | AD162: - | AE162: - | AF162: - | AG162: - | AH162: - | AI162: - | AJ162: - | AK162: - | AL162: - | AM162: - | AN162: - | AO162: - | AP162: -
A163: 748 | B163: Electrocardiograph Technician 2 | C163: 3 | D163: - | E163: - | F163: -- | G163: -- | H163: - | I163: - | J163: -- | K163: -- | N163: Electrocardiograph Technician 2 | O163: 3 | P163: - | Q163: - | R163: -- | S163: -- | T163: - | U163: - | V163: -- | W163: -- | Z163: Electrocardiograph Technician 2 | AA163: - | AB163: - | AC163: - | AD163: - | AE163: - | AF163: - | AG163: - | AH163: - | AI163: - | AJ163: - | AK163: - | AL163: - | AM163: - | AN163: - | AO163: - | AP163: -
A164: 749 | B164: Research Technologist 2 | C164: 3 | D164: - | E164: - | F164: -- | G164: -- | H164: - | I164: - | J164: -- | K164: -- | N164: Research Technologist 2 | O164: 3 | P164: - | Q164: - | R164: -- | S164: -- | T164: - | U164: - | V164: -- | W164: -- | Z164: Research Technologist 2 | AA164: - | AB164: - | AC164: - | AD164: - | AE164: - | AF164: - | AG164: - | AH164: - | AI164: - | AJ164: - | AK164: - | AL164: - | AM164: - | AN164: - | AO164: - | AP164: -
A165: 753 | B165: Psychiatric Social Worker 2 | C165: 4 | D165: - | E165: - | F165: -- | G165: -- | H165: - | I165: - | J165: -- | K165: -- | N165: Psychiatric Social Worker 2 | O165: 4 | P165: - | Q165: - | R165: -- | S165: -- | T165: - | U165: - | V165: -- | W165: -- | Z165: Psychiatric Social Worker 2 | AA165: - | AB165: - | AC165: - | AD165: - | AE165: - | AF165: - | AG165: - | AH165: - | AI165: - | AJ165: - | AK165: - | AL165: - | AM165: - | AN165: - | AO165: - | AP165: -
A166: 754 | B166: Developmental Disability Case/Resource Manager | C166: 11 | D166: 75304.91813 | E166: 73380 | F166: -1924.918132 | G166: -0.0262321904 | H166: 98123.07278 | I166: 95414.39592 | J166: -2708.67686 | K166: -0.02838855535 | N166: Developmental Disability Case/Resource Manager | O166: 6 | P166: 66841.21253 | Q166: 63432 | R166: -3409.212526 | S166: -0.05374594094 | T166: 88204.60204 | U166: 82826.31886 | V166: -5378.28317 | W166: -0.06493447064 | Z166: Developmental Disability Case/Resource Manager | AA166: 75304.91813 | AB166: 73380 | AC166: 98123.07278 | AD166: 95414.39592 | AE166: 66841.21253 | AF166: 63432 | AG166: 88204.60204 | AH166: 82826.31886 | AI166: 8463.705606 | AJ166: 9948 | AK166: 9918.470745 | AL166: 12588.07706 | AM166: 0.1266240585 | AN166: 0.1568293606 | AO166: 0.1124484496 | AP166: 0.1519816072
A167: 755 | B167: Worksource Specialist 4 | C167: 3 | D167: - | E167: - | F167: -- | G167: -- | H167: - | I167: - | J167: -- | K167: -- | N167: Worksource Specialist 4 | O167: 3 | P167: - | Q167: - | R167: -- | S167: -- | T167: - | U167: - | V167: -- | W167: -- | Z167: Worksource Specialist 4 | AA167: - | AB167: - | AC167: - | AD167: - | AE167: - | AF167: - | AG167: - | AH167: - | AI167: - | AJ167: - | AK167: - | AL167: - | AM167: - | AN167: - | AO167: - | AP167: -
B168: Average | D168: 94140.9196 | E168: 80013.42857 | F168: -14127.49103 | G168: -0.1765640003 | H168: 118111.3359 | I168: 102888.0222 | J168: -15223.31369 | K168: -0.1479600187 | N168: Average | P168: 85375.79054 | Q168: 72113.65714 | R168: -13262.1334 | S168: -0.1839059885 | T168: 104938.1827 | U168: 92643.73019 | V168: -12294.45247 | W168: -0.1327067946 | Z168: Average | AA168: =AVERAGE(AA121:AA167) -> 94140.9196 | AB168: 80013.42857 | AC168: 118111.3359 | AD168: 102888.0222 | AE168: 85375.79054 | AF168: 72113.65714 | AG168: 104938.1827 | AH168: 92643.73019 | AI168: 8765.129059 | AJ168: 7899.771429 | AK168: 13173.15328 | AL168: 10244.29206 | AM168: =AI168/AE168 -> 0.1026652755 | AN168: 0.1095461212 | AO168: 0.1255325082 | AP168: 0.110577284
AI171: $ CHANGE 2022 TO 2024 | AM171: % CHANGE 2022 TO 2024
B172: Hospitality, Accommodation, Food Services, or Personal Services | C172: Base Salary | H172: Total Compensation | N172: Hospitality, Accommodation, Food Services, or Personal Services | O172: Base salary | T172: Total compensation | Z172: Hospitality, Accommodation, Food Services, or Personal Services | AA172: Consistently Successful Benchmarks | AI172: Base salary | AK172: Total compensation | AM172: Base salary | AO172: Total compensation
B173: Benchmark | C173: No. of matches | D173: Market median | E173: Washington state | F173: How much the state lags or leads | G173: Washington % to reach EMV | H173: Market median | I173: Washington state | J173: How much the state lags or leads | K173: Washington % to reach market total compensation | N173: Benchmark | O173: No. of matches | P173: Market median | Q173: Washington state | R173: How much the state lags or leads | S173: Washington % to reach EMV | T173: Market median | U173: Washington state | V173: How much the state lags or leads | W173: Washington % to reach market total compensation | Z173: Benchmark | AA173: 2024 Base Market | AB173: 2024 Base State | AC173: 2024 Total Comp Market | AD173: 2024 Total Comp State | AE173: 2022 Base Market | AF173: 2022 Base State | AG173: 2022 Total Comp Market | AH173: 2022 Total Comp State | AI173: Base Market | AJ173: Base State | AK173: Total Comp Market | AL173: Total Comp State | AM173: Base Market | AN173: Base State | AO173: Total Comp Market | AP173: Total Comp State
A174: 800 | B174: Cook 2 | C174: 11 | D174: 46030.56 | E174: 45012 | F174: -1018.56 | G174: =IFERROR(F174/E174,"--") -> -0.02262863236 | H174: 65315.62087 | I174: 63453.27213 | J174: -1862.348733 | K174: =IFERROR(J174/I174,"--") -> -0.02934992429 | N174: Cook 2 | O174: 11 | P174: 41116.12 | Q174: 38124 | R174: -2992.12 | S174: -0.07848389466 | T174: 54078.2 | U174: 54207.4686 | V174: 129.2686027 | W174: 0.002384700966 | Z174: Cook 2 | AA174: =IF($D174="-","-",IF($P174="-","-",D174)) -> 46030.56 | AB174: 45012 | AC174: =IF($D174="-","-",IF($P174="-","-",H174)) -> 65315.62087 | AD174: 63453.27213 | AE174: =IF($D174="-","-",IF($P174="-","-",P174)) -> 41116.12 | AF174: 38124 | AG174: =IF($D174="-","-",IF($P174="-","-",T174)) -> 54078.2 | AH174: 54207.4686 | AI174: =IFERROR(AA174-AE174,"-") -> 4914.44 | AJ174: 6888 | AK174: 11237.42087 | AL174: 9245.803531 | AM174: =IFERROR(AI174/AE174,"-") -> 0.1195258697 | AN174: 0.1806735914 | AO174: 0.207799462 | AP174: 0.1705632779
A175: 801 | B175: Food Service Manager 2 | C175: 20 | D175: 74340.34728 | E175: 57306 | F175: -17034.34728 | G175: -0.2972524217 | H175: 96767.65061 | I175: 77304.44443 | J175: -19463.20618 | K175: -0.2517734436 | N175: Food Service Manager 2 | O175: 18 | P175: 62734.50041 | Q175: 48438 | R175: -14296.50041 | S175: -0.2951505101 | T175: 81014.24258 | U175: 65870.7696 | V175: -15143.47298 | W175: -0.2298967064 | Z175: Food Service Manager 2 | AA175: 74340.34728 | AB175: 57306 | AC175: 96767.65061 | AD175: 77304.44443 | AE175: 62734.50041 | AF175: 48438 | AG175: 81014.24258 | AH175: 65870.7696 | AI175: 11605.84687 | AJ175: 8868 | AK175: 15753.40804 | AL175: 11433.67484 | AM175: 0.1849994308 | AN175: 0.1830794005 | AO175: 0.1944523276 | AP175: 0.1735773683
A176: 802 | B176: Laundry Worker 1 | C176: 5 | D176: 36747.00666 | E176: 39030 | F176: 2282.99334 | G176: 0.05849329593 | H176: 36747.00666 | I176: 56713.58507 | J176: 19966.57841 | K176: 0.3520598881 | N176: Laundry Worker 1 | O176: 5 | P176: 34005 | Q176: 34818 | R176: 813 | S176: 0.02334999138 | T176: 46461.2 | U176: 50468.97015 | V176: 4007.770145 | W176: 0.07941057908 | Z176: Laundry Worker 1 | AA176: 36747.00666 | AB176: 39030 | AC176: 36747.00666 | AD176: 56713.58507 | AE176: 34005 | AF176: 34818 | AG176: 46461.2 | AH176: 50468.97015 | AI176: 2742.00666 | AJ176: 4212 | AK176: -9714.19334 | AL176: 6244.61493 | AM176: 0.08063539656 | AN176: 0.1209719111 | AO176: -0.2090818433 | AP176: 0.1237317685
B177: Average | D177: 52372.63798 | E177: 47116 | F177: -5256.637979 | G177: -0.1115680019 | H177: 66276.75938 | I177: 65823.76721 | J177: -452.9921656 | K177: -0.00688189365 | N177: Average | P177: 45951.87347 | Q177: 40460 | R177: -5491.87347 | S177: -0.1357358742 | T177: 60517.88086 | U177: 56849.06945 | V177: -3668.81141 | W177: -0.06453599761 | Z177: Average | AA177: =AVERAGE(AA174:AA176) -> 52372.63798 | AB177: 47116 | AC177: 66276.75938 | AD177: 65823.76721 | AE177: 45951.87347 | AF177: 40460 | AG177: 60517.88086 | AH177: 56849.06945 | AI177: 6420.76451 | AJ177: 6656 | AK177: 5758.878521 | AL177: 8974.697766 | AM177: =AI177/AE177 -> 0.1397280247 | AN177: 0.1645081562 | AO177: 0.09515995007 | AP177: 0.1578688596
AI180: $ CHANGE 2022 TO 2024 | AM180: % CHANGE 2022 TO 2024
B181: Information Technology | C181: Base Salary | H181: Total Compensation | N181: Information Technology | O181: Base salary | T181: Total compensation | Z181: Information Technology | AA181: Consistently Successful Benchmarks | AI181: Base salary | AK181: Total compensation | AM181: Base salary | AO181: Total compensation
B182: Benchmark | C182: No. of matches | D182: Market median | E182: Washington state | F182: How much the state lags or leads | G182: Washington % to reach EMV | H182: Market median | I182: Washington state | J182: How much the state lags or leads | K182: Washington % to reach market total compensation | N182: Benchmark | O182: No. of matches | P182: Market median | Q182: Washington state | R182: How much the state lags or leads | S182: Washington % to reach EMV | T182: Market median | U182: Washington state | V182: How much the state lags or leads | W182: Washington % to reach market total compensation | Z182: Benchmark | AA182: 2024 Base Market | AB182: 2024 Base State | AC182: 2024 Total Comp Market | AD182: 2024 Total Comp State | AE182: 2022 Base Market | AF182: 2022 Base State | AG182: 2022 Total Comp Market | AH182: 2022 Total Comp State | AI182: Base Market | AJ182: Base State | AK182: Total Comp Market | AL182: Total Comp State | AM182: Base Market | AN182: Base State | AO182: Total Comp Market | AP182: Total Comp State
A183: 1700 | B183: IT App Development - Journey | C183: 23 | D183: 97018.9725 | E183: 92970 | F183: -4048.9725 | G183: =IFERROR(F183/E183,"--") -> -0.04355138754 | H183: 124046.7769 | I183: 117485.688 | J183: -6561.088886 | K183: =IFERROR(J183/I183,"--") -> -0.05584585659 | N183: IT App Development - Journey | O183: 15 | P183: 94353.24746 | Q183: 86580 | R183: -7773.247457 | S183: -0.08978109791 | T183: 115600.4739 | U183: 109002.593 | V183: -6597.880911 | W183: -0.0605295776 | Z183: IT App Development - Journey | AA183: =IF($D183="-","-",IF($P183="-","-",D183)) -> 97018.9725 | AB183: =IF($D183="-","-",IF($P183="-","-",E183)) -> 92970 | AC183: =IF($D183="-","-",IF($P183="-","-",H183)) -> 124046.7769 | AD183: =IF($D183="-","-",IF($P183="-","-",I183)) -> 117485.688 | AE183: =IF($D183="-","-",IF($P183="-","-",P183)) -> 94353.24746 | AF183: =IF($D183="-","-",IF($P183="-","-",Q183)) -> 86580 | AG183: =IF($D183="-","-",IF($P183="-","-",T183)) -> 115600.4739 | AH183: =IF($D183="-","-",IF($P183="-","-",U183)) -> 109002.593 | AI183: =IFERROR(AA183-AE183,"-") -> 2665.725043 | AJ183: =IFERROR(AB183-AF183,"-") -> 6390 | AK183: 8446.303017 | AL183: 8483.095043 | AM183: =IFERROR(AI183/AE183,"-") -> 0.02825260513 | AN183: 0.0738045738 | AO183: 0.07306460546 | AP183: 0.07782470865
A184: 1701 | B184: IT Architecture - Journey | C184: 17 | D184: 118073.55 | E184: 86478 | F184: -31595.55 | G184: -0.3653593978 | H184: 147312.1686 | I184: 110171.4038 | J184: -37140.76482 | K184: -0.3371180138 | N184: IT Architecture - Journey | O184: 14 | P184: 106286.3815 | Q184: 80538 | R184: -25748.38147 | S184: -0.3197047538 | T184: 130513.5242 | U184: 102170.1648 | V184: -28343.35945 | W184: -0.2774132694 | Z184: IT Architecture - Journey | AA184: 118073.55 | AB184: 86478 | AC184: 147312.1686 | AD184: 110171.4038 | AE184: 106286.3815 | AF184: 80538 | AG184: 130513.5242 | AH184: 102170.1648 | AI184: =IFERROR(AA184-AE184,"-") -> 11787.16853 | AJ184: 5940 | AK184: 16798.64438 | AL184: 8001.239008 | AM184: 0.1109000831 | AN184: 0.07375400432 | AO184: 0.1287119054 | AP184: 0.07831287171
A185: 1702 | B185: IT Business Analyst - Journey | C185: 23 | D185: 90199.1 | E185: 92970 | F185: 2770.9 | G185: 0.02980423793 | H185: 115714.7092 | I185: 117485.688 | J185: 1770.978855 | K185: 0.01507399654 | N185: IT Business Analyst - Journey | O185: 18 | P185: 89379.27371 | Q185: 86580 | R185: -2799.273707 | S185: -0.03233164365 | T185: 112170.4053 | U185: 109002.593 | V185: -3167.812252 | W185: -0.02906180637 | Z185: IT Business Analyst - Journey | AA185: 90199.1 | AB185: 92970 | AC185: 115714.7092 | AD185: 117485.688 | AE185: 89379.27371 | AF185: 86580 | AG185: 112170.4053 | AH185: 109002.593 | AI185: 819.8262931 | AJ185: 6390 | AK185: 3544.303936 | AL185: 8483.095043 | AM185: 0.009172442996 | AN185: 0.0738045738 | AO185: 0.03159749604 | AP185: 0.07782470865
A186: 1703 | B186: IT Customer Support - Journey | C186: 24 | D186: 77792.25 | E186: 80484 | F186: 2691.75 | G186: 0.03344453556 | H186: 102416.9825 | I186: 103418.1968 | J186: 1001.214262 | K186: 0.009681219487 | N186: IT Customer Support - Journey | O186: 20 | P186: 78992.8025 | Q186: 74952 | R186: -4040.8025 | S186: -0.05391187026 | T186: 100754.1125 | U186: 95853.39153 | V186: -4900.720923 | W186: -0.05112725637 | Z186: IT Customer Support - Journey | AA186: 77792.25 | AB186: 80484 | AC186: 102416.9825 | AD186: 103418.1968 | AE186: 78992.8025 | AF186: 74952 | AG186: 100754.1125 | AH186: 95853.39153 | AI186: -1200.5525 | AJ186: 5532 | AK186: 1662.870086 | AL186: 7564.805271 | AM186: -0.01519825176 | AN186: 0.07380723663 | AO186: 0.01650424033 | AP186: 0.07892058017
A187: 1704 | B187: IT Data Management - Journey | C187: 18 | D187: 100132.969 | E187: 97626 | F187: -2506.969031 | G187: -0.0256793173 | H187: 127177.9352 | I187: 122731.4224 | J187: -4446.512764 | K187: -0.03622961974 | N187: IT Data Management - Journey | O187: 13 | P187: 95359.55733 | Q187: 90918 | R187: -4441.557328 | S187: -0.04885234307 | T187: 115422.2555 | U187: 113908.1001 | V187: -1514.155442 | W187: -0.01329278112 | Z187: IT Data Management - Journey | AA187: 100132.969 | AB187: 97626 | AC187: 127177.9352 | AD187: 122731.4224 | AE187: 95359.55733 | AF187: 90918 | AG187: 115422.2555 | AH187: 113908.1001 | AI187: 4773.411703 | AJ187: 6708 | AK187: 11755.67968 | AL187: 8823.322353 | AM187: 0.05005698262 | AN187: 0.07378076948 | AO187: 0.1018493325 | AP187: 0.0774600081
A188: 1705 | B188: IT Network & Telecoms - Journey | C188: 23 | D188: 93843.0725 | E188: 92970 | F188: -873.0725 | G188: -0.009390905668 | H188: 120632.1909 | I188: 117485.688 | J188: -3146.502896 | K188: -0.0267820102 | N188: IT Network & Telecoms - Journey | O188: 16 | P188: 87807 | Q188: 86580 | R188: -1227 | S188: -0.01417186417 | T188: 109318.9011 | U188: 109002.593 | V188: -316.308054 | W188: -0.00290183972 | Z188: IT Network & Telecoms - Journey | AA188: 93843.0725 | AB188: 92970 | AC188: 120632.1909 | AD188: 117485.688 | AE188: 87807 | AF188: 86580 | AG188: 109318.9011 | AH188: 109002.593 | AI188: 6036.0725 | AJ188: 6390 | AK188: 11313.28988 | AL188: 8483.095043 | AM188: 0.06874249775 | AN188: 0.0738045738 | AO188: 0.1034888732 | AP188: 0.07782470865
A189: 1706 | B189: IT Policy & Planning - Journey | C189: 9 | D189: 108266.5 | E189: 80484 | F189: -27782.5 | G189: -0.3451928334 | H189: 137354.5185 | I189: 103418.1968 | J189: -33936.32169 | K189: -0.328146523 | N189: IT Policy & Planning - Journey | O189: 11 | P189: 106047.5054 | Q189: 74952 | R189: -31095.50539 | S189: -0.4148722568 | T189: 133505.9724 | U189: 95853.39153 | V189: -37652.58082 | W189: -0.3928142784 | Z189: IT Policy & Planning - Journey | AA189: 108266.5 | AB189: 80484 | AC189: 137354.5185 | AD189: 103418.1968 | AE189: 106047.5054 | AF189: 74952 | AG189: 133505.9724 | AH189: 95853.39153 | AI189: 2218.994612 | AJ189: 5532 | AK189: 3848.546143 | AL189: 7564.805271 | AM189: 0.02092453381 | AN189: 0.07380723663 | AO189: 0.02882677138 | AP189: 0.07892058017
A190: 1707 | B190: IT Project Management - Journey | C190: 17 | D190: 109988.5 | E190: 97626 | F190: -12362.5 | G190: -0.1266312253 | H190: 138219.2758 | I190: 122731.4224 | J190: -15487.85336 | K190: -0.1261930568 | N190: IT Project Management - Journey | O190: 16 | P190: 108789.2198 | Q190: 90918 | R190: -17871.21983 | S190: -0.1965641548 | T190: 134328.2635 | U190: 113908.1001 | V190: -20420.16342 | W190: -0.1792687562 | Z190: IT Project Management - Journey | AA190: 109988.5 | AB190: 97626 | AC190: 138219.2758 | AD190: 122731.4224 | AE190: 108789.2198 | AF190: 90918 | AG190: 134328.2635 | AH190: 113908.1001 | AI190: 1199.280172 | AJ190: 6708 | AK190: 3891.012289 | AL190: 8823.322353 | AM190: 0.01102388798 | AN190: 0.07378076948 | AO190: 0.02896644525 | AP190: 0.0774600081
A191: 1708 | B191: IT Quality Assurance - Journey | C191: 9 | D191: 94069 | E191: 92970 | F191: -1099 | G191: -0.01182101753 | H191: 118115.4192 | I191: 117485.688 | J191: -629.7311669 | K191: -0.005360067063 | N191: IT Quality Assurance - Journey | O191: 9 | P191: 88547 | Q191: 86580 | R191: -1967 | S191: -0.02271887272 | T191: 109794.2265 | U191: 109002.593 | V191: -791.6334546 | W191: -0.007262519475 | Z191: IT Quality Assurance - Journey | AA191: 94069 | AB191: 92970 | AC191: 118115.4192 | AD191: 117485.688 | AE191: 88547 | AF191: 86580 | AG191: 109794.2265 | AH191: 109002.593 | AI191: 5522 | AJ191: 6390 | AK191: 8321.192755 | AL191: 8483.095043 | AM191: 0.06236236123 | AN191: 0.0738045738 | AO191: 0.07578898293 | AP191: 0.07782470865
A192: 1709 | B192: IT Security - Journey | C192: 16 | D192: 105152 | E192: 92970 | F192: -12182 | G192: -0.1310315155 | H192: 133033.9509 | I192: 117485.688 | J192: -15548.26288 | K192: -0.1323417613 | N192: IT Security - Journey | O192: 14 | P192: 95698 | Q192: 86580 | R192: -9118 | S192: -0.1053130053 | T192: 118906.6399 | U192: 109002.593 | V192: -9904.046933 | W192: -0.09086065442 | Z192: IT Security - Journey | AA192: 105152 | AB192: 92970 | AC192: 133033.9509 | AD192: 117485.688 | AE192: 95698 | AF192: 86580 | AG192: 118906.6399 | AH192: 109002.593 | AI192: 9454 | AJ192: 6390 | AK192: 14127.31099 | AL192: 8483.095043 | AM192: 0.09878994336 | AN192: 0.0738045738 | AO192: 0.1188101102 | AP192: 0.07782470865
A193: 1710 | B193: IT System Administration - Journey | C193: 24 | D193: 98532.96903 | E193: 97626 | F193: -906.969031 | G193: -0.009290240623 | H193: 125497.213 | I193: 122731.4224 | J193: -2765.790615 | K193: -0.02253530971 | N193: IT System Administration - Journey | O193: 18 | P193: 92857 | Q193: 90918 | R193: -1939 | S193: -0.02132690996 | T193: 114870.8373 | U193: 113908.1001 | V193: -962.7372877 | W193: -0.008451877323 | Z193: IT System Administration - Journey | AA193: 98532.96903 | AB193: 97626 | AC193: 125497.213 | AD193: 122731.4224 | AE193: 92857 | AF193: 90918 | AG193: 114870.8373 | AH193: 113908.1001 | AI193: 5675.969031 | AJ193: 6708 | AK193: 10626.37568 | AL193: 8823.322353 | AM193: 0.06112591437 | AN193: 0.07378076948 | AO193: 0.09250716654 | AP193: 0.0774600081
A194: 1711 | B194: IT Vendor Management - Journey | C194: 6 | D194: 91913.49 | E194: 86478 | F194: -5435.49 | G194: -0.06285402068 | H194: 118514.115 | I194: 110171.4038 | J194: -8342.711237 | K194: -0.07572483375 | N194: IT Vendor Management - Journey | O194: 6 | P194: 93620.03 | Q194: 80538 | R194: -13082.03 | S194: -0.162433013 | T194: 117367.0891 | U194: 102170.1648 | V194: -15196.92428 | W194: -0.1487413112 | Z194: IT Vendor Management - Journey | AA194: 91913.49 | AB194: 86478 | AC194: 118514.115 | AD194: 110171.4038 | AE194: 93620.03 | AF194: 80538 | AG194: 117367.0891 | AH194: 102170.1648 | AI194: -1706.54 | AJ194: 5940 | AK194: 1147.025968 | AL194: 8001.239008 | AM194: -0.01822836417 | AN194: 0.07375400432 | AO194: 0.009772977902 | AP194: 0.07831287171
A195: 1712 | B195: IT Support Technician 2 | C195: 21 | D195: 70289 | E195: 54582 | F195: -15707 | G195: -0.2877688615 | H195: 94166.30503 | I195: 74235.41944 | J195: -19930.8856 | K195: -0.2684821579 | N195: IT Support Technician 2 | O195: 15 | P195: 65397.60568 | Q195: 50826 | R195: -14571.60568 | S195: -0.2866958975 | T195: 84656.4108 | U195: 68571.1732 | V195: -16085.2376 | W195: -0.2345772552 | Z195: IT Support Technician 2 | AA195: 70289 | AB195: 54582 | AC195: 94166.30503 | AD195: 74235.41944 | AE195: 65397.60568 | AF195: 50826 | AG195: 84656.4108 | AH195: 68571.1732 | AI195: 4891.394315 | AJ195: 3756 | AK195: 9509.894232 | AL195: 5664.246232 | AM195: 0.07479470026 | AN195: 0.07389918546 | AO195: 0.1123351928 | AP195: 0.08260389851
B196: Average | D196: 96559.33639 | E196: 88171.84615 | F196: -8387.490236 | G196: -0.09512662603 | H196: 123246.2739 | I196: 112079.7945 | J196: -11166.47945 | K196: -0.09962972808 | N196: Average | P196: 92548.81718 | Q196: 82112.30769 | R196: -10436.50949 | S196: -0.1271004285 | T196: 115169.9317 | U196: 103950.427 | V196: -11219.50468 | W196: -0.1079312996 | Z196: Average | AA196: =AVERAGE(AA183:AA195) -> 96559.33639 | AB196: 88171.84615 | AC196: 123246.2739 | AD196: 112079.7945 | AE196: 92548.81718 | AF196: 82112.30769 | AG196: 115169.9317 | AH196: 103950.427 | AI196: 4010.519208 | AJ196: 6059.538462 | AK196: 8076.342234 | AL196: 8129.367466 | AM196: =AI196/AE196 -> 0.0433340947 | AN196: 0.07379573942 | AO196: 0.07012544087 | AP196: 0.07820427199
AI199: $ CHANGE 2022 TO 2024 | AM199: % CHANGE 2022 TO 2024
B200: Media or Communications | C200: Base Salary | H200: Total Compensation | N200: Media or Communications | O200: Base salary | T200: Total compensation | Z200: Media or Communications | AA200: Consistently Successful Benchmarks | AI200: Base salary | AK200: Total compensation | AM200: Base salary | AO200: Total compensation
B201: Benchmark | C201: No. of matches | D201: Market median | E201: Washington state | F201: How much the state lags or leads | G201: Washington % to reach EMV | H201: Market median | I201: Washington state | J201: How much the state lags or leads | K201: Washington % to reach market total compensation | N201: Benchmark | O201: No. of matches | P201: Market median | Q201: Washington state | R201: How much the state lags or leads | S201: Washington % to reach EMV | T201: Market median | U201: Washington state | V201: How much the state lags or leads | W201: Washington % to reach market total compensation | Z201: Benchmark | AA201: 2024 Base Market | AB201: 2024 Base State | AC201: 2024 Total Comp Market | AD201: 2024 Total Comp State | AE201: 2022 Base Market | AF201: 2022 Base State | AG201: 2022 Total Comp Market | AH201: 2022 Total Comp State | AI201: Base Market | AJ201: Base State | AK201: Total Comp Market | AL201: Total Comp State | AM201: Base Market | AN201: Base State | AO201: Total Comp Market | AP201: Total Comp State
A202: 900 | B202: Communications Consultant 3 | C202: 25 | D202: 84443.21079 | E202: 61710 | F202: -22733.21079 | G202: =IFERROR(F202/E202,"--") -> -0.3683877943 | H202: 110033.8613 | I202: 82266.26018 | J202: -27767.60115 | K202: =IFERROR(J202/I202,"--") -> -0.3375332863 | N202: Communications Consultant 3 | O202: 23 | P202: 78474.85 | Q202: 57462 | R202: -21012.85 | S202: -0.365682538 | T202: 99784.04598 | U202: 76075.30985 | V202: -23708.73612 | W202: -0.311648236 | Z202: Communications Consultant 3 | AA202: =IF($D202="-","-",IF($P202="-","-",D202)) -> 84443.21079 | AB202: 61710 | AC202: =IF($D202="-","-",IF($P202="-","-",H202)) -> 110033.8613 | AD202: 82266.26018 | AE202: =IF($D202="-","-",IF($P202="-","-",P202)) -> 78474.85 | AF202: 57462 | AG202: =IF($D202="-","-",IF($P202="-","-",T202)) -> 99784.04598 | AH202: 76075.30985 | AI202: =IFERROR(AA202-AE202,"-") -> 5968.360787 | AJ202: 4248 | AK202: 10249.81536 | AL202: 6190.95033 | AM202: =IFERROR(AI202/AE202,"-") -> 0.0760544402 | AN202: 0.07392711705 | AO202: 0.1027199815 | AP202: 0.08137923253
A203: 901 | B203: Electronic Media Producer Lead | C203: 9 | D203: 83021.61945 | E203: 61710 | F203: -21311.61945 | G203: -0.3453511497 | H203: 107682.8304 | I203: 82266.26018 | J203: -25416.57022 | K203: -0.3089549733 | N203: Electronic Media Producer Lead | O203: 10 | P203: 72488.40493 | Q203: 57462 | R203: -15026.40493 | S203: -0.2615015999 | T203: 90383.77992 | U203: 76075.30985 | V203: -14308.47007 | W203: -0.188082968 | Z203: Electronic Media Producer Lead | AA203: 83021.61945 | AB203: 61710 | AC203: 107682.8304 | AD203: 82266.26018 | AE203: 72488.40493 | AF203: 57462 | AG203: 90383.77992 | AH203: 76075.30985 | AI203: 10533.21452 | AJ203: 4248 | AK203: 17299.05048 | AL203: 6190.95033 | AM203: 0.145308957 | AN203: 0.07392711705 | AO203: 0.1913955191 | AP203: 0.08137923253
A204: 903 | B204: Photographer 2 | C204: 17 | D204: 69321.85038 | E204: 57306 | F204: -12015.85038 | G204: -0.2096787488 | H204: 91352.65665 | I204: 77304.44443 | J204: -14048.21222 | K204: -0.1817258027 | N204: Photographer 2 | O204: 18 | P204: 60056.9137 | Q204: 53364 | R204: -6692.913697 | S204: -0.1254200153 | T204: 78812.03582 | U204: 71441.20015 | V204: -7370.835668 | W204: -0.1031734581 | Z204: Photographer 2 | AA204: 69321.85038 | AB204: 57306 | AC204: 91352.65665 | AD204: 77304.44443 | AE204: 60056.9137 | AF204: 53364 | AG204: 78812.03582 | AH204: 71441.20015 | AI204: 9264.936682 | AJ204: 3942 | AK204: 12540.62083 | AL204: 5863.244285 | AM204: 0.1542692775 | AN204: 0.07387002474 | AO204: 0.1591206306 | AP204: 0.08207090968
A205: 904 | B205: Digital Printing Specialist | C205: 5 | D205: 57801.594 | E205: 43554 | F205: -14247.594 | G205: -0.3271248106 | H205: 78093.73659 | I205: 61810.60016 | J205: -16283.13643 | K205: -0.2634359865 | N205: Digital Printing Specialist | O205: 5 | P205: 52995.75 | Q205: 40560 | R205: -12435.75 | S205: -0.3066013314 | T205: 66231.75 | U205: 56962.15168 | V205: -9269.598323 | W205: -0.1627325873 | Z205: Digital Printing Specialist | AA205: 57801.594 | AB205: 43554 | AC205: 78093.73659 | AD205: 61810.60016 | AE205: 52995.75 | AF205: 40560 | AG205: 66231.75 | AH205: 56962.15168 | AI205: 4805.844 | AJ205: 2994 | AK205: 11861.98659 | AL205: 4848.448486 | AM205: 0.09068357368 | AN205: 0.07381656805 | AO205: 0.1790981907 | AP205: 0.08511701793
A206: 906 | B206: Community Outreach & Environmental Educational Specialist 2 | C206: 9 | D206: 66432.75 | E206: 54582 | F206: -11850.75 | G206: -0.2171182808 | H206: 89810.80491 | I206: 74235.41944 | J206: -15575.38548 | K206: -0.2098107022 | N206: Community Outreach & Environmental Educational Specialist 2 | O206: 9 | P206: 66794.25 | Q206: 50826 | R206: -15968.25 | S206: -0.3141748318 | T206: 87035.54171 | U206: 68571.1732 | V206: -18464.36851 | W206: -0.2692730436 | Z206: Community Outreach & Environmental Educational Specialist 2 | AA206: 66432.75 | AB206: 54582 | AC206: 89810.80491 | AD206: 74235.41944 | AE206: 66794.25 | AF206: 50826 | AG206: 87035.54171 | AH206: 68571.1732 | AI206: -361.5 | AJ206: 3756 | AK206: 2775.263198 | AL206: 5664.246232 | AM206: -0.005412142512 | AN206: 0.07389918546 | AO206: 0.03188655052 | AP206: 0.08260389851
A207: 910 | B207: Law Enforcement Equipment Technician 2 | C207: 16 | D207: 69590.46169 | E207: 54240 | F207: -15350.46169 | G207: -0.2830099868 | H207: 91999.32557 | I207: 73850.10132 | J207: -18149.22425 | K207: -0.245757608 | N207: Law Enforcement Equipment Technician 2 | O207: 13 | P207: 69903.62588 | Q207: 50514 | R207: -19389.62588 | S207: -0.3838465748 | T207: 89723.94778 | U207: 68218.35665 | V207: -21505.59113 | W207: -0.3152463968 | Z207: Law Enforcement Equipment Technician 2 | AA207: 69590.46169 | AB207: 54240 | AC207: 91999.32557 | AD207: 73850.10132 | AE207: 69903.62588 | AF207: 50514 | AG207: 89723.94778 | AH207: 68218.35665 | AI207: -313.1641934 | AJ207: 3726 | AK207: 2275.377785 | AL207: 5631.744666 | AM207: -0.004479942056 | AN207: 0.07376172942 | AO207: 0.02535976003 | AP207: 0.08255468092
A208: 911 | B208: Communications Officer 1 | C208: 7 | D208: 64032.8 | E208: 67278 | F208: 3245.2 | G208: 0.04823567883 | H208: 86475.76873 | I208: 88539.50952 | J208: 2063.740796 | K208: 0.02330869922 | N208: Communications Officer 1 | O208: 7 | P208: 67870.44 | Q208: 56844 | R208: -11026.44 | S208: -0.1939772008 | T208: 89020.10321 | U208: 75376.46168 | V208: -13643.64153 | W208: -0.1810066594 | Z208: Communications Officer 1 | AA208: 64032.8 | AB208: 67278 | AC208: 86475.76873 | AD208: 88539.50952 | AE208: 67870.44 | AF208: 56844 | AG208: 89020.10321 | AH208: 75376.46168 | AI208: -3837.64 | AJ208: 10434 | AK208: -2544.334486 | AL208: 13163.04784 | AM208: -0.05654361457 | AN208: 0.1835549926 | AO208: -0.02858157196 | AP208: 0.1746307474
A209: 912 | B209: Communications Systems Designer | C209: 7 | D209: 98075.87665 | E209: 82992 | F209: -15083.87665 | G209: -0.1817509718 | H209: 122866.4034 | I209: 106243.863 | J209: -16622.54039 | K209: -0.1564564759 | N209: Communications Systems Designer | O209: 6 | P209: 104930.4073 | Q209: 77286 | R209: -27644.40733 | S209: -0.3576897152 | T209: 120872.4177 | U209: 98492.73073 | V209: -22379.68695 | W209: -0.2272217126 | Z209: Communications Systems Designer | AA209: 98075.87665 | AB209: 82992 | AC209: 122866.4034 | AD209: 106243.863 | AE209: 104930.4073 | AF209: 77286 | AG209: 120872.4177 | AH209: 98492.73073 | AI209: -6854.530674 | AJ209: 5706 | AK209: 1993.985695 | AL209: 7751.132259 | AM209: -0.06532454079 | AN209: 0.07382967161 | AO209: 0.01649661464 | AP209: 0.07869750591
B210: Average | D210: 74090.02037 | E210: 60421.5 | F210: -13668.52037 | G210: -0.226219481 | H210: 97289.42345 | I210: 80814.55728 | J210: -16474.86617 | K210: -0.2038601302 | N210: Average | P210: 71689.33023 | Q210: 55539.75 | R210: -16149.58023 | S210: -0.2907751697 | T210: 90232.95276 | U210: 73901.58673 | V210: -16331.36604 | W210: -0.2209880296 | Z210: Average | AA210: =AVERAGE(AA202:AA209) -> 74090.02037 | AB210: 60421.5 | AC210: 97289.42345 | AD210: 80814.55728 | AE210: 71689.33023 | AF210: 55539.75 | AG210: 90232.95276 | AH210: 73901.58673 | AI210: 2400.69014 | AJ210: 4881.75 | AK210: 7056.470681 | AL210: 6912.970553 | AM210: =AI210/AE210 -> 0.03348741203 | AN210: 0.08789650656 | AO210: 0.07820281244 | AP210: 0.09354292458
AI213: $ CHANGE 2022 TO 2024 | AM213: % CHANGE 2022 TO 2024
B214: Professional, Scientific, or Technical Services | C214: Base Salary | H214: Total Compensation | N214: Professional, Scientific, or Technical Services | O214: Base salary | T214: Total compensation | Z214: Professional, Scientific, or Technical Services | AA214: Consistently Successful Benchmarks | AI214: Base salary | AK214: Total compensation | AM214: Base salary | AO214: Total compensation
B215: Benchmark | C215: No. of matches | D215: Market median | E215: Washington state | F215: How much the state lags or leads | G215: Washington % to reach EMV | H215: Market median | I215: Washington state | J215: How much the state lags or leads | K215: Washington % to reach market total compensation | N215: Benchmark | O215: No. of matches | P215: Market median | Q215: Washington state | R215: How much the state lags or leads | S215: Washington % to reach EMV | T215: Market median | U215: Washington state | V215: How much the state lags or leads | W215: Washington % to reach market total compensation | Z215: Benchmark | AA215: 2024 Base Market | AB215: 2024 Base State | AC215: 2024 Total Comp Market | AD215: 2024 Total Comp State | AE215: 2022 Base Market | AF215: 2022 Base State | AG215: 2022 Total Comp Market | AH215: 2022 Total Comp State | AI215: Base Market | AJ215: Base State | AK215: Total Comp Market | AL215: Total Comp State | AM215: Base Market | AN215: Base State | AO215: Total Comp Market | AP215: Total Comp State
A216: 1100 | B216: Natural Resource Scientist 2 | C216: 17 | D216: 89327.04746 | E216: 63258 | F216: -26069.04746 | G216: =IFERROR(F216/E216,"--") -> -0.4121067289 | H216: 113740.3762 | I216: 84010.33166 | J216: -29730.04458 | K216: =IFERROR(J216/I216,"--") -> -0.3538855756 | N216: Natural Resource Scientist 2 | O216: 12 | P216: 84204.50851 | Q216: 58908 | R216: -25296.50851 | S216: -0.4294239918 | T216: 106892.5885 | U216: 77710.47887 | V216: -29182.10966 | W216: -0.3755234826 | Z216: Natural Resource Scientist 2 | AA216: =IF($D216="-","-",IF($P216="-","-",D216)) -> 89327.04746 | AB216: =IF($D216="-","-",IF($P216="-","-",E216)) -> 63258 | AC216: =IF($D216="-","-",IF($P216="-","-",H216)) -> 113740.3762 | AD216: =IF($D216="-","-",IF($P216="-","-",I216)) -> 84010.33166 | AE216: =IF($D216="-","-",IF($P216="-","-",P216)) -> 84204.50851 | AF216: =IF($D216="-","-",IF($P216="-","-",Q216)) -> 58908 | AG216: =IF($D216="-","-",IF($P216="-","-",T216)) -> 106892.5885 | AH216: =IF($D216="-","-",IF($P216="-","-",U216)) -> 77710.47887 | AI216: =IFERROR(AA216-AE216,"-") -> 5122.538951 | AJ216: 4350 | AK216: 6847.787701 | AL216: 6299.852789 | AM216: =IFERROR(AI216/AE216,"-") -> 0.06083449737 | AN216: 0.07384396007 | AO216: 0.06406232457 | AP216: 0.08106825335
A217: 1101 | B217: Data Consultant 2 | C217: 12 | D217: 88909.045 | E217: 54582 | F217: -34327.045 | G217: -0.62890779 | H217: 112992.7225 | I217: 74235.41944 | J217: -38757.30304 | K217: -0.5220864021 | N217: Data Consultant 2 | O217: 9 | P217: 90574.43507 | Q217: 50826 | R217: -39748.43507 | S217: -0.7820492478 | T217: 108893.465 | U217: 68571.1732 | V217: -40322.29184 | W217: -0.5880356126 | Z217: Data Consultant 2 | AA217: 88909.045 | AB217: 54582 | AC217: 112992.7225 | AD217: 74235.41944 | AE217: 90574.43507 | AF217: 50826 | AG217: 108893.465 | AH217: 68571.1732 | AI217: -1665.390073 | AJ217: 3756 | AK217: 4099.257436 | AL217: 5664.246232 | AM217: -0.0183869772 | AN217: 0.07389918546 | AO217: 0.03764465971 | AP217: 0.08260389851
A218: 1102 | B218: Forensic Scientist 3 | C218: 16 | D218: 89033.20562 | E218: 89364 | F218: 330.7943791 | G218: 0.003701651438 | H218: 115922.5338 | I218: 113422.9479 | J218: -2499.585866 | K218: -0.02203774379 | N218: Forensic Scientist 3 | O218: 16 | P218: 76326.20234 | Q218: 83220 | R218: 6893.797656 | S218: 0.08283823187 | T218: 101908.8567 | U218: 105203.0301 | V218: 3294.173458 | W218: 0.031312534 | Z218: Forensic Scientist 3 | AA218: 89033.20562 | AB218: 89364 | AC218: 115922.5338 | AD218: 113422.9479 | AE218: 76326.20234 | AF218: 83220 | AG218: 101908.8567 | AH218: 105203.0301 | AI218: 12707.00328 | AJ218: 6144 | AK218: 14013.67708 | AL218: 8219.917761 | AM218: 0.1664828445 | AN218: 0.07382840663 | AO218: 0.1375118664 | AP218: 0.07813384985
A219: 1103 | B219: Property & Evidence Custodian | C219: 14 | D219: 64547.6 | E219: 50766 | F219: -13781.6 | G219: -0.2714730331 | H219: 87126.24816 | I219: 69936.08045 | J219: -17190.16771 | K219: -0.2457982718 | N219: Property & Evidence Custodian | O219: 9 | P219: 62253.72 | Q219: 43992 | R219: -18261.72 | S219: -0.4151145663 | T219: 82650.25595 | U219: 60843.13374 | V219: -21807.12221 | W219: -0.3584155002 | Z219: Property & Evidence Custodian | AA219: 64547.6 | AB219: 50766 | AC219: 87126.24816 | AD219: 69936.08045 | AE219: 62253.72 | AF219: 43992 | AG219: 82650.25595 | AH219: 60843.13374 | AI219: 2293.88 | AJ219: 6774 | AK219: 4475.992206 | AL219: 9092.946707 | AM219: 0.03684727595 | AN219: 0.1539825423 | AO219: 0.05415581784 | AP219: 0.1494490199
A220: 1104 | B220: Hydrogeologist 3 | C220: 17 | D220: 94793.91412 | E220: 80970 | F220: -13823.91412 | G220: -0.1707288394 | H220: 120605.3615 | I220: 103965.7541 | J220: -16639.60742 | K220: -0.1600489273 | N220: Hydrogeologist 3 | O220: 16 | P220: 85626.5287 | Q220: 75408 | R220: -10218.5287 | S220: -0.1355098756 | T220: 107502.7829 | U220: 96369.04649 | V220: -11133.73637 | W220: -0.1155322873 | Z220: Hydrogeologist 3 | AA220: 94793.91412 | AB220: 80970 | AC220: 120605.3615 | AD220: 103965.7541 | AE220: 85626.5287 | AF220: 75408 | AG220: 107502.7829 | AH220: 96369.04649 | AI220: 9167.385423 | AJ220: 5562 | AK220: 13102.57869 | AL220: 7596.707635 | AM220: 0.1070624439 | AN220: 0.07375875239 | AO220: 0.1218812978 | AP220: 0.07882933277
A221: 1105 | B221: Microbiologist 2 | C221: 19 | D221: 81070.97205 | E221: 66432 | F221: -14638.97205 | G221: -0.2203602489 | H221: 105680.9598 | I221: 87586.35418 | J221: -18094.6056 | K221: -0.2065916063 | N221: Microbiologist 2 | O221: 16 | P221: 73750.02326 | Q221: 61866 | R221: -11884.02326 | S221: -0.1920929632 | T221: 94830.44391 | U221: 81055.45117 | V221: -13774.99274 | W221: -0.1699452972 | Z221: Microbiologist 2 | AA221: 81070.97205 | AB221: 66432 | AC221: 105680.9598 | AD221: 87586.35418 | AE221: 73750.02326 | AF221: 61866 | AG221: 94830.44391 | AH221: 81055.45117 | AI221: 7320.948789 | AJ221: 4566 | AK221: 10850.51587 | AL221: 6530.903007 | AM221: 0.09926707091 | AN221: 0.07380467462 | AO221: 0.1144201737 | AP221: 0.08057327314
... 81 more rows

Sheet Pay Plan Types
B2: Types of Pay Plans | M2: Years from Minimum to Maximum Salary
B3: for Union Represented Employees | N3: Lowest | O3: Median | P3: Average | Q3: Highest | R3: State of WA | S3: # of Responses
B4: Market Sector | C4: Number of Responses | G4: Percent of Responses | M4: Union Represented Employees | N4: 2 | O4: 6.5 | P4: 7.289473684 | Q4: 15 | R4: 12 | S4: 19
C5: Grade and Step | D5: Grades, No Steps | E5: Merit/ Performance Based | F5: Other | G5: Grade and Step | H5: Grades, No Steps | I5: Merit/ Performance Based | J5: Other | M5: Non-Represented Employees | N5: 4 | O5: 7 | P5: 8.447368421 | Q5: 15 | R5: 12 | S5: 19
A6: In-State Public Sector | B6: In-State Public Sector (N=32) | C6: 18 | D6: 1 | E6: 3 | F6: 2 | G6: 0.5625 | H6: 0.03125 | I6: 0.09375 | J6: 0.0625
A7: State Governments | B7: State Governments (N=15) | C7: 4 | D7: 1 | E7: 2 | F7: 2 | G7: 0.2666666667 | H7: 0.06666666667 | I7: 0.1333333333 | J7: 0.1333333333 | M7: Median Years from Minimum to Maximum Salary
B8: All Respondents (N=47) | C8: 22 | D8: 2 | E8: 5 | F8: 4 | G8: 0.4680851064 | H8: 0.04255319149 | I8: 0.1063829787 | J8: 0.08510638298
B9: State of Washington | C9: The State of Washington utilizes a Grade and Step pay plan for Union Represented positions.
B11: Types of Pay Plans
B12: for Nonrepresented Employees
B13: Market Sector | C13: Number of Responses | G13: Percent of Responses
C14: Grade and Step | D14: Grades, No Steps | E14: Merit/ Performance Based | F14: Other | G14: Grade and Step | H14: Grades, No Steps | I14: Merit/ Performance Based | J14: Other
A15: In-State Public Sector | B15: In-State Public Sector (N=32) | C15: 15 | D15: 2 | E15: 8 | F15: 3 | G15: 0.46875 | H15: 0.0625 | I15: 0.25 | J15: 0.09375
A16: State Governments | B16: State Governments (N=15) | C16: 4 | D16: 3 | E16: 3 | F16: 3 | G16: 0.2666666667 | H16: 0.2 | I16: 0.2 | J16: 0.2
B17: All Respondents (N=47) | C17: 19 | D17: 5 | E17: 11 | F17: 6 | G17: 0.4042553191 | H17: 0.1063829787 | I17: 0.2340425532 | J17: 0.1276595745
B18: State of Washington | C18: The State of Washington utilizes a Grade and Step pay plan for Nonrepresented positions.
B20: Types of Pay Plans
B21: for Union Represented and Nonrepresented Employees
C48: Grade and Step | D48: Grades, No Steps | E48: Merit/ Performance Based | F48: Other
B49: Union | C49: 0.4680851064 | D49: 0.04255319149 | E49: 0.1063829787 | F49: 0.08510638298
B50: Non-Represented | C50: 0.4042553191 | D50: 0.1063829787 | E50: 0.2340425532 | F50: 0.1276595745

Sheet Pay Scale Adjustments
Q1: CBA | R1: Interest Arbitration Outcome | S1: Budget/Financial Feasibility | T1: COLA | U1: Cost of Labor | V1: Other | AA1: CBA | AB1: Interest Arbitration Outcome | AC1: Budget/Financial Feasibility | AD1: COLA | AE1: Cost of Labor | AF1: Other
B2: Pay Schedule Adjustments | O2: Factors that Influence Base Pay Increases | Y2: Factors that Influence Base Pay Increases
B3: FY2023 and FY2024 | O3: Union Represented Employees | Y3: Nonrepresented Employees
B4: Union Represented Employees | Q4: CBA* | R4: Interest Arbitration | S4: Budget/ Financial Feasibility | T4: Cost of Living (Inflation) | U4: Cost of Labor (Market) | V4: Other | AA4: CBA* | AB4: Interest Arbitration | AC4: Budget/ Financial Feasibility | AD4: Cost of Living (Inflation) | AE4: Cost of Labor (Market) | AF4: Other
C5: FY2023 | H5: FY2024 | N5: In-State Public Sector | O5: FY 2023 | P5: In-State Public Sector (N=32) | Q5: 0.625 | R5: 0.03125 | S5: 0.125 | T5: 0.25 | U5: 0.15625 | V5: 0.03125 | X5: In-State Public Sector | Y5: FY 2023 | Z5: In-State Public Sector (N=32) | AA5: 0.0625 | AB5: 0 | AC5: 0.40625 | AD5: 0.375 | AE5: 0.25 | AF5: 0.125
C6: Lowest | D6: Median | E6: Average | F6: Highest | G6: State of WA | H6: Lowest | I6: Median | J6: Average | K6: Highest | L6: State of WA | N6: State Governments | P6: State Governments (N=15) | Q6: 0.2 | R6: 0 | S6: 0.2 | T6: 0.2 | U6: 0.2 | V6: 0 | X6: State Governments | Z6: State Governments (N=15) | AA6: 0.1333333333 | AB6: 0 | AC6: 0.2666666667 | AD6: 0.2666666667 | AE6: 0.3333333333 | AF6: 0.06666666667
A7: In-State Public Sector | B7: In-State Public Sector | C7: 0.02 | D7: 0.04 | E7: 0.04533333333 | F7: 0.09 | G7: 0.0325 | H7: 0.02 | I7: 0.0375 | J7: 0.03481428571 | K7: 0.06 | L7: 0.04 | M7: 15 | P7: All Respondents (N=47) | Q7: 0.4893617021 | R7: 0.02127659574 | S7: 0.1489361702 | T7: 0.2340425532 | U7: 0.170212766 | V7: 0.02127659574 | Z7: All Respondents (N=47) | AA7: 0.08510638298 | AB7: 0 | AC7: 0.3617021277 | AD7: 0.3404255319 | AE7: 0.2765957447 | AF7: 0.1063829787
A8: State Governments | B8: State Governments | C8: Insufficient data | D8: Insufficient data | E8: Insufficient data | F8: Insufficient data | G8: 0.0325 | H8: Insufficient data | I8: Insufficient data | J8: Insufficient data | K8: Insufficient data | L8: 0.04 | M8: 4 | N8: In-State Public Sector | O8: FY 2024 | P8: In-State Public Sector (N=32) | Q8: 0.59375 | R8: 0 | S8: 0.09375 | T8: 0.1875 | U8: 0.09375 | V8: 0.03125 | X8: In-State Public Sector | Y8: FY 2024 | Z8: In-State Public Sector (N=32) | AA8: 0.0625 | AB8: 0 | AC8: 0.3125 | AD8: 0.25 | AE8: 0.3125 | AF8: 0.125
B9: All Respondents | C9: 0.02 | D9: 0.04 | E9: 0.04657894737 | F9: 0.09 | G9: 0.0325 | H9: 0 | I9: 0.035 | J9: 0.03407368421 | K9: 0.06 | L9: 0.04 | M9: 19 | N9: State Governments | P9: State Governments (N=15) | Q9: 0.1333333333 | R9: 0 | S9: 0.2 | T9: 0.2 | U9: 0.2 | V9: 0 | X9: State Governments | Z9: State Governments (N=15) | AA9: 0 | AB9: 0 | AC9: 0.2666666667 | AD9: 0.2666666667 | AE9: 0.3333333333 | AF9: 0.06666666667
P10: All Respondents (N=47) | Q10: 0.4468085106 | R10: 0 | S10: 0.1276595745 | T10: 0.1914893617 | U10: 0.1276595745 | V10: 0.02127659574 | Z10: All Respondents (N=47) | AA10: 0.04255319149 | AB10: 0 | AC10: 0.2978723404 | AD10: 0.2553191489 | AE10: 0.3191489362 | AF10: 0.1063829787
B11: Nonrepresented Employees | O11: State of Washington | Q11: The State of Washington's base pay increases for Nonrepresented positions is determined by Collective Bargaining Agreements, Budget/Financial Feasibility and Revised Code of Washington 41.06.152 adopted by the State Legislature. The code requires the Office of Financial Management to review the fiscal impact and determine if the organization has the ability to afford the adjustments. | Y11: State of Washington | AA11: The State of Washington's base pay increases for Nonrepresented positions is determined by Budget/Financial Feasibility and Revised Code of Washington 41.06.152 adopted by the State Legislature. The code requires the Office of Financial Management to review the fiscal impact and determine if the organization has the ability to afford the adjustments.
C12: FY2023 | H12: FY2024
C13: Lowest | D13: Median | E13: Average | F13: Highest | G13: State of WA | H13: Lowest | I13: Median | J13: Average | K13: Highest | L13: State of WA
A14: In-State Public Sector | B14: In-State Public Sector | C14: 0.02 | D14: 0.04 | E14: 0.04303888889 | F14: 0.08 | G14: 0.0325 | H14: 0.02 | I14: 0.035 | J14: 0.03433846154 | K14: 0.06 | L14: 0.04 | M14: 18
A15: State Governments | B15: State Governments | C15: 0 | D15: 0.04 | E15: 0.042 | F15: 0.07 | G15: 0.0325 | H15: 0 | I15: 0.025 | J15: 0.02666666667 | K15: 0.06 | L15: 0.04 | M15: 5
B16: All Respondents | C16: 0 | D16: 0.04 | E16: 0.04281304348 | F16: 0.08 | G16: 0.0325 | H16: 0 | I16: 0.035 | J16: 0.03191578947 | K16: 0.06 | L16: 0.04 | M16: 23
B19: Median Pay Scale Adjustments | Y19: Factors that Influenced FY2023 Pay Increases
B20: for Union Represented and Nonrepresented Employees | Y20: for Union Represented and Nonrepresented Employees
C41: FY2023 | D41: FY2024
B42: Union Represented Employees | C42: 0.04 | D42: 0.035 | Z42: Union Represented Employees | AA42: Non-Represented Employees
B43: Non-Represented Employees | C43: 0.04 | D43: 0.035 | Y43: CBA* | Z43: 0.4893617021 | AA43: 0.08510638298
Y44: Interest Arbitration | Z44: 0.02127659574 | AA44: 0
Y45: Budget/ Financial Feasibility | Z45: 0.1489361702 | AA45: 0.3617021277
Y46: Cost of Living (Inflation) | Z46: 0.2340425532 | AA46: 0.3404255319
Y47: Cost of Labor (Market) | Z47: 0.170212766 | AA47: 0.2765957447
Y48: Other | Z48: 0.02127659574 | AA48: 0.1063829787

Sheet Shift Diff & Call-Back Pay
B2: Shift Differentials | S2: Call Back and Standby Pay
B3: Union Represented Employees | S3: Union Represented Employees
D4: Dollar Value Responses | J4: Percent of Pay Responses
C5: Shift | D5: Lowest | E5: Median | F5: Average | G5: Highest | H5: State of WA | I5: # of Responses | J5: Lowest | K5: Median | L5: Average | M5: Highest | N5: State of WA | O5: # of Responses | P5: Total # of Responses | U5: Lowest | V5: Median | W5: Average | X5: Highest | Y5: State of WA | Z5: # of Responses
B6: All Respondents | C6: Evening | D6: 0.6 | E6: 1 | F6: 1.17 | G6: 2.25 | H6: 2.5 | I6: 10 | J6: 0.035 | K6: 0.05 | L6: 0.05166666667 | M6: 0.07 | N6: NA | O6: 3 | P6: 13 | S6: All Respondents | T6: Call Back Pay | U6: 1 | V6: 1.5 | W6: 1.4375 | X6: 1.5 | Y6: N/A | Z6: 8
C7: Night | D7: 0.4 | E7: 1 | F7: 1.245454545 | G7: 2.5 | H7: 2.5 | I7: 11 | J7: 0.05 | K7: 0.06 | L7: 0.068 | M7: 0.1 | N7: NA | O7: 5 | P7: 16 | T7: Minimum # of Hours | U7: 0 | V7: 2 | W7: 2.230769231 | X7: 4 | Y7: 3 | Z7: 13
C8: Weekend | D8: 1 | E8: 1.25 | F8: 1.25 | G8: 1.5 | H8: NA | I8: 2 | J8: 0.3 | K8: 0.3 | L8: 0.3 | M8: 0.3 | N8: NA | O8: 1 | P8: 3 | T8: Standby Pay | U8: 0 | V8: 1.875 | W8: 1.61875 | X8: 3.3 | Y8: NA | Z8: 8
B9: Excluding Zeros (0%) | C9: Evening | D9: 0.6 | E9: 1 | F9: 1.17 | G9: 2.25 | H9: 2.5 | I9: 10 | J9: Insufficient data | K9: Insufficient data | L9: Insufficient data | M9: Insufficient data | N9: NA | O9: 3 | P9: 13 | S9: Excluding Zeros (0%) | T9: Call Back Pay | U9: 1 | V9: 1.5 | W9: 1.4375 | X9: 1.5 | Y9: N/A | Z9: 8
C10: Night | D10: 0.4 | E10: 1 | F10: 1.245454545 | G10: 2.5 | H10: 2.5 | I10: 11 | J10: 0.05 | K10: 0.06 | L10: 0.068 | M10: 0.1 | N10: NA | O10: 5 | P10: 16 | T10: Minimum # of Hours | U10: 2 | V10: 2.5 | W10: 2.9 | X10: 4 | Y10: 3 | Z10: 10
C11: Weekend | D11: Insufficient data | E11: Insufficient data | F11: Insufficient data | G11: Insufficient data | H11: NA | I11: 2 | J11: Insufficient data | K11: Insufficient data | L11: Insufficient data | M11: Insufficient data | N11: NA | O11: 1 | P11: 3 | T11: Standby Pay | U11: Insufficient data | V11: Insufficient data | W11: Insufficient data | X11: Insufficient data | Y11: 0.07 | Z11: 2
B14: Shift Differentials | S14: Call Back and Standby Pay
B15: Nonrepresented Employees | S15: Nonrepresented Employees
D16: Dollar Value Responses | J16: Percent of Pay Responses | U16: Percent of Pay Responses
C17: Shift | D17: Lowest | E17: Median | F17: Average | G17: Highest | H17: State of WA | I17: # of Responses | J17: Lowest | K17: Median | L17: Average | M17: Highest | N17: State of WA | O17: # of Responses | P17: Total # of Responses | U17: Lowest | V17: Median | W17: Average | X17: Highest | Y17: State of WA | Z17: # of Responses
B18: All Respondents | C18: Evening | D18: 0.05 | E18: 0.75 | F18: 0.8583333333 | G18: 1.5 | H18: 2.5 | I18: 6 | J18: 0.05 | K18: 0.0625 | L18: 0.0625 | M18: 0.075 | N18: NA | O18: 2 | P18: 8 | S18: All Respondents | T18: Call Back Pay | U18: 1.5 | V18: 1.5 | W18: 1.5 | X18: 1.5 | Y18: N/A | Z18: 2
C19: Night | D19: 0.05 | E19: 1.2 | F19: 0.98 | G19: 1.5 | H19: 2.5 | I19: 5 | J19: 0.05 | K19: 0.095 | L19: 0.095 | M19: 0.14 | N19: NA | O19: 2 | P19: 7 | T19: Minimum # of Hours | U19: 0 | V19: 0 | W19: 0.4285714286 | X19: 2 | Y19: 2 | Z19: 14
C20: Weekend | D20: 0.05 | E20: 1.5 | F20: 1.116666667 | G20: 1.8 | H20: NA | I20: 3 | J20: 0.2 | K20: 0.2 | L20: 0.2 | M20: 0.2 | N20: NA | O20: 1 | P20: 4 | T20: Standby Pay | U20: 0 | V20: 0 | W20: 0.25 | X20: 2 | Y20: N/A | Z20: 12
B21: Excluding Zeros (0%) | C21: Evening | D21: 0.05 | E21: 0.75 | F21: 0.8583333333 | G21: 1.5 | H21: 2.5 | I21: 6 | J21: Insufficient data | K21: Insufficient data | L21: Insufficient data | M21: Insufficient data | N21: NA | O21: 2 | P21: 8 | S21: Excluding Zeros (0%) | T21: Call Back Pay | U21: Insufficient data | V21: Insufficient data | W21: Insufficient data | X21: Insufficient data | Y21: N/A | Z21: 2
C22: Night | D22: 0.05 | E22: 1.2 | F22: 0.98 | G22: 1.5 | H22: 2.5 | I22: 5 | J22: Insufficient data | K22: Insufficient data | L22: Insufficient data | M22: Insufficient data | N22: NA | O22: 2 | P22: 7 | T22: Minimum # of Hours | U22: Insufficient data | V22: Insufficient data | W22: Insufficient data | X22: Insufficient data | Y22: 2 | Z22: 3
C23: Weekend | D23: Insufficient data | E23: Insufficient data | F23: Insufficient data | G23: Insufficient data | H23: NA | I23: 3 | J23: Insufficient data | K23: Insufficient data | L23: Insufficient data | M23: Insufficient data | N23: NA | O23: 1 | P23: 4 | T23: Standby Pay | U23: Insufficient data | V23: Insufficient data | W23: Insufficient data | X23: Insufficient data | Y23: 0.07 | Z23: 2

Sheet Performance & Incentive Pay
C1: Union Rep | D1: Non-Rep | E1: Sr Mng | Q1: In-State Public Sector | R1: State Governments
B2: Prevalence of Performance Based Pay | H2: Longevity Pay Provided | P2: Prevalence of Other Total Rewards Incentives
B3: by Employee Group | H3: Beyond the Maximum of the Salary Range? | P3: Offering | Q3: In-State Public Sector | R3: State Governments | S3: All Respondents | U3: Chart Data | V3: Title | W3: Percentage
H4: Market Sector | I4: Number of Responses | L4: Percent of Responses | O4: Membership Due Reimburse | P4: Reimbursement for membership dues to job-related professional associations | Q4: 0.53125 | R4: 0.4666666667 | S4: 0.5106382979 | U4: Merit incentives or bonuses to recognize group/team performance or outcomes | V4: Group/team bonus or incentive | W4: 0.02127659574
B5: Performance Incentive | C5: Union Represented Employees | D5: Non-represented Employees | E5: Senior Management | I5: Yes | J5: No | L5: Yes | M5: No | O5: Commute Assist | P5: Transportation or commuting assistance | Q5: 0.46875 | R5: 0.2 | S5: 0.3829787234 | U5: Gainsharing awards or bonuses (related to cost savings) | V5: Gainsharing awards or bonuses | W5: 0.04255319149
A6: Base Increase | B6: Base salary increases that vary or depend on individual performance | C6: 0.1063829787 | D6: 0.2765957447 | E6: 0.2978723404 | G6: In-State Public Sector | H6: In-State Public Sector (N=23) | I6: 11 | J6: 12 | L6: 0.4782608696 | M6: 0.5217391304 | O6: Student Loan Program | P6: Student loan deferral, repayment, or forgiveness program | Q6: 0.21875 | R6: 0.2666666667 | S6: 0.2340425532 | U6: Spot incentives or bonuses related to performance (unannounced cash, gift card, etc.) | V6: Spot incentives or bonuses | W6: 0.06382978723
A7: Org. Merit | B7: Merit incentives or bonuses related to organization-wide performance or business results | C7: 0.02127659574 | D7: 0.06382978723 | E7: 0.06382978723 | G7: State Governments | H7: State Governments (N=8) | I7: 2 | J7: 6 | L7: 0.25 | M7: 0.75 | O7: Employer Sponsored Conferences | P7: Employer sponsored conferences and training modules | Q7: 0.375 | R7: 0.4 | S7: 0.3829787234 | U7: Merit incentives or bonuses related to organization-wide performance or business results | V7: Organization-wide bonus or incentive | W7: 0.06382978723
A8: Team Merit | B8: Merit incentives or bonuses to recognize group/team performance or outcomes | C8: 0.02127659574 | D8: 0.04255319149 | E8: 0.02127659574 | H8: All Respondents (N=31) | I8: 13 | J8: 18 | L8: 0.4193548387 | M8: 0.5806451613 | O8: Relocation Assist | P8: Relocation reimbursement (for new hires) | Q8: 0.25 | R8: 0.2 | S8: 0.2340425532 | U8: Incentives or bonuses to recognize individual performance or outcomes | V8: Individual performance bonus or incentive | W8: 0.1063829787
A9: Individual Bonus | B9: Incentives or bonuses to recognize individual performance or outcomes | C9: 0.08510638298 | D9: 0.1276595745 | E9: 0.1063829787 | H9: State of Washington | I9: The State of Washington has available the last step in the classified salary structures for a longevity step available after 6 years at the previous step, approximately 2.5%. | O9: Tuition Assist | P9: Tuition assistance or reimbursement | Q9: 0.4375 | R9: 0.2 | S9: 0.3617021277 | U9: Non-cash awards related to performance (prizes, days off, plaques, etc.) | V9: Non-cash performance awards | W9: 0.1276595745
A10: Gainsharing | B10: Gainsharing awards or bonuses (related to cost savings) | C10: 0.02127659574 | D10: 0.04255319149 | E10: 0.04255319149 | O10: Online Training | P10: Employer sponsored online training such as LinkedIn Learning | Q10: 0.375 | R10: 0.3333333333 | S10: 0.3617021277 | U10: Employer facilitated inter-disciplinary groups to accomplish tasks | V10: Inter-disciplinary groups to accomplish tasks | W10: 0.1489361702
A11: Spot Incentives | B11: Spot incentives or bonuses related to performance (unannounced cash, gift card, etc.) | C11: 0.1276595745 | D11: 0.1063829787 | E11: 0.06382978723 | O11: Cert/License Reimburse | P11: Reimbursement for fees associated with certification/licensing attainment or maintenance | Q11: 0.53125 | R11: 0.2666666667 | S11: 0.4468085106 | U11: Student loan deferral, repayment, or forgiveness program | V11: Student loan assistance | W11: 0.2340425532
A12: Non-cash awards | B12: Non-cash awards related to performance (prizes, days off, plaques, etc.) | C12: 0.08510638298 | D12: 0.1063829787 | E12: 0.1276595745 | O12: Inter-Disciplinary Groups | P12: Employer facilitated inter-disciplinary groups to accomplish tasks | Q12: 0.15625 | R12: 0.1333333333 | S12: 0.1489361702 | U12: Relocation reimbursement (for new hires) | V12: Relocation reimbursement | W12: 0.2340425532
B13: None of the above | C13: 0.4893617021 | D13: 0.4042553191 | E13: 0.3829787234 | P13: None of the above | Q13: 0.03125 | R13: 0.2 | S13: 0.08510638298 | U13: Referral bonus | V13: Referral bonus | W13: 0.2340425532
B14: State of Washington | C14: The State of Washington's Senior Management, Union, and Non-represented positions are eligible for spot incentives related to performance and non-cash awards related to performance. In addition, Senior Management positions are also eligible for base salary increases that vary or depend on individual performance. | P14: State of Washington | Q14: The State of Washington offers all of the incentives listed above for their largest civilian employee group. | U14: Recruitment or hiring bonus | V14: Recruitment or hiring bonus | W14: 0.2978723404
U15: Base salary increases that vary or depend on individual performance | V15: Individual performance salary increases | W15: 0.2978723404
U16: Tuition assistance or reimbursement | V16: Tuition assistance | W16: 0.3617021277
B17: Prevalence of Other Incentive Pay by Employee Group | H17: Prevalence of Longevity Pay | P17: Prevalence of Performance Pay, Incentives, and Other Total Rewards | U17: Employer sponsored online training such as LinkedIn Learning | V17: Online training | W17: 0.3617021277
B18: All Respondents | U18: Additional pay or bonus for attaining job related skills, certifications, licenses, etc. | V18: Skill based pay or bonus | W18: 0.3829787234
B19: Incentive Pay | C19: Union Represented Employees | D19: Non-represented Employees | E19: Senior Management | U19: Retention bonus, longevity pay or years of service bonus/award | V19: Retention or service bonus | W19: 0.3829787234
A20: Skills Bonus | B20: Additional pay or bonus for attaining job related skills, certifications, licenses, etc. | C20: 0.3404255319 | D20: 0.170212766 | E20: 0.1489361702 | U20: Employer sponsored conferences and training modules | V20: Conferences and training modules | W20: 0.3829787234
A21: Hiring Bonus | B21: Recruitment or hiring bonus | C21: 0.1489361702 | D21: 0.170212766 | E21: 0.1914893617 | U21: Transportation or commuting assistance | V21: Commuting assistance | W21: 0.3829787234
A22: Referral Bonus | B22: Referral bonus | C22: 0.1063829787 | D22: 0.2127659574 | E22: 0.1276595745 | U22: Longevity Pay | V22: Longevity pay | W22: 0.4193548387
A23: Retention Bonus | B23: Retention bonus, longevity pay or years of service bonus/award | C23: 0.2553191489 | D23: 0.2340425532 | E23: 0.2340425532 | U23: Reimbursement for fees associated with certification/licensing attainment or maintenance | V23: Certification/licensing reimbursement | W23: 0.4468085106
B24: None of the above | C24: 0.3617021277 | D24: 0.3829787234 | E24: 0.4042553191 | U24: Reimbursement for membership dues to job-related professional associations | V24: Membership dues reimbursement | W24: 0.5106382979
B25: State of Washington | C25: The State of Washington's Senior management and Non-represented positions are eligible for recruitment or hiring bonuses. In addition, Nonrepresented positions are eligible for retention bonus, longevity pay or years of service bonuses/awards.
B28: Prevalence of Other Incentive Pay by Employee Group
B29: In-State Public Sector
B30: Incentive Pay | C30: Union Represented Employees | D30: Non-represented Employees | E30: Senior Management
A31: Skills Bonus | B31: Additional pay or bonus for attaining job related skills, certifications, licenses, etc. | C31: 0.40625 | D31: 0.09375 | E31: 0.09375
A32: Hiring Bonus | B32: Recruitment or hiring bonus | C32: 0.1875 | D32: 0.15625 | E32: 0.1875
A33: Referral Bonus | B33: Referral bonus | C33: 0.125 | D33: 0.1875 | E33: 0.09375
A34: Retention Bonus | B34: Retention bonus, longevity pay or years of service bonus/award | C34: 0.3125 | D34: 0.21875 | E34: 0.1875
B35: None of the above | C35: 0.28125 | D35: 0.40625 | E35: 0.4375
B36: State of Washington | C36: The State of Washington's Senior management and Non-represented positions are eligible for recruitment or hiring bonuses. In addition, Non-represented positions are eligible for retention bonus, longevity pay or years of service bonuses/awards.
B39: Prevalence of Other Incentive Pay by Employee Group
B40: State Governments
B41: Incentive Pay | C41: Union Represented Employees | D41: Nonrepresented Employees | E41: Senior Management
A42: Skills Bonus | B42: Additional pay or bonus for attaining job related skills, certifications, licenses, etc. | C42: 0.2 | D42: 0.3333333333 | E42: 0.2666666667
A43: Hiring Bonus | B43: Recruitment or hiring bonus | C43: 0.06666666667 | D43: 0.2 | E43: 0.2
A44: Referral Bonus | B44: Referral bonus | C44: 0.06666666667 | D44: 0.2666666667 | E44: 0.2
A45: Retention Bonus | B45: Retention bonus, longevity pay or years of service bonus/award | C45: 0.1333333333 | D45: 0.2666666667 | E45: 0.3333333333
B46: None of the above | C46: 0.5333333333 | D46: 0.3333333333 | E46: 0.3333333333
B47: State of Washington | C47: The State of Washington's Senior management and Non-represented positions are eligible for recruitment or hiring bonuses. In addition, Non-represented positions are eligible for retention bonus, longevity pay or years of service bonuses/awards.

Sheet Paid Leave
AF1: 6 | AG1: 28 | AH1: 31
C2: Type of Paid Leave Program | R2: Annual Number of Accrued | AD2: Carry-Over and Cash-Out of | AO2: Annual Number of
R3: Sick Leave Hours | AD3: Unused Leave | AO3: Paid Holidays and Personal Days
T4: Lowest | U4: Median | V4: Average | W4: Highest | X4: State of WA | Z4: # of Responses | AF4: Number of Responses | AJ4: Percent of Total Responses | AQ4: Lowest | AR4: Median | AS4: Average | AT4: Highest | AU4: State of WA* | AW4: # of Responses
B5: Leave Type | C5: Count | D5: Percentage | R5: Including zeros (0s) | T5: 12 | U5: 96 | V5: 94.58064516 | W5: 192 | X5: 96 | Z5: 31 | AF5: PTO | AG5: Vacation | AH5: Sick | AJ5: PTO | AK5: Vacation | AL5: Sick | AO5: Including Zeros | AP5: Holidays | AQ5: 6 | AR5: 11 | AS5: 10.94117647 | AT5: 13 | AU5: 11 | AW5: 34
B6: Vacation Leave | C6: 28 | D6: 0.8235294118 | R6: Excluding zeros (0s) | T6: 12 | U6: 96 | V6: 94.58064516 | W6: 192 | X6: 96 | Z6: 31 | AF6: (N=6) | AG6: (N=28) | AH6: (N=31) | AJ6: (N=6) | AK6: (N=28) | AL6: (N=31) | AP6: Personal Days | AQ6: 0 | AR6: 1 | AS6: 1.512931034 | AT6: 6.375 | AU6: 2 | AW6: 29
B7: Paid Time Off Program | C7: 6 | D7: 0.1764705882 | AD7: Carry-Over Allowed | AF7: 5 | AG7: 26 | AH7: 30 | AJ7: 0.8333333333 | AK7: 0.9285714286 | AL7: 0.9677419355 | AP7: Holidays and Personal Days Combined | AQ7: 8 | AR7: 13 | AS7: 12.23161765 | AT7: 15 | AU7: 13 | AW7: 34
AD8: Unlimited Carry-Over | AF8: 0 | AG8: 0 | AH8: 11 | AJ8: 0 | AK8: 0 | AL8: 0.3548387097 | AO8: Excluding Zeros | AP8: Holidays | AQ8: 6 | AR8: 11 | AS8: 10.94117647 | AT8: 13 | AU8: 11 | AW8: 34
AD9: Limited Carry-Over | AF9: 5 | AG9: 26 | AH9: 19 | AJ9: 0.8333333333 | AK9: 0.9285714286 | AL9: 0.6129032258 | AP9: Personal Days | AQ9: 0.5 | AR9: 2 | AS9: 1.994318182 | AT9: 6.375 | AU9: 2 | AW9: 22
AD10: Cash-Out Allowed at: | AP10: Holidays and Personal Days Combined | AQ10: 8 | AR10: 13 | AS10: 12.23161765 | AT10: 15 | AU10: 13 | AW10: 34
AD11: Year End | AF11: 3 | AG11: 11 | AH11: 8 | AJ11: 0.5 | AK11: 0.3928571429 | AL11: 0.2580645161
AD12: Termination | AF12: 4 | AG12: 21 | AH12: 12 | AJ12: 0.6666666667 | AK12: 0.75 | AL12: 0.3870967742
AD13: Retirement | AF13: 3 | AG13: 14 | AH13: 16 | AJ13: 0.5 | AK13: 0.5 | AL13: 0.5161290323
AD14: Cash Out Not Allowed | AF14: 0 | AG14: 3 | AH14: 10 | AJ14: 0 | AK14: 0.1071428571 | AL14: 0.3225806452
AD15: Cash-Out Rate (Median) | AF15: 1 | AG15: 1 | AH15: 0.25 | AJ15: -- | AK15: -- | AL15: --
AD16: State of Washington | AF16: The State of Washington allows employees to carry-over unused Vacation and Sick Leave. Employees are allowed to bank 240 hours of Vacation leave per year and an Unlimited amount of Sick Leave per year. Employee are also allowed to cash out Vacation Leave at Termination and Retirement, but not at Year End. Vacation is cashed out at a rate of 100% Employees are allowed to cash out Sick Leave at Year End and Retirement, but not Termination. Sick Leave is cashed out at a rate of 25%.
B19: Annual Number of Vacation Hours Accrued | R19: Median Annual Hours for
B20: by Years of Service | R20: PTO, Vacation and Sick Leave
B21: Years of Service | C21: Lowest | D21: Median | E21: Average | F21: Highest | G21: State of WA | I21: Years of Service | J21: Lowest | K21: Median | L21: Average | M21: Highest | N21: State of WA | R21: by Years of Service
B22: 1 Year | C22: 40 | D22: 96 | E22: 99.85714286 | F22: 168 | G22: 112 | I22: 14 Years | J22: 144 | K22: 160 | L22: 160.9037037 | M22: 200 | N22: 160
B23: 2 Years | C23: 80 | D23: 96 | E23: 101.4444444 | F23: 136 | G23: 112 | I23: 15 Years | J23: 144 | K23: 168 | L23: 170.9037037 | M23: 200 | N23: 176
B24: 3 Years | C24: 80 | D24: 104 | E24: 105.0740741 | F24: 136 | G24: 120 | I24: 16 Years | J24: 156 | K24: 168 | L24: 175.7925926 | M24: 200 | N24: 176
B25: 4 years | C25: 80 | D25: 112 | E25: 109.6666667 | F25: 136 | G25: 128 | I25: 17 Years | J25: 156 | K25: 168 | L25: 176.9037037 | M25: 200 | N25: 176
B26: 5 Years | C26: 96 | D26: 120 | E26: 120.5925926 | F26: 160 | G26: 136 | I26: 18 Years | J26: 156 | K26: 176 | L26: 178.8296296 | M26: 216 | N26: 176
B27: 6 Years | C27: 120 | D27: 126 | E27: 132.2962963 | F27: 192 | G27: 136 | I27: 19 Years | J27: 156 | K27: 176.4 | L27: 180.237037 | M27: 216 | N27: 176
B28: 7 Years | C28: 120 | D28: 128 | E28: 133.8148148 | F28: 192 | G28: 144 | I28: 20 Years | J28: 156 | K28: 192 | L28: 189.9407407 | M28: 240 | N28: 192
B29: 8 Years | C29: 120 | D29: 135 | E29: 137.0740741 | F29: 192 | G29: 144 | I29: 21 Years | J29: 168 | K29: 192 | L29: 192.4592593 | M29: 240 | N29: 192
B30: 9 Years | C30: 120 | D30: 136 | E30: 138 | F30: 192 | G30: 144 | I30: 22 Years | J30: 168 | K30: 192 | L30: 195.1259259 | M30: 240 | N30: 192
B31: 10 Years | C31: 120 | D31: 144 | E31: 151.2740741 | F31: 200 | G31: 160 | I31: 23 Years | J31: 168 | K31: 198 | L31: 196.7555556 | M31: 240 | N31: 192
B32: 11 Years | C32: 136 | D32: 152.4 | E32: 157.2740741 | F32: 200 | G32: 160 | I32: 24 Years | J32: 168 | K32: 198 | L32: 197.9407407 | M32: 240 | N32: 192
B33: 12 Years | C33: 136 | D33: 152.4 | E33: 157.5703704 | F33: 200 | G33: 160 | I33: 25 Years | J33: 168 | K33: 200.4 | L33: 204.0148148 | M33: 240 | N33: 200
B34: 13 Years | C34: 136 | D34: 156 | E34: 158.5333333 | F34: 200 | G34: 160 | I34: 25+ Years | J34: 168 | K34: 208 | L34: 207.2740741 | M34: 248 | N34: 200
AN40: This Page Intentionally Left Blank
B41: Annual Number of Paid Time Off (PTO) Hours Accrued
B42: by Years of Service
B43: Years of Service | C43: Lowest | D43: Median | E43: Average | F43: Highest | G43: State of WA | I43: Years of Service | J43: Lowest | K43: Median | L43: Average | M43: Highest | N43: State of WA
B44: 1 Year | C44: 80.08 | D44: 140 | E44: 145.3466667 | F44: 200 | G44: N/A | I44: 14 Years | J44: 144.04 | K44: 220.02 | L44: 215.3466667 | M44: 280 | N44: N/A
B45: 2 Years | C45: 80.08 | D45: 140 | E45: 146.68 | F45: 200 | G45: N/A | I45: 15 Years | J45: 159.9 | K45: 232 | L45: 221.9833333 | M45: 280 | N45: N/A
B46: 3 Years | C46: 80.08 | D46: 152 | E46: 152.0133333 | F46: 200 | G46: N/A | I46: 16 Years | J46: 159.9 | K46: 236 | L46: 226.65 | M46: 280 | N46: N/A
B47: 4 years | C47: 95.94 | D47: 152 | E47: 161.99 | F47: 224 | G47: N/A | I47: 17 Years | J47: 159.9 | K47: 240 | L47: 229.3166667 | M47: 280 | N47: N/A
B48: 5 Years | C48: 95.94 | D48: 152 | E48: 163.3233333 | F48: 224 | G48: N/A | I48: 18 Years | J48: 159.9 | K48: 240 | L48: 229.3166667 | M48: 280 | N48: N/A
B49: 6 Years | C49: 95.94 | D49: 192.02 | E49: 181.33 | F49: 240 | G49: N/A | I49: 19 Years | J49: 159.9 | K49: 240 | L49: 230.65 | M49: 280 | N49: N/A
B50: 7 Years | C50: 119.86 | D50: 192.02 | E50: 185.3166667 | F50: 240 | G50: N/A | I50: 20 Years | J50: 159.9 | K50: 240 | L50: 231.9833333 | M50: 280 | N50: N/A
B51: 8 Years | C51: 119.86 | D51: 192.02 | E51: 190.65 | F51: 248 | G51: N/A | I51: 21 Years | J51: 159.9 | K51: 252 | L51: 239.3166667 | M51: 300 | N51: N/A
B52: 9 Years | C52: 119.86 | D52: 192.02 | E52: 190.65 | F52: 248 | G52: N/A | I52: 22 Years | J52: 159.9 | K52: 252 | L52: 239.3166667 | M52: 300 | N52: N/A
B53: 10 Years | C53: 119.86 | D53: 204.02 | E53: 194.65 | F53: 248 | G53: N/A | I53: 23 Years | J53: 159.9 | K53: 252 | L53: 239.3166667 | M53: 300 | N53: N/A
B54: 11 Years | C54: 144.04 | D54: 208.02 | E54: 204.68 | F54: 260 | G54: N/A | I54: 24 Years | J54: 159.9 | K54: 252 | L54: 239.3166667 | M54: 300 | N54: N/A
B55: 12 Years | C55: 144.04 | D55: 212.02 | E55: 211.3466667 | F55: 280 | G55: N/A | I55: 25 Years | J55: 159.9 | K55: 252 | L55: 239.3166667 | M55: 300 | N55: N/A
B56: 13 Years | C56: 144.04 | D56: 216.02 | E56: 214.0133333 | F56: 280 | G56: N/A | I56: 25+ Years | J56: 159.9 | K56: 256 | L56: 245.3166667 | M56: 320 | N56: N/A

Sheet Ret and Health Benefits
Y1: Social Security | Z1: Numbers | AB1: Percentage
B2: Do Your Employees Contribute to Social Security? | L2: Maximum Salary Basis | V2: Social Security | W2: Percentage | Z2: Yes | AA2: No | AB2: Yes | AC2: No
M3: Lowest | N3: Median | O3: Average | P3: Highest | Q3: % Indicating No Maximum | S3: # of Responses | U3: Yes | V3: 23 | W3: 0.7931034483 | Y3: In-State Public Sector | Z3: 17 | AA3: 4 | AB3: 0.8095238095 | AC3: 0.1904761905
K4: DB Max Salary Basis | L4: Defined Benefit (DB) Plans | M4: 0.062 | N4: 280000 | O4: 220208.4124 | P4: 345000 | Q4: 0.6153846154 | S4: 13 | U4: No | V4: 6 | W4: 0.2068965517 | Y4: State Governments | Z4: 6 | AA4: 2 | AB4: 0.75 | AC4: 0.25
K5: DC Max Salary Basis | L5: Defined Contribution (DC) Plans | M5: 20 | N5: 280000 | O5: 225870 | P5: 345000 | Q5: 0.4545454545 | S5: 11 | U5: Total | V5: 29 | W5: 1 | Y5: All Participants | Z5: 23 | AA5: 6 | AB5: 0.7931034483 | AC5: 0.2068965517
K6: DB/DC Max Salary Basis | L6: Combined DB/DC Plan (DB portion) | M6: 280000 | N6: 312500 | O6: 312500 | P6: 345000 | Q6: 0.6666666667 | S6: 6
W9: Preferred Provider Organization (PPO) | X9: Health Maintenance Organization (HMO) | Y9: High-Deductible Health Plan (HDHP)
B10: Normal or Typical Retirement Age | L10: Normal or Typical Retirement Age--Defined Benefit Plans Only | V10: Health Plan Types and Average Actuarial Value
C11: Lowest | D11: Median | E11: Average | F11: Highest | G11: State of WA | I11: # of Responses | M11: Lowest | N11: Median | O11: Average | P11: Highest | Q11: State of WA | S11: # of Responses | W11: PPO | X11: HMO | Y11: HDHP | Z11: # of Responses
A12: DB Retirement Age | B12: Defined Benefit (DB) Plans | C12: 60 | D12: 65 | E12: 64.53571429 | F12: 65 | G12: 65 | I12: 28 | L12: In-State Public Sector | M12: 60 | N12: 65 | O12: 64.7826087 | P12: 65 | Q12: 65 | S12: 23 | U12: In-State Public Sector | V12: In-State Participants | W12: 0.7727272727 | X12: 0.1363636364 | Y12: 0.04545454545 | Z12: 22
A13: DC Retirement Age | B13: Defined Contribution (DC) Plans | C13: Insufficient data | D13: Insufficient data | E13: Insufficient data | F13: Insufficient data | G13: NA | I13: 0 | L13: State Governments | M13: 60 | N13: 65 | O13: 63.4 | P13: 65 | Q13: 65 | S13: 5 | U13: State Governments | V13: State Governments | W13: 0.4 | X13: 0.2 | Y13: 0 | Z13: 10
A14: DB/DC Retirement Age | B14: Combined DB/DC Plan (DB portion) | C14: 65 | D14: 65 | E14: 65 | F14: 65 | G14: 65 | I14: 13 | L14: All Participants | M14: 60 | N14: 65 | O14: 64.53571429 | P14: 65 | Q14: 65 | S14: 28 | V14: All Participants | W14: 0.65625 | X14: 0.15625 | Y14: 0.03125 | Z14: 32
V15: Average Actuarial Value | W15: 0.8217142857 | X15: 0.94705 | Y15: No data | Z15: 10
B17: Defined Benefit Multiplier | L17: Defined Benefit Multiplier | V17: Level of Coverage Metal Tier
C18: Lowest | D18: Median | E18: Average | F18: Highest | G18: State of WA | I18: # of Responses | M18: Lowest | N18: Median | O18: Average | P18: Highest | Q18: State of WA | S18: # of Responses | W18: Silver | X18: Gold | Y18: Platinum | Z18: # of Responses
A19: DB DB Multiplier | B19: Defined Benefit (DB) Plans | C19: 0.017857 | D19: 0.02 | E19: 0.020291 | F19: 0.025 | G19: 0.02 | I19: 27 | L19: In-State Public Sector | M19: 0.02 | N19: 0.02 | O19: 0.02 | P19: 0.02 | Q19: 0.02 | S19: 22 | U19: In-State Public Sector | V19: In-State Participants | W19: 0.0625 | X19: 0.25 | Y19: 0.625 | Z19: 16
A20: DC DB Multiplier | B20: Defined Contribution (DC) Plans | C20: Not Applicable | G20: NA | I20: 0 | L20: State Governments | M20: 0.017857 | N20: 0.02 | O20: 0.0215714 | P20: 0.025 | Q20: 0.02 | S20: 5 | U20: State Governments | V20: State Governments | W20: 0.1666666667 | X20: 0.3333333333 | Y20: 0.5 | Z20: 6
A21: DB/DC DB Multiplier | B21: Combined DB/DC Plan (DB portion) | C21: 0.01 | D21: 0.01 | E21: 0.011 | F21: 0.015 | G21: 0.01 | I21: 10 | L21: All Participants | M21: 0.017857 | N21: 0.02 | O21: 0.020291 | P21: 0.025 | Q21: 0.02 | S21: 27 | V21: All Participants | W21: 0.09090909091 | X21: 0.2727272727 | Y21: 0.5909090909 | Z21: 22
B24: Typical Annual Cost of Living Adjustment (COLA) | L24: Typical Annual Cost of Living Adjustment (COLA)
C25: Lowest | D25: Median | E25: Average | F25: Highest | G25: State of WA | I25: # of Responses | M25: Lowest | N25: Median | O25: Average | P25: Highest | Q25: State of WA | S25: # of Responses
A26: DB COLA Increase | B26: Defined Benefit (DB) Plans | C26: 0.01 | D26: 0.0275 | E26: 0.026875 | F26: 0.03 | G26: 0.0275 | I26: 20 | L26: In-State Public Sector | M26: 0.01 | N26: 0.0275 | O26: 0.02652777778 | P26: 0.0275 | Q26: 0.0275 | S26: 32
A27: DC COLA Increase | B27: Defined Contribution (DC) Plans | C27: 0.01 | D27: 0.03 | E27: 0.026 | F27: 0.03 | G27: NA | I27: 5 | L27: State Governments | M27: 0.03 | N27: 0.03 | O27: 0.03 | P27: 0.03 | Q27: 0.0275 | S27: 15
A28: DB/DC COLA Increase | B28: Combined DB/DC Plan (DB portion) | C28: Insufficient data | D28: Insufficient data | E28: Insufficient data | F28: Insufficient data | G28: 0.0275 | I28: 3 | L28: All Participants | M28: 0.01 | N28: 0.0275 | O28: 0.026875 | P28: 0.03 | Q28: 0.0275 | S28: 47
B30: Employer Share of Plan Funding | L30: Employer Share of Plan Funding
C31: Lowest | D31: Median | E31: Average | F31: Highest | G31: State of WA | I31: # of Responses | M31: Lowest | N31: Median | O31: Average | P31: Highest | Q31: State of WA | S31: # of Responses
A32: DB ER Cost Sharing | B32: Defined Benefit (DB) Plans | C32: 0.4025157233 | D32: 0.5 | E32: 0.5055079656 | F32: 0.5974842767 | G32: 0.5 | I32: 25 | L32: In-State Public Sector | M32: 0.4025157233 | N32: 0.5 | O32: 0.5058668134 | P32: 0.5974842767 | Q32: 0.5 | S32: 23
A33: DC ER Cost Sharing | B33: Defined Contribution (DC) Plans | C33: 0 | D33: 0 | E33: 0.1850025917 | F33: 0.653 | G33: NA | I33: 12 | L33: State Governments | M33: Insufficient data | N33: Insufficient data | O33: Insufficient data | P33: Insufficient data | Q33: 0.5 | S33: 2
A34: DB/DC ER Cost Sharing | B34: Combined DB/DC Plan (DB portion) | C34: 0 | D34: 0.6551724138 | E34: 0.6510344828 | F34: 1 | G34: 1 | I34: 5 | L34: All Participants | M34: 0.4025157233 | N34: 0.5 | O34: 0.5055079656 | P34: 0.5974842767 | Q34: 0.5 | S34: 25

Sheet Modern Work Environment
B2: Compressed Workweek, Flexible Schedule, and Telework
C3: Percentage of Workforce that: | D3: Lowest | E3: Median | F3: Average | G3: Highest | H3: State of WA | I3: % Reporting Greater than 0% | J3: # of Total Responses
A4: % Workforce w/ Compressed Workweek | B4: All Respondents | C4: Has a compressed workweek schedule | D4: 0 | E4: 0.02 | F4: 0.1699473684 | G4: 0.95 | H4: 0.2 | I4: 0.7368421053 | J4: 19
A5: % Workforce w/ Flextime Schedule | C5: Has a flexible schedule (flextime) | D5: 0 | E5: 0.06 | F5: 0.1506875 | G5: 0.75 | H5: 0.3 | I5: 0.6875 | J5: 16
A6: % teleworkforce | C6: Teleworks at least one day every two weeks | D6: 0 | E6: 0.175 | F6: 0.2643117647 | G6: 0.94 | H6: 0.34 | I6: 0.7647058824 | J6: 17
A7: % Workforce w/ Compressed Workweek | B7: Excluding Zeros (0%) | C7: Has a compressed workweek schedule | D7: 0.005 | E7: 0.135 | F7: 0.2306428571 | G7: 0.95 | H7: 0.2 | I7: 1 | J7: 14
A8: % Workforce w/ Flextime Schedule | C8: Has a flexible schedule (flextime) | D8: 0.005 | E8: 0.136 | F8: 0.2191818182 | G8: 0.75 | H8: 0.3 | I8: 1 | J8: 11
A9: % teleworkforce | C9: Teleworks at least one day every two weeks | D9: 0.05 | E9: 0.25 | F9: 0.3456384615 | G9: 0.94 | H9: 0.34 | I9: 1 | J9: 13

Sheet Employee Engagement
B2: Engagement Survey Responses
C3: Lowest | D3: Median | E3: Average | F3: Highest | G3: State of WA | I3: # of Total Responses
A4: Survey Response Rate | B4: Response rate for the last survey | C4: 0.03 | D4: 0.625 | E4: 0.579 | F4: 0.85 | G4: 0.66 | I4: 10
A5: Engagement Overall Score | B5: Overall score for the question, "I would recommend my agency as a great place to work" or similar question | C5: 0.62 | D5: 0.82 | E5: 0.7982 | F5: 0.911 | G5: 0.65 | I5: 5
B6: State of Washington | C6: The State of Washington conducts an employee engagement survey on an annual basis.
B8: Frequency of Engagement Surveys
K10: Engagement Survey Frequency | L10: Count | M10: Percentage
K11: Ad hoc (no regular frequency) | L11: 6 | M11: 0.4
K12: Annually | L12: 5 | M12: 0.3333333333
K13: Every 2-3 years | L13: 0 | M13: 0
K14: Every five years | L14: 0 | M14: 0
K15: Other | L15: 4 | M15: 0.2666666667
K16: Total | L16: 15 | M16: 1
B28: Annual Turnover Percentage (Excluding Retirement)
B29: Market Sector | C29: Lowest | D29: Median | E29: Average | F29: Highest | G29: # of Total Responses | I29: State of WA
A30: In-State Public Sector | B30: In-State Public Sector | C30: 0.0132 | D30: 0.08176450855 | E30: 0.08229645086 | F30: 0.158 | G30: 20 | I30: 0.105
A31: State Governments | B31: State Governments | C31: 0 | D31: 0.14 | E31: 0.1404714286 | F31: 0.2253 | G31: 7 | I31: 0.105
B32: All Participants | C32: 0 | D32: 0.09 | E32: 0.09737885249 | F32: 0.2253 | G32: 27 | I32: 0.105

Sheet Survey Participants
AA1: In-State Public Sector | AC1: State Governments | AJ1: In-State Public Sector | AL1: State Governments | AS1: In-State Public Sector | AU1: State Governments | BE1: In-State Public Sector | BG1: State Governments
G2: Location of survey participants | P2: Location of in-state public survey participants | Z2: Size of survey participants | AI2: Percent of workforce that is union-represented | AR2: Percent of workforce that is union-represented | BD2: Regular workweek hours for most full-time employees
B3: Org name | C3: Market sector | D3: Location with largest no. of employees in WA | AA3: In-state public sector | AC3: State governments | AE3: All participants | AJ3: In-state public sector | AL3: State governments | AN3: All participants | AS3: In-state public sector | AU3: State governments | AW3: All participants | BE3: In-state public sector | BG3: State governments | BI3: All participants
B4: Ben Franklin Transit | C4: In-State Public Sector | D4: Eastern Washington | G4: Location | H4: Number | I4: Percent | J4: Percent in-state | Z4: Number of full-time employees (FTE) | AA4: Number | AB4: Percent | AC4: Number | AD4: Percent | AE4: Number | AF4: Percent | AI4: Percent union-represented | AJ4: Number | AK4: Percent | AL4: Number | AM4: Percent | AN4: Number | AO4: Percent | AR4: Percent union-represented | AS4: Number | AT4: Percent | AU4: Number | AV4: Percent | AW4: Number | AX4: Percent | BD4: Workweek hours | BE4: Number | BF4: Percent | BG4: Number | BH4: Percent | BI4: Number | BJ4: Percent
B5: Chelan County PUD | C5: In-State Public Sector | D5: In State | G5: Puget Sound Area (King, Pierce, Snohomish) | H5: 13 | I5: 0.3513513514 | J5: 0.40625 | Z5: Fewer than 199 FTEs | AA5: 2 | AB5: 0.09090909091 | AC5: 0 | AD5: 0 | AE5: 2 | AF5: 0.06666666667 | AH5: 0 | AI5: None (0%) | AJ5: 0 | AK5: 0 | AL5: 3 | AM5: 0.375 | AN5: 3 | AO5: 0.1034482759 | AQ5: 0 | AR5: None (0%) | AS5: 0 | AT5: 0 | AU5: 3 | AV5: 0.375 | AW5: 3 | AX5: 0.1034482759 | BC5: 35.6 | BD5: 35.6 hours | BE5: 0 | BF5: 0 | BG5: 0 | BH5: 0 | BI5: 0 | BJ5: 0
B6: City of Bellevue | C6: In-State Public Sector | D6: Puget Sound Area (King, Pierce, Snohomish) | G6: Western Washington (exlcuding Puget Sound) | H6: 5 | I6: 0.1351351351 | J6: 0.15625 | Z6: 200 to 999 FTEs | AA6: 9 | AB6: 0.4090909091 | AC6: 0 | AD6: 0 | AE6: 9 | AF6: 0.3 | AH6: 0.1 | AI6: 1% < 10% | AJ6: 1 | AK6: 0.04761904762 | AL6: 1 | AM6: 0.125 | AN6: 2 | AO6: 0.06896551724 | AQ6: 0.33 | AR6: 1% < 33% | AS6: 1 | AT6: 0.04761904762 | AU6: 1 | AV6: 0.125 | AW6: 2 | AX6: 0.06896551724 | BC6: 37.5 | BD6: 37.5 hours | BE6: 1 | BF6: 0.04347826087 | BG6: 0 | BH6: 0 | BI6: 1 | BJ6: 0.0303030303
B7: City of Everett | C7: In-State Public Sector | D7: Puget Sound Area (King, Pierce, Snohomish) | G7: Eastern Washington | H7: 4 | I7: 0.1081081081 | J7: 0.125 | Z7: 1,000 to 4,999 FTEs | AA7: 10 | AB7: 0.4545454545 | AC7: 0 | AD7: 0 | AE7: 10 | AF7: 0.3333333333 | AH7: 0.2 | AI7: 10% < 20% | AJ7: 0 | AK7: 0 | AL7: 0 | AM7: 0 | AN7: 0 | AO7: 0 | AQ7: 0.5 | AR7: 33% < 50% | AS7: 4 | AT7: 0.1904761905 | AU7: 0 | AV7: 0 | AW7: 4 | AX7: 0.1379310345 | BC7: 40 | BD7: 40 hours | BE7: 22 | BF7: 0.9565217391 | BG7: 10 | BH7: 1 | BI7: 32 | BJ7: 0.9696969697
B8: City of Olympia | C8: In-State Public Sector | D8: Western Washington (excluding Puget Sound) | G8: Out of State | H8: 15 | I8: 0.4054054054 | J8: N/A | Z8: 5,000 or more FTEs | AA8: 1 | AB8: 0.04545454545 | AC8: 8 | AD8: 1 | AE8: 9 | AF8: 0.3 | AH8: 0.3 | AI8: 20% < 30% | AJ8: 0 | AK8: 0 | AL8: 0 | AM8: 0 | AN8: 0 | AO8: 0 | AQ8: 0.67 | AR8: 50% < 67% | AS8: 4 | AT8: 0.1904761905 | AU8: 2 | AV8: 0.25 | AW8: 6 | AX8: 0.2068965517 | BD8: All* | BE8: 23 | BF8: 1 | BG8: 10 | BH8: 1 | BI8: 33 | BJ8: 1
B9: City of Redmond | C9: In-State Public Sector | D9: Puget Sound Area (King, Pierce, Snohomish) | G9: All | H9: 37 | I9: 1 | J9: N/A | Z9: All | AA9: 22 | AB9: 1 | AC9: 8 | AD9: 1 | AE9: 30 | AF9: 1 | AH9: 0.4 | AI9: 30% < 40% | AJ9: 3 | AK9: 0.1428571429 | AL9: 0 | AM9: 0 | AN9: 3 | AO9: 0.1034482759 | AQ9: 1 | AR9: 67% or more | AS9: 12 | AT9: 0.5714285714 | AU9: 2 | AV9: 0.25 | AW9: 14 | AX9: 0.4827586207 | BD9: State of Washington | BE9: The State of Washington has a 40 hour workweek.
B10: City of Renton | C10: In-State Public Sector | D10: In State | G10: State of Washington | H10: The State of Washington is located in Western Washington (with employees across the state), as defined in this study. | Z10: State of Washington | AA10: The State of Washington has 5,000 or more FTEs. | AH10: 0.5 | AI10: 40% < 50% | AJ10: 1 | AK10: 0.04761904762 | AL10: 0 | AM10: 0 | AN10: 1 | AO10: 0.03448275862 | AR10: All* | AS10: 21 | AT10: 1 | AU10: 8 | AV10: 1 | AW10: 29 | AX10: 1
B11: City of Seattle | C11: In-State Public Sector | D11: In State | AH11: 0.6 | AI11: 50% < 60% | AJ11: 2 | AK11: 0.09523809524 | AL11: 1 | AM11: 0.125 | AN11: 3 | AO11: 0.1034482759 | AR11: State of Washington | AS11: The State of Washington has 76% of their workforce unionized.
B12: City of Spokane | C12: In-State Public Sector | D12: In State | G12: Survey Response Rate | AH12: 0.7 | AI12: 60% < 70% | AJ12: 3 | AK12: 0.1428571429 | AL12: 1 | AM12: 0.125 | AN12: 4 | AO12: 0.1379310345
B13: City of Tacoma | C13: In-State Public Sector | D13: Puget Sound Area (King, Pierce, Snohomish) | G13: Market sector | H13: Surveyed | I13: Completed surveys received | J13: Data mined | K13: Total responses | L13: Response rate | AH13: 0.8 | AI13: 70% < 80% | AJ13: 7 | AK13: 0.3333333333 | AL13: 0 | AM13: 0 | AN13: 7 | AO13: 0.2413793103
B14: City of Vancouver | C14: In-State Public Sector | D14: In State | AH14: 0.9 | AI14: 80% < 90% | AJ14: 4 | AK14: 0.1904761905 | AL14: 2 | AM14: 0.25 | AN14: 6 | AO14: 0.2068965517
B15: City of Yakima | C15: In-State Public Sector | D15: In State | G15: In-state public sector | H15: 32 | I15: 21 | J15: 11 | K15: 32 | L15: 1 | O15: Location of survey participants | AH15: 1 | AI15: 90% < 100% | AJ15: 0 | AK15: 0 | AL15: 0 | AM15: 0 | AN15: 0 | AO15: 0
B16: Clark County | C16: In-State Public Sector | D16: Western Washington (excluding Puget Sound) | G16: State governments | H16: 15 | I16: 9 | J16: 6 | K16: 15 | L16: 1 | AI16: All* | AJ16: 21 | AK16: 1 | AL16: 8 | AM16: 1 | AN16: 29 | AO16: 1
B17: Energy Northwest | C17: In-State Public Sector | D17: In State | G17: Total | H17: 47 | I17: 30 | J17: 17 | K17: 47 | L17: 1 | AI17: State of Washington | AJ17: The State of Washington has 76% of their workforce unionized.
B18: Intercity Transit | C18: In-State Public Sector | D18: Puget Sound Area (King, Pierce, Snohomish)
B19: Jefferson County Library | C19: In-State Public Sector | D19: In State
B20: King County | C20: In-State Public Sector | D20: Puget Sound Area (King, Pierce, Snohomish) | Z20: Size of survey participants | AR20: Percent of workforce that is union-represented | BD20: Regular workweek hours for most full-time employees
B21: Kitsap County | C21: In-State Public Sector | D21: Western Washington (excluding Puget Sound)
B22: Kitsap Regional Library | C22: In-State Public Sector | D22: Western Washington (excluding Puget Sound)
B23: Metropolitan Park District of Tacoma | C23: In-State Public Sector | D23: Puget Sound Area (King, Pierce, Snohomish)
B24: Pierce County | C24: In-State Public Sector | D24: Puget Sound Area (King, Pierce, Snohomish)
B25: Pierce Transit | C25: In-State Public Sector | D25: In State
B26: Port of Everett | C26: In-State Public Sector | D26: Puget Sound Area (King, Pierce, Snohomish)
B27: Port of Seattle | C27: In-State Public Sector | D27: In State
B28: Port of Tacoma | C28: In-State Public Sector | D28: Puget Sound Area (King, Pierce, Snohomish)
B29: Snohomish County | C29: In-State Public Sector | D29: Puget Sound Area (King, Pierce, Snohomish)
B30: Sno-Isle Libraries | C30: In-State Public Sector | D30: Puget Sound Area (King, Pierce, Snohomish)
B31: Sound Transit | C31: In-State Public Sector | D31: Puget Sound Area (King, Pierce, Snohomish)
B32: Spokane County | C32: In-State Public Sector | D32: Eastern Washington
B33: Spokane Transit Authority | C33: In-State Public Sector | D33: Eastern Washington
B34: Thurston County | C34: In-State Public Sector | D34: Western Washington (excluding Puget Sound)
B35: Yakima County | C35: In-State Public Sector | D35: Eastern Washington
B36: State of Arizona | C36: State Governments | D36: Out of State
B37: State of California | C37: State Governments | D37: Out of State
B38: State of Colorado | C38: State Governments | D38: Out of State
B39: State of Connecticut | C39: State Governments | D39: Out of State | AH39: Chart Data
B40: State of Hawaii | C40: State Governments | D40: Out of State | AH40: 0 | AI40: Less than one third (1% < 33%) | AL40: 9 | AM40: 0.28125 | AR40: None (0%) | AU40: 3 | AV40: 0.1034482759
B41: State of Idaho | C41: State Governments | D41: Out of State | AH41: 0.3333333333 | AI41: One third to one half (33% < 50%) | AL41: 2 | AM41: 0.0625 | AR41: Less than a third (1% < 33%) | AU41: 2 | AV41: 0.06896551724 | BL41: < 40 hours | BM41: =1-BM42 -> 0.0303030303
B42: State of Maryland | C42: State Governments | D42: Out of State | AH42: 0.5 | AI42: One half to two thirds (50% < 67%) | AL42: 6 | AM42: 0.1875 | AR42: One third to one half (33% < 50%) | AU42: 4 | AV42: 0.1379310345 | BL42: 40 hours | BM42: =BJ7 -> 0.9696969697
B43: State of Massachusetts | C43: State Governments | D43: Out of State | AH43: 0.6666666667 | AI43: Two thirds or more (67%+) | AL43: 15 | AM43: 0.46875 | AR43: One half to two thirds (50% < 67%) | AU43: 6 | AV43: 0.2068965517
B44: State of Montana | C44: State Governments | D44: Out of State | AI44: Total | AL44: 32 | AM44: 1 | AR44: Two thirds or more (67%+) | AU44: 14 | AV44: 0.4827586207
B45: State of Nevada | C45: State Governments | D45: Out of State | AS45: Total | AU45: 29 | AV45: 1
B46: State of New Jersey | C46: State Governments | D46: Out of State
B47: State of New Mexico | C47: State Governments | D47: Out of State
B48: State of Oregon | C48: State Governments | D48: Out of State
B49: State of Utah | C49: State Governments | D49: Out of State
B50: State of Wyoming | C50: State Governments | D50: Out of State
